Workbook

Sheet Changes
A1: Changes
A2: Date | B2: Report | C2: Column/Row/Line | D2: Change
A3: 2017-03-10 | B3: SNP | C3: K8 | D3: Deleted ", 80xxx & 90xxxx". Diane Hickey ask that we add these fiduciary funds to this report. She wants to manually remove them from her AFR.
A4: 2017-03-10 | B4: SNP | C4: L88 | D4: Deleted "Include Fund 11922 for USO". This balance needs to go under unrestricted instead of restricted-expendable.
A5: 2017-03-10 | B5: SNP | C5: K89 | D5: Added "(371xxx for fund 11922)"
A6: 2017-03-10 | B6: SNP | C6: K25 | D6: Deleted "2xxxx, 30xxx, 41xxx"
A7: 2017-03-10 | B7: SNP | C7: K29 | D7: Deleted "2xxxx, 30xxx, 41xxx"
A8: 2017-03-10 | B8: SRECNP | C8: I7 | D8: Deleted ", 80xxx & 90xxxx". Diane Hickey ask that we add these fiduciary funds to this report. She wants to manually remove them from her AFR.
A9: 2017-03-10 | B9: SRECNP | C9: I52 | D9: Added account ", 4919xx".
A10: 2017-03-10 | B10: CashFlow | C10: O5 | D10: Deleted ", 80xxx & 90xxxx". Diane Hickey ask that we add these fiduciary funds to this report. She wants to manually remove them from her AFR.
A11: 2017-03-10 | B11: CashFlow | C11: O110 | D11: Added account ", 4919xx".
A12: 2017-03-10 | B12: CashFlows | C12: C7 | D12: Deleted "Actuals"
A13: 2017-03-10 | B13: Net Position | C13: Row 23 | D13: Deleted this row. Health insurance reserve should be moved to unrestricted.
A14: 2017-03-10 | B14: Net Position | C14: Row 35 | D14: Added row. Added Health insurance reserve from restricted expendable section.
A15: 2017-03-28 | B15: SNP | C15: K89 | D15: Added fund 11923
A16: 2017-03-28 | B16: Net Position | C16: J35 | D16: Added fund 11923

Sheet SNP
D1: %,QBOR_GASB_LEDGER_NVS,CA.POSTED_TOTAL_AMT,S2YEAR,FFUND_CODE,TBOR_SNP_FUND,NALL FUNDS | F1: %,QBOR_GASB_LEDGER_NVS,CA.POSTED_TOTAL_AMT,S2YR-1,FFUND_CODE,TBOR_SNP_FUND,NALL FUNDS
B2: ="Changes For FY" &(TEXT(ASD,"YYYY")) -> Changes For FY2016
B3: Kennesaw State University
B4: Statement of Net Position | G4: SNP
B5: ="June 30, " &(TEXT(ASD,"YYYY")) -> June 30, 2016 | G5: JBFREEMAN
G6: 2016-06-30
G7: GASB_STATEMENT_OF_NET_POSITION
B8: Assets | D8: ="June 30, " &(TEXT(ASD,"YYYY")) -> June 30, 2016 | F8: ="June 30, "&(TEXT(ASD,"YYYY")-1) -> June 30, 2015 | G8: /opt/psoft/psconfig/appserv/prcs/fprod/NVISION/INSTANCE | K8: All Funds except Funds 11921, 80xxx & 90xxxx, unless specifically excluded
B9: Current Assets
A10: %,FACCOUNT,TBOR_SNP_ACCT,NCASH AND CASH EQUIV | B10: Cash and cash equivalents | D10: 82593641.66 | F10: 55947474.01 | K10: 111xxx,112xxx,1181xx,118200,1185xx, 1191xx, 1192xx, 1193xx,1194xx
A11: %,FACCOUNT,TBOR_SNP_ACCT,NSHORTTERM INVESTMENT | B11: Short-term investments | D11: 0 | F11: 0 | K11: 1198xx
B12: Accounts receivable, net
A13: %,FACCOUNT,TBOR_SNP_ACCT,NREC FED FIN ASSIST,FFUND_CODE,TBOR_SNP_FUND,NSACS FUNDS,NOTHER OPERATIONS,NENDOWMENT,NEXPENDABLE,NBENEFITS | B13: Rec.-Federal Financial Assistance | D13: 1824929.68 | F13: 5137754.57 | K13: 124xxx | L13: (Except funds 12xxx)
A14: %,FACCOUNT,TBOR_SNP_ACCT,NREC STATE GEN APPROP,FFUND_CODE,TBOR_SNP_FUND,NSACS FUNDS,NOTHER OPERATIONS,NENDOWMENT,NEXPENDABLE,NBENEFITS | B14: Rec. State General Appropriations | D14: 0 | F14: 0 | K14: 123xxx | L14: (Except funds 12xxx)
A15: %,FACCOUNT,TBOR_SNP_ACCT,NREC OTHER | B15: Rec.- Other | D15: 6226366.37 | F15: 6657193.2 | K15: 12xxxx (except for 122xxx, 123xxx, 124xxx, 1260xx, 1268xx,1269xx)
A16: %,FACCOUNT,TBOR_SNP_ACCT,NDUE_AFFILIATED_ORG | B16: Due From Affiliated Organizations | D16: 6358992.68 | F16: 4604168.07 | K16: 1268xx
A17: %,FACCOUNT,TBOR_SNP_ACCT,NINVENTORIES | B17: Inventories | D17: 4184884.71 | F17: 3023418.96 | K17: 141xxx,142xxx
A18: %,FACCOUNT,TBOR_SNP_ACCT,NPREPAID ITEMS | B18: Prepaid Items | D18: 1196270.38 | F18: 1285097.98 | K18: 13xxxx
A19: %,FACCOUNT,TBOR_SNP_ACCT,NOTHER ASSETS | B19: Other assets | D19: 0 | F19: 0 | K19: 1260xx, 2180xx
B20: Total Current Assets | D20: =SUM(D10:D19) -> 102385085.5 | F20: =SUM(F10:F19) -> 76655106.79
B22: Noncurrent Assets
A23: %,FACCOUNT,TBOR_SNP_ACCT,NNONCURRENT CASH | B23: Noncurrent Cash (Externally Restricted) | D23: 0 | F23: 0 | K23: 1580xx, 1581xx
A24: %,FACCOUNT,TBOR_SNP_ACCT,NSHORT TERM INVEST | B24: Short-Term Investments (Externally Restricted) | D24: 68695.19 | F24: 52901.29 | K24: 1582xx
A25: %,FACCOUNT,TBOR_SNP_ACCT,NINVESTMENTS,FFUND_CODE,TBOR_SNP_FUND,NOTHER OPERATIONS,NENDOWMENT | B25: Investments (Externally Restricted) | D25: 4206825.25 | F25: 679888.35 | K25: 15xxxx (except 158xxx) for Funds 2xxxx, 30xxx, 40xxx, 41xxx
A26: %,FACCOUNT,TBOR_SNP_ACCT,NDUE AFFILIATED ORG | B26: Due From Affiliated Organizations | D26: 0 | F26: 0 | K26: 1269xx (Except 126960 and 126970)
A27: %,FACCOUNT,TBOR_SNP_ACCT,NDUE FROM USO | B27: Due From USO - Capital Liability Reserve Fund | D27: 2098530.5 | F27: 1482586.04 | K27: 126960
A28: %,FACCOUNT,TBOR_SNP_ACCT,NDUE FROM INSTITUTION | B28: Due From Institutions - Capital Liability Reserve Fund | D28: 0 | F28: 0 | K28: 126970
A29: %,FACCOUNT,TBOR_SNP_ACCT,NINVESTMENTS,FFUND_CODE,TBOR_SNP_FUND,NAUXILIARY_SERVICES,NSACS FUNDS,NEXPENDABLE,NBENEFITS | B29: Investments | D29: 0 | F29: 0 | K29: 15xxxx (except 158xxx) for all Funds except 2xxxx, 30xxx, 40xxx, 41xxx
A30: %,FACCOUNT,TBOR_SNP_ACCT,NNOTES RECEIVABLE | B30: Notes receivable, net | D30: 625565.64 | F30: 516363.13 | K30: 122xxx
A31: %,FACCOUNT,TBOR_SNP_ACCT,NCAPITAL ASSETS | B31: Capital assets, net | D31: 645049813.9 | F31: 496515070.3 | K31: 16xxxx
B32: Other assets
B33: Total Noncurrent Assets | D33: =SUM(D23:D32) -> 652049430.4 | F33: =SUM(F23:F32) -> 499246809.1
B34: TOTAL ASSETS | D34: =SUM(D20+D33) -> 754434515.9 | F34: =SUM(F20+F33) -> 575901915.9
B36: Deferred Outflows of Resources
A37: %,FACCOUNT,TBOR_SNP_ACCT,NDEFERRED DEBT REF | B37: Deferred Amount on Debt Refunding | D37: 1141664.21 | F37: 0 | K37: 170100
A38: %,FACCOUNT,TBOR_SNP_ACCT,NDEFERRED PENSION | B38: Deferred Amount on Defined Benefit Pension Plan | D38: 14551373.42 | F38: 9505457.64 | K38: 170200
A39: %,FACCOUNT,TBOR_SNP_ACCT,NDEFERRED REV OTHER | B39: Other Deferred Outflows of Resources | D39: 0 | F39: 0 | K39: 1700xx, 170900
B40: Total Deferred Outflows of Resources | D40: =SUM(D37:D39) -> 15693037.63 | F40: =SUM(F37:F39) -> 9505457.64
B42: LIABILITIES
B43: Current Liabilities
A44: %,R,FACCOUNT,TBOR_SNP_ACCT,NACCOUNTS PAYABLE | B44: Accounts Payable | D44: 15888924.87 | F44: 12885234.34 | K44: 2110xx, 2114xx, 2115xx, 2116xx, 2118xx, 211999, 2122xx, 213xxx, 215xxx, 2198xx, 2199xx, 221xxx, 222xxx, 223xxx, 224xxx, 225xxx, 226xxx, 227xxx, 228xxx, 229xxx, 2182xx, 2185xx, 2187xx
A45: %,R,FACCOUNT,TBOR_SNP_ACCT,NSALARIES PAYABLE | B45: Salaries Payable | D45: 911130.25 | F45: 329856.71 | K45: 2121xx
A46: %,R,FACCOUNT,TBOR_SNP_ACCT,NBENEFITS | B46: Benefits Payable | D46: 609644.03 | F46: 558332.81 | K46: 23xxxx, 291700
A47: %,R,FACCOUNT,TBOR_SNP_ACCT,NCONTRACTS PAYABLE | B47: Contracts Payable | D47: 110894.25 | F47: 206341.8 | K47: 2119xx except 21195x, 21197x, and 211999
A48: %,R,FACCOUNT,TBOR_SNP_ACCT,NRETAINAGES_PAYABLE | B48: Retainages Payable | D48: 285479.28 | F48: 0 | K48: 21195x and 21197x
A49: %,R,FACCOUNT,TBOR_SNP_ACCT,NDEPOSITS | B49: Deposits | D49: 48027.44 | F49: 15000 | K49: 214xxx
A50: %,R,FACCOUNT,TBOR_SNP_ACCT,NDEFERRED REVENUE | B50: Advances (Including Tuition & Fees) | D50: 16213360.84 | F50: 11766350.54 | K50: 216xxx,217xxx
A51: %,R,FACCOUNT,TBOR_SNP_ACCT,NOTHER LIABILITIES | B51: Other liabilities | D51: 246706.49 | F51: 0 | K51: 2191xx except for 219101, 219102, 219103, 219104, 219105
A52: %,R,FACCOUNT,TBOR_SNP_ACCT,NDEPOSITS FOR OTHERS | B52: Deposits held for other organizations | D52: 1779525.99 | F52: 1343911.24 | K52: 24xxxx,25xxxx
A53: %,R,FACCOUNT,TBOR_SNP_ACCT,NLEASE PURCHASE | B53: Lease Purchase Obligations | D53: 9206846.08 | F53: 6338530.33 | K53: 2194xx
A54: %,R,FACCOUNT,TBOR_SNP_ACCT,NCOMP ABSENCE | B54: Compensated absences | D54: 7402522.75 | F54: 5853467.56 | K54: 2871xx
A55: %,R,FACCOUNT,TBOR_SNP_ACCT,NDUE_2_AFFILIATED_ORG | B55: Due to Affiliated Organizations | D55: 941861.75 | F55: 1486705.22 | K55: 2188xx
A56: %,R,FACCOUNT,TBOR_SNP_ACCT,NDUE_2_USO | B56: Due to USO - Capital Liability Reserve Fund | D56: 0 | F56: 0 | K56: 218100
A57: %,R,FACCOUNT,TBOR_SNP_ACCT,NNOTES PAYABLE | B57: Notes and Loans Payable | D57: 0 | F57: 0 | K57: 2195xx
A58: %,R,FACCOUNT,TBOR_SNP_ACCT,NPOLLUTION_REMED_CURR | B58: Pollution Remediation | D58: 0 | F58: 0 | K58: 219101
A59: %,R,FACCOUNT,TBOR_SNP_ACCT,NCLAIMS AND JUDGEMENT | B59: Claims and Judgements | D59: 0 | F59: 0 | K59: 219103
B60: Total Current Liabilities | D60: =SUM(D44:D59) -> 53644924.02 | F60: =SUM(F44:F59) -> 40783730.55
B61: Noncurrent Liabilities
A62: %,R,FACCOUNT,TBOR_SNP_ACCT,NLEASE PURCHASE NC | B62: Lease Purchase Obligations | D62: 293151579.6 | F62: 232782222.3 | K62: 2911xx
A63: %,R,FACCOUNT,TBOR_SNP_ACCT,NADVANCES | B63: Advances (Including Tuition & Fees) | D63: 0 | F63: 0 | K63: 2913xx,2914xx
A64: %,R,FACCOUNT,TBOR_SNP_ACCT,NCOMP ABSENCES | B64: Compensated Absences | D64: 3343571.76 | F64: 3246761.79 | K64: 2971xx
A65: %,R,FACCOUNT,TBOR_SNP_ACCT,NDUE TO USO NC | B65: Due to USO - Capital Liability Reserve Fund | D65: 0 | F65: 0 | K65: 218101
A66: %,R,FACCOUNT,TBOR_SNP_ACCT,NNET PENSION LIAB | B66: Net Pension Liability | D66: 127382189 | F66: 84108613 | K66: 2915xx
A67: %,R,FACCOUNT,TBOR_SNP_ACCT,NOTHER POST EMP BENEF | B67: Other Post-Employment Benefit Liability | D67: 0 | F67: 0 | K67: 291600
A68: %,R,FACCOUNT,TBOR_SNP_ACCT,NOTHER LIABILITIES NC | B68: Other liabilities | D68: 0 | F68: 0 | K68: 219105
A69: %,R,FACCOUNT,TBOR_SNP_ACCT,NDUE_2_AFFIL_ORG_NC | B69: Due To Affiliated Organizations | D69: 0 | F69: 0 | K69: 2189xx
A70: %,R,FACCOUNT,TBOR_SNP_ACCT,NNOTES AND LOANS NC | B70: Notes and Loans Payable | D70: 0 | F70: 0 | K70: 2912xx
A71: %,R,FACCOUNT,TBOR_SNP_ACCT,NPOLLUTION_REMED | B71: Pollution Remediation | D71: 0 | F71: 0 | K71: 219102
A72: %,R,FACCOUNT,TBOR_SNP_ACCT,NCLAIMS AND JUDGE NC | B72: Claims and Judgements | D72: 0 | F72: 0 | K72: 219104
B73: Total Noncurrent Liabilities | D73: =SUM(D62:D72) -> 423877340.3 | F73: =SUM(F62:F72) -> 320137597.1
B74: TOTAL LIABILITIES | D74: =SUM(D60+D73) -> 477522264.3 | F74: =SUM(F60+F73) -> 360921327.7
B76: Deferred Inflows of Resources
A77: %,R,FACCOUNT,TBOR_SNP_ACCT,NDEFERRED GAIN DEBT | B77: Deferred gain on debt refunding | D77: 1273145.94 | F77: 0 | K77: 2981xx
A78: %,R,FACCOUNT,TBOR_SNP_ACCT,NDEFERRED GRANTS REC | B78: Deferred Grants Received in Advance of Timing Requirement | D78: 0 | F78: 0 | K78: 2984xx
A79: %,R,FACCOUNT,TBOR_SNP_ACCT,NDEFERRED SERVICE CON | B79: Deferred service concession arrangement receipts | D79: 67137916.29 | F79: 70720105.71 | K79: 2983xx
A80: %,R,FACCOUNT,TBOR_SNP_ACCT,NDEFERRED DEFINED BEN | B80: Deferred Defined Benefit Pension Plan | D80: 11862812.36 | F80: 31183407 | K80: 2982xx
A81: %,R,FACCOUNT,TBOR_SNP_ACCT,NDEFERRED OTHER | B81: Other Deferred Inflows of Resources | D81: 0 | F81: 0 | K81: 2980xx, 2989xx
B82: Total Deferred Inflows of Resources | D82: =SUM(D77:D81) -> 80273874.59 | F82: =SUM(F77:F81) -> 101903512.7
B84: NET POSITION
A85: %,R,FACCOUNT,TBOR_SNP_ACCT,NNET INVEST CAP ASSET,SPER0to999 | B85: Net Invested in Capital Assets | D85: 274600389.2 | F85: 186674212 | K85: 311xxx
B86: Restricted for
A87: %,R,FACCOUNT,TBOR_SNP_ACCT,NNONEXPENDABLE,FFUND_CODE,TBOR_SNP_FUND,NENDOWMENT,SPER0to999 | B87: Nonexpendable | D87: 4091172.19 | F87: 547563.86 | K87: 360xxx, Fund 40000
A88: %,R,FACCOUNT,TBOR_SNP_ACCT,NEXPENDABLE,FFUND_CODE,TBOR_SNP_FUND,NAUXILIARY_SERVICES,NOTHER ORGANIZATIONS,NEXPENDABLE,NBENEFITS,SPER0to999 | B88: Expendable | D88: 928874.25 | F88: 695590.59 | K88: 371xxx (funds 12xxx, 20xxx 21xxx, 30xxx, 31xxx, 40xxx, 41xxx, 42xxx and 50xxx) | L88: Include Fund 11922 for USO
A89: %,R,FACCOUNT,TBOR_SNP_ACCT,NUNRESTRICTED,SPER0to999 | B89: Unrestricted | D89: -67289021.07 | F89: -65334833.31 | K89: 321xxx,322xxx,323xxx,329xxx,34xxxx, (371xxx for funds 11922 & 11923)
B90: TOTAL NET POSITION | D90: =SUM(D85:D89) -> 212331414.6 | F90: =SUM(F85:F89) -> 122582533.1
B93: Calculation check point | D93: =SUM((D34+D40)-(D74+D82))-D90 -> -0.002000033855 | F93: =SUM((F34+F40)-(F74+F82))-F90 -> 0
B94: (If not -0-, find problem)
B96: ="Report ID: "&RID -> Report ID: SNP
B97: ="Layout Name: "&LYN -> Layout Name: GASB_STATEMENT_OF_NET_POSITION
B98: ="Operator: "&OPR -> Operator: JBFREEMAN
B99: ="Instance Directory: "&IDN -> Instance Directory: /opt/psoft/psconfig/appserv/prcs/fprod/NVISION/INSTANCE
B100: ="Run Date: "&TEXT(NvsEndTime,"mmmm dd, yyyy at HH:MM") -> Run Date: March 10, 2017 at 09:32
B114: Version | D114: 5.15
B116: Change Information
B117: Release | D117: Date | E117: Developer | G117: Change Request and Details
B118: 8.9 | D118: 2008-04-30 | F118: Lina B. | G118: TSK40399
B119: 1.09 | D119: 2009-02-24 | F119: Lina B. | G119: TSK45631 | H119: PERFORMANCE
B120: 1.10 | D120: 2009-03-24 | F120: Lina B. | G120: TSK49269
B121: 1.10a | D121: 2009-06-02 | F121: Lina B. | G121: RFC347 | H121: For non current cas- prior year needed to use 158xxx. After this year, go back to 1581xx for both current and prior- remove logic in cell
D123: 2006-03-30 | F123: Rod Reynolds | G123: Chg.5647, task 15823
B124: Entire Net asset section was reformatted to be Number with "," separator on 2/12/2008 but not released.
B127: 2.09 | D127: 2010-01-31 | F127: Lina | G127: RFC 4796;tsk5312 | H127: ACCOUNT and Report_funds tree change for lines 24 and 26.
B128: 2.12 | D128: 2010-02-08 | F128: Lina | G128: RFC3010;tsk6902
B129: 2.18 | D129: 2011-03-11 | F129: Michael Campbell | J129: fye 2011 - only change was the row descriptions.
B130: 2.18 | D130: 2011-04-15 | F130: Michael Campbell | J130: Tsk 12226 | K130: Remediation for Non-current Assets > investments line. Needed to correct by adding federal_loans which was added to the mapping in fy 2009 and developed by Lina Brennan.
B131: ad hoc release | D131: 2011-07-12 | F131: Michael Campbell | J131: tsk 13217 | K131: Per a request from Vikki Williamson/Fiscal Affairs (see below), we need to make the following change to the GASB SNA
K132: report:
K133: Row 34, Line 18 Include accounts 229xxx
B134: 2.7 | D134: 2013-04-12 | F134: RMullinix | J134: TSK18694 | K134: Extended check point formula; wording changes
B135: 3.2 | D135: 2014-04-18 | F135: Yvonne Howington | J135: TSK21564 | K135: Added new accounts Deferred Outflows/Deferred Inflows, multiple name changes.
B136: 4 | D136: 2015-01-12 | F136: Robert Prescott | J136: TSK22593 | K136: 9.2 Upgrade
B137: 4.2 | D137: 2015-04-24 | F137: RMullinix | J137: TSK24936 | K137: expanded various lines/broke out single lines into multiple lines for various account ranges
B138: 5 | D138: 2015-09-30 | F138: Rmullinix | J138: TSK26266 | K138: prepare for switch to unix processing
B139: 5.13 | D139: 2016-04-13 | F139: Yvonne Howington | J139: TSK27621 | K139: Extensive changes/new trees
B140: 5.14 | D140: 2016-05-09 | F140: Mpaktinat | J140: tsk27801 | K140: Update Accounts Payable with additional range
B141: 5.15 | D141: 2016-06-16 | F141: Mpaktinat | J141: tsk28049 | K141: Update OTHER ORGANIZATIONS funds

Sheet SRECNP
A1: %,QBOR_GASB_LEDGER_NVS,CA.POSTED_TOTAL_AMT,FFUND_CODE,TBOR_SRECNP_FUND,NALL FUNDS | D1: %,S2YEAR | F1: %,S2YR-1
B2: Kennesaw State University | K2: SRECNP
B3: Statement of Revenue Expenses and Changes in Net Position | K3: GASB_SRECNP
B4: ="For the Year Ended: "&TEXT(ASD,"mmmm dd, yyyy") -> For the Year Ended: June 30, 2016 | K4: JBFREEMAN
K5: 2016-06-30
D6: Current Year | F6: Prior Year | K6: /opt/psoft/psconfig/appserv/prcs/fprod/NVISION/INSTANCE
D7: ="June 30, " &(TEXT(ASD, "yyyy")) -> June 30, 2016 | F7: ="June 30, " &(TEXT(ASD,"yyyy") - 1) -> June 30, 2015 | I7: All Funds except Funds 11921, 80xxx & 90xxxx, unless specifically excluded
B9: REVENUES
B10: Operating Revenues
A12: %,R,FACCOUNT,TBOR_SRECNP_ACCT,NTUITION_AND_FEES,FFUND_CODE,TBOR_SRECNP_FUND,NSACS FUNDS,NENDOWMENT,NOTHER OPERATIONS | B12: Student tuition and fees (net) | D12: 183761639.1 | F12: 137157171.6 | I12: 40xxxx, 453xxx, and 454xxx | J12: except fund 12xxx
A13: %,R,FACCOUNT,TBOR_SRECNP_ACCT,NFEDERAL APPROP,FFUND_CODE,TBOR_SRECNP_FUND,NSACS FUNDS,NENDOWMENT,NOTHER OPERATIONS | B13: Federal appropriations | D13: 0 | F13: 0 | I13: 4111xx | J13: except fund 12xxx
B14: Grants and Contracts
A15: %,R,FACCOUNT,TBOR_SRECNP_ACCT,NFEDERAL GRANTS,FFUND_CODE,TBOR_SRECNP_FUND,NSACS FUNDS,NENDOWMENT,NOTHER OPERATIONS | B15: Federal | D15: 2259989.03 | F15: 1734442.59 | I15: 421xxx, 4721xx, 425998 | J15: except fund 12xxx
A16: %,R,FACCOUNT,TBOR_SRECNP_ACCT,NSTATE GRANTS CONTRAC,FFUND_CODE,TBOR_SRECNP_FUND,NSACS FUNDS,NENDOWMENT,NOTHER OPERATIONS | B16: State | D16: 888461 | F16: 804561.45 | I16: 422xxx, 4722xx | J16: except fund 12xxx
A17: %,R,FACCOUNT,TBOR_SRECNP_ACCT,NOTHER,FFUND_CODE,TBOR_SRECNP_FUND,NSACS FUNDS,NENDOWMENT,NOTHER OPERATIONS | B17: Other | D17: 99734.74 | F17: 167296.23 | I17: 423xxx,4723xx,424xxx,4724xx | J17: except fund 12xxx
A18: %,R,FACCOUNT,TBOR_SRECNP_ACCT,NSALES AND SERVICES,FFUND_CODE,TBOR_SRECNP_FUND,NSACS FUNDS,NENDOWMENT,NOTHER OPERATIONS | B18: Sales and Service | D18: 12733728.47 | F18: 9251473.41 | I18: 441xxx, 449xxx, 452xxx, 4600xx | J18: except fund 12xxx
A19: %,R,FACCOUNT,TBOR_SRECNP_ACCT,NRENTS AND ROYALTIES,FFUND_CODE,TBOR_SRECNP_FUND,NSACS FUNDS,NENDOWMENT,NOTHER OPERATIONS | B19: Rents and Royalties | D19: 1077825.33 | F19: 467837.12 | I19: 451xxx | J19: except fund 12xxx
B20: Auxiliary enterprises
A21: %,R,FACCOUNT,TBOR_SRECNP_ACCT,NAUXILIARY ENTERPRISE,FFUND_CODE,TBOR_SRECNP_FUND,NRESIDENCE HALLS | B21: Residence Halls | D21: 16550764.98 | F21: 4866366.82 | I21: Accounts 40xxxx through 479999(excluding 4711xx); (fund 12210)
A22: %,R,FACCOUNT,TBOR_SRECNP_ACCT,NAUXILIARY ENTERPRISE,FFUND_CODE,TBOR_SRECNP_FUND,NBOOKSTORE | B22: Bookstore | D22: 15178645.29 | F22: 14155623.58 | I22: Accounts 40xxxx through 479999(excluding 4711xx); (fund 12230)
A23: %,R,FACCOUNT,TBOR_SRECNP_ACCT,NAUXILIARY ENTERPRISE,FFUND_CODE,TBOR_SRECNP_FUND,NFOOD SERVICES | B23: Food Services | D23: 26500273.85 | F23: 16172983.87 | I23: Accounts 40xxxx through 479999(excluding 4711xx); (fund 12220)
A24: %,R,FACCOUNT,TBOR_SRECNP_ACCT,NAUXILIARY ENTERPRISE,FFUND_CODE,TBOR_SRECNP_FUND,NTRANSPORT AND PARK | B24: Parking/Transportation | D24: 9806644.49 | F24: 9211389.42 | I24: Accounts 40xxxx through 479999(excluding 4711xx); (fund 12250)
A25: %,R,FACCOUNT,TBOR_SRECNP_ACCT,NAUXILIARY ENTERPRISE,FFUND_CODE,TBOR_SRECNP_FUND,NHEALTH SERVICES | B25: Health Services | D25: 3384931.75 | F25: 2670044.97 | I25: Accounts 40xxxx through 479999(excluding 4711xx); (fund 12240)
A26: %,R,FACCOUNT,TBOR_SRECNP_ACCT,NAUXILIARY ENTERPRISE,FFUND_CODE,TBOR_SRECNP_FUND,NATHLETICS | B26: Intercollegiate Athletics | D26: 14629503.56 | F26: 13264140.21 | I26: Accounts 40xxxx through 479999(excluding 4711xx); (fund 12280)
A27: %,R,FACCOUNT,TBOR_SRECNP_ACCT,NAUXILIARY ENTERPRISE,FFUND_CODE,TBOR_SRECNP_FUND,NOTHER ORGANIZATIONS | B27: Other Organizations | D27: 4912067.18 | F27: 602884.99 | I27: Accounts 40xxxx through 479999(excluding 4711xx); (funds 12260, 12270)
A28: %,R,FACCOUNT,TBOR_SRECNP_ACCT,NOTHER OPERATIONS,FFUND_CODE,TBOR_SRECNP_FUND,NSACS FUNDS,NENDOWMENT,NOTHER OPERATIONS | B28: Loan Funds revenue (hide this line) | D28: 1574078.75 | F28: 1232876.66 | I28: 4131xx,442xxx,470xxx, 473xxx, 478xxx; | J28: except fund 12xxx
A29: %,R,FACCOUNT,TBOR_SRECNP_ACCT,NOPERATING,FFUND_CODE,TBOR_SRECNP_FUND,NOTHER OPERATIONS | B29: HIDE THIS LINE | D29: 235751.18 | F29: 37074.47 | I29: Funds 30 and 31 only:(431xxx,486xxx)
A30: %,R,FACCOUNT,TBOR_SRECNP_ACCT,NOTHER ASSETS | B30: HIDE THIS LINE2 | D30: 171880.08 | F30: 3644287.11
B31: Other operating revenues | D31: =D28+D29+D30 -> 1981710.01 | F31: =SUM(F28:F30) -> 4914238.24 | I31: All Funds except 12xxx: (4131xx,442xxx,470xxx,473xxx, 477xxx, 478xxx); Funds 30 and 31 only:(431xxx,486xxx); All Funds: (492xxx, 494500)
B32: TOTAL OPERATING REVENUE | D32: =SUM(D12:D27,D31) -> 293765918.8 | F32: =SUM(F12:F27,F31) -> 215440454.5
B34: Expenses
B35: Operating expenses
B36: Salaries:
A37: %,FACCOUNT,TBOR_SRECNP_ACCT,NFACULTY SALARY | B37: Faculty | D37: 91519563.8 | F37: 68453477.06 | I37: 51xxxx, 53xxxx,
A38: %,FACCOUNT,TBOR_SRECNP_ACCT,NSTAFF SALARY | B38: Staff | D38: 118429213.7 | F38: 90826862.39 | I38: 52xxxx, 54xxxx
A39: %,FACCOUNT,TBOR_SRECNP_ACCT,NBENEFITS | B39: Benefits | D39: 56683987.78 | F39: 40693163.58 | I39: 55xxxx
A40: %,FACCOUNT,TBOR_SRECNP_ACCT,NOTHER PER SERVICES | B40: Other personal services | D40: 1183384.76 | F40: 611598.85 | I40: 56xxxx, 59xxxx,723xxx
A41: %,FACCOUNT,TBOR_SRECNP_ACCT,NTRAVEL | B41: Travel | D41: 3334112.37 | F41: 2737711.47 | I41: 6xxxxx (except 65xxxx)
A42: %,FACCOUNT,TBOR_SRECNP_ACCT,NSCHOLARSHIP_FELLOWS | B42: Scholarships and fellowships | D42: 28056837.27 | F42: 21257381.35 | I42: 78xxxx
A43: %,FACCOUNT,TBOR_SRECNP_ACCT,NUTILITIES | B43: Utilities | D43: 9736609.95 | F43: 6411790.95 | I43: 717xxx,771xxx
A44: %,FACCOUNT,TBOR_SRECNP_ACCT,NSUPPLIES | B44: Supplies and other services | D44: 116524818.3 | F44: 86525881.14 | I44: 65xxxx,700xxx,702xxx->704xxx, 712xxx,714xxx,715xxx,719xxx->722xxx, 724xxx, 725xxx, 726xxx, 727xxx, 733xxx, 734xxx, 735xxx, 742xxx -> 744xxx, 748xxx, 751xxx -> 753xxx, 798xxx, 799990,800000 -> 889xxx (except 8182xx), 9xxxxx (except 99999x),4711xx, 7281xx
A45: %,FACCOUNT,TBOR_SRECNP_ACCT,NDEPRECIATION | B45: Depreciation | D45: 31708532.5 | F45: 22286987.02 | I45: 8901xx, 890900
B46: TOTAL OPERATING EXPENSES | D46: =SUM(D37:D45) -> 457177060.4 | F46: =SUM(F37:F45) -> 339804853.8
B47: OPERATING INCOME (LOSS) | D47: =D32-D46 -> -163411141.6 | F47: =F32-F46 -> -124364399.3
B49: NONOPERATING REVENUES (EXPENSES)
A50: %,R,FACCOUNT,TBOR_SRECNP_ACCT,NSTATE APPROPRIATIONS | B50: State appropriations | D50: 115692680 | F50: 84261441.23 | I50: 4801xx, 4802xx
B51: Grants and Contracts
A52: %,R,FACCOUNT,TBOR_SRECNP_ACCT,NEXP FED GRANTS | B52: Federal | D52: 55400093.82 | F52: 44061957.94 | I52: 4911xx, 4941xx, 4919xx
A53: %,R,FACCOUNT,TBOR_SRECNP_ACCT,NEXP STATE GRANTS | B53: State | D53: 148618.99 | F53: 16524.38 | I53: 4912xx,4942xx
A54: %,R,FACCOUNT,TBOR_SRECNP_ACCT,NEXP OTHER | B54: Other | D54: 4645486.81 | F54: 4718552.65 | I54: 4913xx,4914xx,4943xx,4944xx
A55: %,R,FACCOUNT,TBOR_SRECNP_ACCT,NGIFTS,FFUND_CODE,TBOR_SRECNP_FUND,NGIFTS | B55: Gifts | D55: 2961655.47 | F55: 1121481.9 | I55: 4851xx,4853xx,4855xx,4857xx, 4859xx for all funds except 4xxxx
A56: %,R,FACCOUNT,TBOR_SRECNP_ACCT,NINVESTMENT INCOME | B56: Hide this row | D56: 65190.6 | F56: -52392.91 | I56: 481xxx->484xxx,4932xx, 487xxx>490xxx, 4934xx,4951xx
A57: %,R,FACCOUNT,TBOR_SRECNP_ACCT,NINVESTMENTS,FFUND_CODE,TBOR_SRECNP_FUND,NAUXILIARY_SERVICES,NSACS FUNDS,NENDOWMENT | B57: Hide this row | D57: 284970.06 | F57: 332104.238 | I57: 486xxx (except Funds 30 and 31)
B58: Investment income | D58: =SUM(D56:D57) -> 350160.66 | F58: =SUM(F56:F57) -> 279711.328 | I58: 481xxx->484xxx,4932xx, 486xxx (except Funds 30 and 31), 487xxx>490xxx, 4934xx,4951xx
A59: %,R,FACCOUNT,TBOR_SRECNP_ACCT,NINTEREST EXPENSE | B59: Interest expense | D59: -17167064.58 | F59: -14168273.24 | I59: 8182xx
A60: %,R,FACCOUNT,TBOR_SRECNP_ACCT,NOTHER NONOPERATING | B60: Other nonoperating revenues and expenses | D60: -401072.85 | F60: -23484.84 | I60: 4931xx,4933xx, 499xxx, 792xxx, 498998
B61: NET NONOPERATING REVENUES | D61: =SUM(D50:D55,D58:D60) -> 161630558.3 | F61: =SUM(F50:F55,F58:F60) -> 120267911.3
B62: INCOME BEFORE OTHER REVENUES, EXPENSES, GAINS, OR LOSS | D62: =SUM(D47+D61) -> -1780583.296 | F62: =SUM(F47+F61) -> -4096487.972
B64: Capital Grants and gifts
A65: %,R,FACCOUNT,TBOR_SRECNP_ACCT,NCAP GRANTS FED | B65: Federal | D65: 0 | F65: 0 | I65: 4852xx
A66: %,R,FACCOUNT,TBOR_SRECNP_ACCT,NCAP GRANTS STATE | B66: State | D66: 15152176.3 | F66: 2089849.64 | I66: 4854xx
A67: %,R,FACCOUNT,TBOR_SRECNP_ACCT,NCAP GRANTS OTHER | B67: Other | D67: 5925191.79 | F67: 48219 | I67: 4856xx,4858xx
A68: %,R,FACCOUNT,TBOR_SRECNP_ACCT,NADD PERM ENDOWMENT,FFUND_CODE,TBOR_SRECNP_FUND,NENDOWMENTS | B68: Additions to permanent endowments | D68: 0 | F68: 0 | I68: 4851xx, 4853xx, 4855xx, 4857xx,4859xx Funds 4xxxx
A69: %,R,FACCOUNT,TBOR_SRECNP_ACCT,NSPECIAL ITEM | B69: Special Item | D69: 0 | F69: 0 | I69: 497xxx
B70: TOTAL OTHER REVENUES | D70: =SUM(D65:D69) -> 21077368.09 | F70: =SUM(F65:F69) -> 2138068.64
B71: INCREASE IN NET POSITION | D71: =SUM(D62+D70) -> 19296784.79 | F71: =SUM(F62+F70) -> -1958419.332
B74: Net Position
A75: %,R,FACCOUNT,TBOR_SRECNP_ACCT,NNET POSITION | B75: Net position - beginning of year, as originally reported | D75: 193034629.8 | F75: 124570751.5 | I75: Period 0 through Period 12, acct 3xxxxx
B76: Prior year adjustments
B77: Net position - beginning of year, restated | D77: =SUM(D75+D76) -> 193034629.8 | F77: =SUM(F75+F76) -> 124570751.5
B78: Net position - end of year | D78: =SUM(D71+D77) -> 212331414.6 | F78: =SUM(F71+F77) -> 122612332.2
B83: ="Report ID: "&RID -> Report ID: SRECNP
B84: ="Layout Name: "&LYN -> Layout Name: GASB_SRECNP
B85: ="Operator: "&OPR -> Operator: JBFREEMAN
B86: ="Instance Directory: " &IDN -> Instance Directory: /opt/psoft/psconfig/appserv/prcs/fprod/NVISION/INSTANCE
B87: ="Run Date: "&TEXT(NvsEndTime,"mmmm dd, yyyy at HH:MM") -> Run Date: March 10, 2017 at 09:32
B93: Version 9.2 | D93: 5.15
B95: Release | D95: Date | F95: Developer | I95: Change Request and Details
D96: 2008-04-30 | F96: Lina | I96: TSK40400
B97: 1.09 | D97: 2009-02-10 | F97: Lina | I97: TSK45631 | J97: Replaced Fund and Program logic with Fund logic ONLY in the Auxiliary Section.
B98: 1.10 | D98: 2009-03-24 | F98: Lina | I98: TSK49270
B99: 1.10a | D99: 2009-05-28 | F99: Lina | I99: added acct 4919xx to fed grants and contracts
B100: 1.10a | D100: 2009-06-02 | F100: Lina | I100: added acct 498998 to other nonop rev tree node
B101: 2.09 | D101: 2009-11-17 | F101: Lina | I101: RFC4796;TSK5313
B102: 2.12 | D102: 2010-02-08 | F102: Lina | I102: RFC3010;TSK6903
B103: 2.18 | D103: 2011-03-14 | F103: Michael Campbell | I103: mst11521tsk11696 changed 56xxxxx account to only change when fy < 2011
B104: ad hoc release | D104: 2011-06-14 | F104: Michael Campbell | I104: mst12831 tsk12832 GL GASB Reports Change | J104: copied and pasted labels and reported the depreciation label change that was not done by the 2009 developer.
B105: 2.7 | D105: 4/12/2013 | F105: Yvonne Howington/John Turcotte | I105: mst18353/tsk18695 | J105: changed descriptions from net assets to net position and srecna to srecnp
B106: 3.2 | D106: 4/17/2014 | F106: Yvonne Howington | I106: tsk21562 | J106: added account 792xxx to line 62
B107: 4 | D107: 2015-01-13 | F107: Robert Prescott | I107: TSK22523 | J107: 9.2 Upgrade
B108: 5 | D108: 2015-09-30 | F108: Rmullinix | I108: TSK26266 | J108: prepare for switch to unix processing
B109: 5.13 | D109: 4/11/2016 | F109: Yvonne Howington | I109: TSK27554 | J109: changes for 2016
B110: 5.14 | D110: 2016-05-16 | F110: Mpaktinat | I110: tsk27805 | J110: update account mapping
B111: 5.15 | D111: 2016-06-16 | F111: Mpaktinat | I111: tsk28047 | J111: Update fund & acct mappings

Sheet CashFlow
I1: %,QBOR_GASB_LEDGER_PER0_NVS,CA.POSTED_TOTAL_AMT,S2YEAR | J1: %,QBOR_GASB_LEDGER_NVS,CA.POSTED_TOTAL_AMT,S2YEAR
C2: Kennesaw State University
C3: Statement of Cash Flows | T3: CASHFLOW
C4: ="For the Fiscal Year Ended: "&TEXT(ASD,"mmmm dd, yyyy") -> For the Fiscal Year Ended: June 30, 2016 | T4: GASB_CASHFLOW
I5: Period 0 = Balance as of period 0 | O5: All Funds except Funds 11921, 80xxx & 90xxxx, unless specifically excluded | T5: JBFREEMAN
I6: Period 12 = ending balance AS OF end of fiscal year periods 0 through 12 | T6: 2016-06-30
C7: Information for this report will come from All Actuals Ledgers
F8: =TEXT(ASD,"mmmm dd, yyyy") -> June 30, 2016 | I8: Period 0 | J8: Period 12 | K8: ="FY" & TEXT(ASD, "YY") & " Net" -> FY16 Net | M8: Effect on Cash
C10: CASH FLOWS FROM OPERATING ACTIVITIES
A12: %,FFUND_CODE,TBOR_CASHFLOW_FUND,NCASHFLOW,FACCOUNT,TBOR_CASHFLOW_ACCT,NTUITION_FEES_REVENUE | B12: 1 | C12: Payments from customers | F12: =M29 -> 292200965.8 | I12: 0 | J12: -183761639.1 | K12: =+J12 -> -183761639.1 | M12: =-K12 -> 183761639.1 | O12: 40xxxx,453xxx, and 454xxx | Q12: Exclude Funds 12xxx, 60xxx, 61xxx, 62xxx | S12: Student Tuition and Fees (net)
A13: %,FFUND_CODE,TBOR_CASHFLOW_FUND,NCASHFLOW,FACCOUNT,TBOR_CASHFLOW_ACCT,NSALES_AND_SERVICES | I13: 0 | J13: -12733728.47 | K13: =+J13 -> -12733728.47 | M13: =-K13 -> 12733728.47 | O13: 441xxx, 449xxx, 452xxx, 4600xx | Q13: Exclude Funds 12xxx, 60xxx, 61xxx, 62xxx | S13: Sales and services
A14: %,FFUND_CODE,TBOR_CASHFLOW_FUND,NAUXILIARY,FACCOUNT,TBOR_CASHFLOW_ACCT,NAUX_REVENUE | I14: 0 | J14: -90962831.1 | K14: -90962831.1 | M14: =-K14 -> 90962831.1 | O14: 40xxxx through 479999 (excluding 4711xx) | Q14: Funds 12xxx only | S14: Auxiliary enterprises
A15: %,FFUND_CODE,TBOR_CASHFLOW_FUND,NLOANS,FACCOUNT,TBOR_CASHFLOW_ACCT,NOTHER_OPERATING_REV | I15: 0 | J15: -235751.18 | O15: *HIDDEN* For Funds 30 and 31 only:(431xxx,486xxx)
A16: %,FFUND_CODE,TBOR_CASHFLOW_FUND,NCASHFLOW,FACCOUNT,TBOR_CASHFLOW_ACCT,NOTHER_OPER_O | I16: 0 | J16: -1574078.75 | O16: *HIDDEN* for 4131xx,442xxx,470xxx, 473xxx, 477xxx, 478xxx
I17: =I15+I16 -> 0 | J17: =J15+J16 -> -1809829.93 | K17: -1809829.93 | M17: 1809829.93 | O17: 4131xx,442xxx,470xxx, 473xxx, 477xxx, 478xxx; Funds 30 and 31 only:(431xxx,486xxx) | Q17: Exclude funds 12xxx, 60xxx, 61xxx, 62xxx | S17: Other operating revenues
A18: %,FFUND_CODE,TBOR_CASHFLOW_FUND,NCASHFLOW,FACCOUNT,TBOR_CASHFLOW_ACCT,NRENTS | I18: 0 | J18: -1077825.33 | K18: -1077825.33 | M18: 1077825.33 | O18: 451xxx | Q18: Exclude funds 12xxx, 60xxx, 61xxx, 62xxx | S18: Rents and Royalties
A19: %,FFUND_CODE,TBOR_CASHFLOW_FUND,NCASHFLOW,NAUXILIARY,NAGENCY,FACCOUNT,TBOR_CASHFLOW_ACCT,NOTHER_OPER_492_494 | I19: 0 | J19: -171880.08 | K19: -171880.08 | M19: 171880.08 | O19: 492xxx, 494500 | S19: Other operating revenues
A20: %,FFUND_CODE,TBOR_CASHFLOW_FUND,NCASHFLOW,NAUXILIARY,FACCOUNT,TBOR_CASHFLOW_ACCT,NPAY_121 | I20: 278055.882 | J20: 733074.02 | K20: =+I20-J20 -> -455018.138 | M20: =K20 -> -455018.138 | O20: 121xxx | Q20: Exclude funds 60xxx, 61xxx, 62xxx
A21: %,FFUND_CODE,TBOR_CASHFLOW_FUND,NCASHFLOW,NAUXILIARY,FACCOUNT,TBOR_CASHFLOW_ACCT,NPAY_126 | I21: 5627176.98 | J21: 6358992.68 | K21: =+I21-J21 -> -731815.7 | M21: =K21 -> -731815.7 | O21: 1261xx -> 1269xx (except 126960, 126970) | Q21: Exclude funds 60xxx, 61xxx, 62xxx
A22: %,FFUND_CODE,TBOR_CASHFLOW_FUND,NCASHFLOW,NAUXILIARY,FACCOUNT,TBOR_CASHFLOW_ACCT,NPAY_127 | I22: 2650055.8 | J22: 850238.85 | K22: 1799816.95 | M22: =K22 -> 1799816.95 | O22: 1270xx, 1271xx | Q22: Exclude funds 60xxx, 61xxx, 62xxx
A23: %,FFUND_CODE,TBOR_CASHFLOW_FUND,NCASHFLOW,NAUXILIARY,FACCOUNT,TBOR_CASHFLOW_ACCT,NPAY_128 | I23: 291419.27 | J23: 158675.96 | K23: 132743.31 | M23: =K23 -> 132743.31 | O23: 128xxx -> 129999 | Q23: Exclude funds 60xxx, 61xxx, 62xxx
A24: %,FFUND_CODE,TBOR_CASHFLOW_FUND,NCASHFLOW,NAUXILIARY,FACCOUNT,TBOR_CASHFLOW_ACCT,NPAY_214 | I24: -56681.81 | J24: -48027.44 | K24: =-I24+J24 -> 8654.37 | M24: -8654.37 | O24: 214xxx | Q24: Exclude funds 60xxx, 61xxx, 62xxx
A25: %,FFUND_CODE,TBOR_CASHFLOW_FUND,NCASHFLOW,NAUXILIARY,FACCOUNT,TBOR_CASHFLOW_ACCT,NPAY_216 | I25: -12632012.59 | J25: -13493509.08 | K25: =-I25+J25 -> -861496.493 | M25: 861496.493 | O25: 216xxx | Q25: Exclude funds 60xxx, 61xxx, 62xxx
A26: %,FFUND_CODE,TBOR_CASHFLOW_FUND,NCASHFLOW,NAUXILIARY,FACCOUNT,TBOR_CASHFLOW_ACCT,NPAY_217 | I26: -2670913.381 | J26: -2719851.76 | K26: -48938.379 | M26: 48938.379 | O26: 217xxx , except 2178xx & 2179xx | Q26: Exclude funds 60xxx, 61xxx, 62xxx
A27: %,FFUND_CODE,TBOR_CASHFLOW_FUND,NCASHFLOW,NAUXILIARY,FACCOUNT,TBOR_CASHFLOW_ACCT,NPAY_2913 | I27: 0 | J27: 0 | K27: 0 | M27: 0 | O27: 2913xx | Q27: Exclude funds 60xxx, 61xxx, 62xxx
A28: %,FFUND_CODE,TBOR_CASHFLOW_FUND,NCASHFLOW,NAUXILIARY,FACCOUNT,TBOR_CASHFLOW_ACCT,NPAY_2198 | I28: 1190191.73 | J28: 1154466.89 | K28: -35724.84 | M28: 35724.84 | O28: 2198xx | Q28: Exclude funds 60xxx, 61xxx, 62xxx
M29: =SUM(M12:M28) -> 292200965.8
A32: %,FFUND_CODE,TBOR_CASHFLOW_FUND,NCASHFLOW,FACCOUNT,TBOR_CASHFLOW_ACCT,NFEDERAL_APPROPS | B32: 2 | C32: Federal appropriations | F32: =M32 -> 0 | I32: 0 | J32: 0 | K32: =+J32 -> 0 | M32: =-K32 -> 0 | O32: 4111xx | Q32: Exclude Funds 12xxx, 60xxx, 61xxx, 62xxx | S32: Federal Appropriations
A34: %,FFUND_CODE,TBOR_CASHFLOW_FUND,NCASHFLOW,FACCOUNT,TBOR_CASHFLOW_ACCT,NGRANTS_CONT_REV_FED | B34: 3 | C34: Grants and contracts (Exchange) | F34: =M44 -> 8940795.58 | I34: 0 | J34: -2259989.03 | K34: =+J34 -> -2259989.03 | M34: =-K34 -> 2259989.03 | O34: 421xxx, 4721xx,425998 | Q34: Exclude Funds 12xxx, 60xxx, 61xxx, 62xxx | S34: Operating Grants and Contracts - Federal
A35: %,FFUND_CODE,TBOR_CASHFLOW_FUND,NCASHFLOW,FACCOUNT,TBOR_CASHFLOW_ACCT,NGRANTS_CONT_REV_FS | I35: 0 | J35: -888461 | K35: =+J35 -> -888461 | M35: =-K35 -> 888461 | O35: 422xxx, 4722xx | Q35: Exclude Funds 12xxx, 60xxx, 61xxx, 62xxx | S35: Operating Grants and Contracts - State
A36: %,FFUND_CODE,TBOR_CASHFLOW_FUND,NCASHFLOW,FACCOUNT,TBOR_CASHFLOW_ACCT,NGRANTS_CONT_REV_ST | I36: 0 | J36: -99734.74 | K36: -99734.74 | M36: 99734.74 | O36: 4724xx, 423xxx, 424xxx, 4723xx | Q36: Exclude Funds 12xxx, 60xxx, 61xxx, 62xxx | S36: Operating Grants and Contracts - Other
A37: %,FFUND_CODE,TBOR_CASHFLOW_FUND,NCASHFLOW,NAUXILIARY,FACCOUNT,TBOR_CASHFLOW_ACCT,NGRANTS_CONT_AM_124 | I37: 3104391.57 | J37: -2674151.58 | K37: =+I37-J37 -> 5778543.15 | M37: =+K37 -> 5778543.15 | O37: 124xxx (except 124996, 124998) | Q37: Exclude Funds 60xxx, 61xxx, 62xxx
A38: %,FFUND_CODE,TBOR_CASHFLOW_FUND,NCASHFLOW,NAUXILIARY,FACCOUNT,TBOR_CASHFLOW_ACCT,NGRANTS_CONT_AM_125 | I38: 57729.49 | J38: 94967.84 | K38: -37238.35 | M38: -37238.35 | O38: 125xxx except 1256xx, 125020 | Q38: Exclude Funds 60xxx, 61xxx, 62xxx
A39: %,FFUND_CODE,TBOR_CASHFLOW_FUND,NCASHFLOW,NAUXILIARY,FACCOUNT,TBOR_CASHFLOW_ACCT,NGRANTS_CONT_AM_1272 | I39: 0 | J39: 239.62 | K39: -239.62 | M39: -239.62 | O39: 1272xx | Q39: Exclude Funds 60xxx, 61xxx, 62xxx
A40: %,FFUND_CODE,TBOR_CASHFLOW_FUND,NCASHFLOW,NAUXILIARY,FACCOUNT,TBOR_CASHFLOW_ACCT,NGRANTS_CONT_AM_1273 | I40: 206047.91 | J40: 254502.28 | K40: -48454.37 | M40: -48454.37 | O40: 1273xx | Q40: Exclude Funds 60xxx, 61xxx, 62xxx
A41: %,FFUND_CODE,TBOR_CASHFLOW_FUND,NCASHFLOW,NAUXILIARY,FACCOUNT,TBOR_CASHFLOW_ACCT,NGRANTS_CONT_LB_2179 | I41: 0 | J41: 0 | K41: =-I41+J41 -> 0 | M41: =-K41 -> 0 | O41: 2179xx | Q41: Exclude Funds 60xxx, 61xxx, 62xxx
A42: %,FFUND_CODE,TBOR_CASHFLOW_FUND,NCASHFLOW,NAUXILIARY,FACCOUNT,TBOR_CASHFLOW_ACCT,NGRANTS_CONT_LB_2914 | I42: 0 | J42: 0 | K42: =-I42+J42 -> 0 | M42: =-K42 -> 0 | O42: 2914xx | Q42: Exclude Funds 60xxx, 61xxx, 62xxx
A43: %,FFUND_CODE,TBOR_CASHFLOW_FUND,NCASHFLOW,NAUXILIARY,FACCOUNT,TBOR_CASHFLOW_ACCT,NGRANTS_CONT_LB_2984 | I43: 0 | J43: 0 | K43: =-I43+J43 -> 0 | M43: =-K43 -> 0 | O43: 2984xx except 298401 | Q43: Exclude Funds 60xxx, 61xxx, 62xxx
M44: =SUM(M34:M43) -> 8940795.58
A47: %,FFUND_CODE,TBOR_CASHFLOW_FUND,NCASHFLOW,NAUXILIARY,FACCOUNT,TBOR_CASHFLOW_ACCT,NPAY_SUPPLRS_EX_BEN | B47: 4 | C47: Payments to suppliers | F47: =M61 -> -189425699.2 | I47: 0 | J47: 56683987.78 | K47: =+J47 -> 56683987.78 | M47: =-K47 -> -56683987.78 | O47: 55xxxx | Q47: Exclude Funds 60xxx, 61xxx, 62xxx | S47: Benefits
A48: %,FFUND_CODE,TBOR_CASHFLOW_FUND,NCASHFLOW,NAUXILIARY,FACCOUNT,TBOR_CASHFLOW_ACCT,NPAY_SUPPLRS_EX_PERS | I48: 0 | J48: 1183384.76 | K48: =+J48 -> 1183384.76 | M48: =-K48 -> -1183384.76 | O48: 56xxxx, 59xxxx, 723xxx | Q48: Exclude Funds 60xxx, 61xxx, 62xxx | S48: Other Personal Services
A49: %,FFUND_CODE,TBOR_CASHFLOW_FUND,NCASHFLOW,NAUXILIARY,FACCOUNT,TBOR_CASHFLOW_ACCT,NPAY_SUPPLRS_EX_UTL | I49: 0 | J49: 9736609.95 | K49: =+J49 -> 9736609.95 | M49: =-K49 -> -9736609.95 | O49: 717xxx, 771xxx | Q49: Exclude Funds 60xxx, 61xxx, 62xxx | S49: Utilities
A50: %,FFUND_CODE,TBOR_CASHFLOW_FUND,NCASHFLOW,NAUXILIARY,FACCOUNT,TBOR_CASHFLOW_ACCT,NPAY_SUPPLRS_EX_SUP | I50: 0 | J50: 116505156.3 | K50: 116505156.3 | M50: =-K50 -> -116505156.3 | O50: 65xxxx, 700xxx, 702xxx -> 704xxx, 712xxx, 714xxx -> 715xxx,719xxx -> 722xxx, 724xxx -> 727xxx (except 727198), 733xxx -> 735xxx, 742xxx -> 744xxx, 748xxx, 751xxx -> 753xxx, 798xxx, 799990, 800000 -> 889xxx (except 8181xx and 8182xx), 9xxxxx (except 99999x), 4711xx, 7281xx | Q50: Exclude Funds 60xxx, 61xxx, 62xxx | S50: Supplies and Other Services (excluding 8181xx)
A51: %,FFUND_CODE,TBOR_CASHFLOW_FUND,NCASHFLOW,NAUXILIARY,FACCOUNT,TBOR_CASHFLOW_ACCT,NPAY_SUPPLRS_AM_131 | I51: 703126.98 | J51: 663331.34 | K51: =+I51-J51 -> 39795.64 | M51: =+K51 -> 39795.64 | O51: 131xxx | Q51: Exclude Funds 60xxx, 61xxx, 62xxx
A52: %,FFUND_CODE,TBOR_CASHFLOW_FUND,NCASHFLOW,NAUXILIARY,FACCOUNT,TBOR_CASHFLOW_ACCT,NPAY_SUPPLRS_AM_1321 | I52: 663265.67 | J52: 502335.87 | K52: =+I52-J52 -> 160929.8 | M52: =+K52 -> 160929.8 | O52: 1321xx, 1324xx, 1329xx, 1331xx, 139xxx | Q52: Exclude Funds 60xxx, 61xxx, 62xxx
A53: %,FFUND_CODE,TBOR_CASHFLOW_FUND,NCASHFLOW,NAUXILIARY,FACCOUNT,TBOR_CASHFLOW_ACCT,NPAY_SUPPLRS_AM_14_17 | I53: 12528876.6 | J53: 18736258.13 | K53: -6207381.53 | M53: -6207381.53 | O53: 14xxxx, 170200 | Q53: Exclude Funds 60xxx, 61xxx, 62xxx
A54: %,FFUND_CODE,TBOR_CASHFLOW_FUND,NCASHFLOW,NAUXILIARY,FACCOUNT,TBOR_CASHFLOW_ACCT,NPAY_SUPPLRS_LB_2110 | I54: -8073366.064 | J54: -9357134.18 | K54: =-I54+J54 -> -1283768.116 | M54: =-K54 -> 1283768.116 | O54: 2110xx, 2114xx (except 211450 & 211499), 2116xx, 211999, 2122xx, 213xxx, 215xxx, 2199xx, 221xxx, 222xxx, 223xxx, 224xxx, 225xxx, 226xxx, 227xxx, 228xxx, 229xxx, 2182xx, 2185xx, 2187xx, 211800 | Q54: Exclude Funds 60xxx, 61xxx, 62xxx
A55: %,FFUND_CODE,TBOR_CASHFLOW_FUND,NCASHFLOW,NAUXILIARY,FACCOUNT,TBOR_CASHFLOW_ACCT,NPAY_SUPPLRS_LB_2119 | I55: 0 | J55: -31387.53 | K55: -31387.53 | M55: 31387.53 | O55: 21195x, 21196x | Q55: Exclude Funds 60xxx, 61xxx, 62xxx
A56: %,FFUND_CODE,TBOR_CASHFLOW_FUND,NCASHFLOW,NAUXILIARY,FACCOUNT,TBOR_CASHFLOW_ACCT,NPAY_SUPPLRS_LB_23 | I56: 0 | J56: 0 | K56: 0 | M56: 0 | O56: 23xxxx, 291700 | Q56: Exclude Funds 60xxx, 61xxx, 62xxx
A57: %,FFUND_CODE,TBOR_CASHFLOW_FUND,NCASHFLOW,NAUXILIARY,FACCOUNT,TBOR_CASHFLOW_ACCT,NPAY_SUPPLRS_LB_219 | I57: -146750.24 | J57: -246706.49 | K57: =-I57+J57 -> -99956.25 | M57: =-K57 -> 99956.25 | O57: 219xxx (except 2194xx, 2195xx, 2198xx and 2199xx) | Q57: Exclude Funds 60xxx, 61xxx, 62xxx
A58: %,FFUND_CODE,TBOR_CASHFLOW_FUND,NCASHFLOW,NAUXILIARY,FACCOUNT,TBOR_CASHFLOW_ACCT,NPAY_SUPPLRS_LB_29 | I58: -139332411.6 | J58: -139245001.4 | K58: =-I58+J58 -> 87410.26 | M58: -87410.26 | O58: 2915xx, 2916xx, 298200, 298900 | Q58: Exclude Funds 60xxx, 61xxx, 62xxx
A59: %,FFUND_CODE,TBOR_CASHFLOW_FUND,NCASHFLOW,NAUXILIARY,FACCOUNT,TBOR_CASHFLOW_ACCT,NPAY_SUPPLRS_LB_218 | I59: -1579467.74 | J59: -941861.75 | K59: =-I59+J59 -> 637605.99 | M59: -637605.99 | O59: 2188xx, 2189xx | Q59: Exclude Funds 60xxx, 61xxx, 62xxx
A60: %,FFUND_CODE,TBOR_CASHFLOW_FUND,NCASHFLOW,NAUXILIARY,FACCOUNT,TBOR_CASHFLOW_ACCT,NPAY_SUPPLR_AM_170900 | I60: 0 | J60: 0 | K60: =+I60-J60 -> 0 | M60: =+K60 -> 0 | O60: 170900 | Q60: Exclude Funds 60xxx, 61xxx, 62xxx
M61: =SUM(M47:M60) -> -189425699.2
I63: Period 0 | J63: Period 12 | K63: ="FY" & TEXT(ASD, "YY") & " Net" -> FY16 Net | M63: Effect on Cash
A64: %,FFUND_CODE,TBOR_CASHFLOW_FUND,NCASHFLOW,NAUXILIARY,FACCOUNT,TBOR_CASHFLOW_ACCT,NPAY_EMPL_EP_TRAVEL | B64: 5 | C64: Payments to employees | F64: =M75 -> -212618014.1 | I64: 0 | J64: 3334112.37 | K64: =+J64 -> 3334112.37 | M64: =-K64 -> -3334112.37 | O64: 6xxxxx except 65xxxx | Q64: Exclude Funds 60xxx, 61xxx, 62xxx | S64: Travel
A65: %,FFUND_CODE,TBOR_CASHFLOW_FUND,NCASHFLOW,NAUXILIARY,FACCOUNT,TBOR_CASHFLOW_ACCT,NPAY_EMPL_EP_SAL_FAC | I65: 0 | J65: 91519563.8 | K65: =+J65 -> 91519563.8 | M65: =-K65 -> -91519563.8 | O65: 51xxxx, 53xxxx | Q65: Exclude Funds 60xxx, 61xxx, 62xxx | S65: Salaries: Faculty
A66: %,FFUND_CODE,TBOR_CASHFLOW_FUND,NCASHFLOW,NAUXILIARY,FACCOUNT,TBOR_CASHFLOW_ACCT,NPAY_EMPL_EP_SAL_STF | I66: 0 | J66: 118429213.7 | K66: =+J66 -> 118429213.7 | M66: =-K66 -> -118429213.7 | O66: 52xxxx, 54xxxx | Q66: Exclude Funds 60xxx, 61xxx, 62xxx | S66: Salaries: Staff
A67: %,FFUND_CODE,TBOR_CASHFLOW_FUND,NCASHFLOW,NAUXILIARY,FACCOUNT,TBOR_CASHFLOW_ACCT,NPAY_EMP_ASSET | I67: 39079.95 | J67: 30324.34 | K67: =+I67-J67 -> 8755.61 | M67: =+K67 -> 8755.61 | O67: 1322xx, 1323xx | Q67: Exclude Funds 60xxx, 61xxx, 62xxx
A68: %,FFUND_CODE,TBOR_CASHFLOW_FUND,NCASHFLOW,NAUXILIARY,FACCOUNT,TBOR_CASHFLOW_ACCT,NPAY_EMPLOYEE_LIAB_PS | I68: -442494.28 | J68: -911130.25 | K68: =-I68+J68 -> -468635.97 | M68: =-K68 -> 468635.97 | O68: 2121xx | Q68: Exclude Funds 60xxx, 61xxx, 62xxx
A69: %,FFUND_CODE,TBOR_CASHFLOW_FUND,NCASHFLOW,NAUXILIARY,FACCOUNT,TBOR_CASHFLOW_ACCT,NCOMPENSTD_ABSNC_2871 | I69: -6920926.49 | J69: -7402522.75 | K69: =-I69+J69 -> -481596.26 | M69: =-K69 -> 481596.26 | O69: 2871xx | Q69: Exclude Funds 60xxx, 61xxx, 62xxx
A70: %,FFUND_CODE,TBOR_CASHFLOW_FUND,NCASHFLOW,NAUXILIARY,FACCOUNT,TBOR_CASHFLOW_ACCT,NCOMPENSTD_ABSNC_2971 | I70: -3637683.84 | J70: -3343571.76 | K70: 294112.08 | M70: -294112.08 | O70: 2971xx | Q70: Exclude Funds 60xxx, 61xxx, 62xxx
A71: %,FFUND_CODE,TBOR_CASHFLOW_FUND,NCASHFLOW,NAUXILIARY,FACCOUNT,TBOR_CASHFLOW_ACCT,NPAY_EMPLOY_LIAB_2115 | I71: 0 | J71: 0 | K71: =-I71+J71 -> 0 | M71: =-K71 -> 0 | O71: 2115xx | Q71: Exclude Funds 60xxx, 61xxx, 62xxx
M75: =SUM(M64:M74) -> -212618014.1
A77: %,FFUND_CODE,TBOR_CASHFLOW_FUND,NCASHFLOW,NAUXILIARY,FACCOUNT,TBOR_CASHFLOW_ACCT,NSCHOLARSHIP_FELLOWS | B77: 6 | C77: Payments for Scholarships and Fellowships | F77: =M77 -> -28056837.27 | I77: 0 | J77: 28056837.27 | K77: =+J77 -> 28056837.27 | M77: =-K77 -> -28056837.27 | O77: 78xxxx | Q77: Exclude funds 60xxx, 61xxx, 62xxx | S77: Scholarships and Fellowships
A79: %,FFUND_CODE,TBOR_CASHFLOW_FUND,NCASHFLOW,NAUXILIARY,FACCOUNT,TBOR_CASHFLOW_ACCT,NLOANS_STUDENTS_EMPL | B79: 7 | C79: Loans Issued to students and employees | F79: =M81 -> -109202.51 | I79: 0 | J79: 33500 | K79: =I79-J79 -> -33500 | M79: =K79 -> -33500 | O79: 122998 | Q79: Exclude Funds 60xxx, 61xxx, 62xxx
A80: %,FFUND_CODE,TBOR_CASHFLOW_FUND,NCASHFLOW,NAUXILIARY,FACCOUNT,TBOR_CASHFLOW_ACCT,NLOANS_COLLECTION | B80: 8 | C80: Collection of loans to students and employees | I80: 516363.13 | J80: 592065.64 | K80: =I80-J80 -> -75702.51 | M80: =K80 -> -75702.51 | O80: 122xxx except 122998 | Q80: Exclude Funds 60xxx, 61xxx, 62xxx
M81: =SUM(M79:M80) -> -109202.51
B83: 9 | C83: Other receipts | F83: =M87 -> 0 | M83: =-K83 -> 0
M84: =-K84 -> 0
M85: 0
M86: 0
M87: =SUM(M83:M86) -> 0
A89: %,FFUND_CODE,TBOR_CASHFLOW_FUND,NCASHFLOW,NAUXILIARY,FACCOUNT,TBOR_CASHFLOW_ACCT,NOTHER_PMTS | B89: 10 | C89: Other Payments | F89: =M93 -> -265.02 | I89: -265.02 | J89: 0 | K89: =-I89+J89 -> 265.02 | M89: =-K89 -> -265.02 | O89: 24xxxx, 25xxxx | Q89: Exclude Funds 60xxx, 61xxx, 62xxx
M90: =-K90 -> 0
M91: 0
M92: 0
M93: =SUM(M89:M92) -> -265.02
A95: %,FFUND_CODE,TBOR_CASHFLOW_FUND,NCASHFLOW,NAUXILIARY,NAGENCY,FACCOUNT,TBOR_CASHFLOW_ACCT,NCHANGE_BNP | B95: 11 | C95: Change in Beginning Net Position ****Reclassify This Balance***** | F95: =M97 -> -962429.928 | I95: -193997059.8 | J95: -193034629.8 | K95: =-I95+J95 -> 962429.928 | M95: =-K95 -> -962429.928 | O95: 3xxxxx | Q95: Note: Analyze and reclassify
M97: =SUM(M95:M96) -> -962429.928
C98: NET CASH PROVIDED (USED) BY OPERATING ACTIVITIES | F98: =SUM(F12:F95) -> -130030686.7 | I98: (Must agree with Net Cash Provided in Reconciliation Section)
C102: CASH FLOWS FROM NONCAPITAL FINANCING ACTIVITIES
A104: %,FFUND_CODE,TBOR_CASHFLOW_FUND,NCASHFLOW,FACCOUNT,TBOR_CASHFLOW_ACCT,NSTATE_APPROP_REVENUE | B104: 12 | C104: State Appropriations | F104: =M106 -> 115692680 | I104: 0 | J104: -115692680 | K104: =+J104 -> -115692680 | M104: =-K104 -> 115692680 | O104: 4801xx, 4802xx | Q104: Exclude funds 12xxx, 60xxx, 61xxx, 62xxx | S104: State Appropriations
A105: %,FFUND_CODE,TBOR_CASHFLOW_FUND,NCASHFLOW,FACCOUNT,TBOR_CASHFLOW_ACCT,NSTATE_APPROP_ASSETS | I105: 0 | J105: 0 | K105: =+I105-J105 -> 0 | M105: =+K105 -> 0 | O105: 123xxx | Q105: Exclude funds 12xxx, 60xxx, 61xxx, 62xxx
M106: =SUM(M104:M105) -> 115692680
A108: %,FFUND_CODE,TBOR_CASHFLOW_FUND,NAGENCY,FACCOUNT,TBOR_CASHFLOW_ACCT,NAGENCY_FUND_TRANS | B108: 13 | C108: Agency Funds Transactions | F108: =M108 -> 855297.16 | I108: -1954320.46 | J108: -2809617.62 | K108: =-I108+J108 -> -855297.16 | M108: =-K108 -> 855297.16 | O108: 12xxxx -> 999xxx (excluding 15xxxx) | Q108: Funds 60xxx, 61xxx, 62xxx Only
A110: %,FFUND_CODE,TBOR_CASHFLOW_FUND,NCASHFLOW,NAUXILIARY,FACCOUNT,TBOR_CASHFLOW_ACCT,NGIFT_GRANTS_FED | B110: 14 | C110: Gifts and grants received for other than capital purposes | F110: =M119 -> -10583356.29 | I110: 0 | J110: -55400093.82 | K110: =+J110 -> -55400093.82 | M110: =-K110 -> 55400093.82 | O110: 4911xx, 4941xx, 4919xx | Q110: Exclude Funds 60xxx, 61xxx, 62xxx | S110: Non-Operating - Grants and Contracts - Federal
A111: %,FFUND_CODE,TBOR_CASHFLOW_FUND,NCASHFLOW,NAUXILIARY,FACCOUNT,TBOR_CASHFLOW_ACCT,NGIFT_GRANTS_ST | I111: 0 | J111: -148618.99 | K111: -148618.99 | M111: 148618.99 | O111: 4912xx, 4942xx | Q111: Exclude Funds 60xxx, 61xxx, 62xxx | S111: Non-Operating - Grants and Contracts - State
A112: %,FFUND_CODE,TBOR_CASHFLOW_FUND,NCASHFLOW,NAUXILIARY,FACCOUNT,TBOR_CASHFLOW_ACCT,NGIFT_GRANTS_OTH | I112: 0 | J112: -4645486.81 | K112: -4645486.81 | M112: 4645486.81 | O112: 4913xx, 4914xx, 4943xx, 4944xx | Q112: Exclude Funds 60xxx, 61xxx, 62xxx | S112: Non-Operating - Grants and Contracts - Other
A113: %,FFUND_CODE,TBOR_CASHFLOW_FUND,NNO_ENDOWMENTS,FACCOUNT,TBOR_CASHFLOW_ACCT,NGIFT_GRANTS_GIFT | I113: 0 | J113: -2961655.47 | K113: -2961655.47 | M113: 2961655.47 | O113: For all funds except 4xxxx: 4851xx, 4853xx, 4855xx, 4857xx, 4859xx | Q113: Exclude Funds 60xxx, 61xxx, 62xxx | S113: Non-Operating - Grants and Contracts - Gifts
A114: %,FFUND_CODE,TBOR_CASHFLOW_FUND,NENDOWMENTS,FACCOUNT,TBOR_CASHFLOW_ACCT,NGIFT_GRANTS_END | I114: 0 | J114: 0 | K114: 0 | M114: 0 | O114: For funds 4xxxx only: 4851xx, 4853xx, 4855xx, 4857xx, 4859xx | Q114: Fund 4xxxx Only | S114: Additions to Permanent Endowments
A115: %,FFUND_CODE,TBOR_CASHFLOW_FUND,NCASHFLOW,FACCOUNT,TBOR_CASHFLOW_ACCT,NGIFT_GRANTS_ASSET | I115: 0 | J115: 2997638.26 | K115: =+I115-J115 -> -2997638.26 | M115: =K115 -> -2997638.26 | O115: 124998 | Q115: Exclude Funds 12xxx, 60xxx, 61xxx, 62xxx
A116: %,FFUND_CODE,TBOR_CASHFLOW_FUND,NCASHFLOW,NAUXILIARY,FACCOUNT,TBOR_CASHFLOW_ACCT,NGIFT_GRANTS_LB_217 | I116: 0 | J116: 0 | K116: =-I116+J116 -> 0 | M116: =-K116 -> 0 | O116: 217800 | Q116: Exclude Funds 60xxx, 61xxx, 62xxx
A117: %,FFUND_CODE,TBOR_CASHFLOW_FUND,NCASHFLOW,NAUXILIARY,FACCOUNT,TBOR_CASHFLOW_ACCT,NGIFT_GRANTS_NONCASH | I117: 0 | J117: 21467.41 | K117: =+J117 -> 21467.41 | M117: -21467.41 | O117: 727198 | Q117: Exclude Funds 60xxx, 61xxx, 62xxx | S117: Supplies and others services
A118: %,FFUND_CODE,TBOR_CASHFLOW_FUND,NCASHFLOW,NAUXILIARY,FACCOUNT,TBOR_CASHFLOW_ACCT,NGIFT_GRANTS_LB_298 | I118: -70720105.71 | J118: 0 | K118: =-I118+J118 -> 70720105.71 | M118: -70720105.71 | O118: 298000, 298300, 298401 | Q118: Exclude Funds 60xxx, 61xxx, 62xxx
M119: =SUM(M110:M118) -> -10583356.29
A121: %,FFUND_CODE,TBOR_CASHFLOW_FUND,NCASHFLOW,NAUXILIARY,FACCOUNT,TBOR_CASHFLOW_ACCT,NNONOPERATING_RECEIPT | B121: 15 | C121: Other Noncapital Financing Receipts | F121: =M126 -> 14518.88 | I121: 0 | J121: 0 | K121: =+J121 -> 0 | M121: =-K121 -> 0 | O121: 499xxx | Q121: Exclude funds 60xxx, 61xxx, 62xxx | S121: Note: Analyze and reclassify if necessary.
A122: %,FFUND_CODE,TBOR_CASHFLOW_FUND,NCASHFLOW,NAUXILIARY,FACCOUNT,TBOR_CASHFLOW_ACCT,NOTHER_NONCAP | I122: 2113049.38 | J122: 2098530.5 | K122: =+I122-J122 -> 14518.88 | M122: =K122 -> 14518.88 | O122: 126960, 126970 | Q122: Exclude funds 60xxx, 61xxx, 62xxx | S122: NOTE: If the Capital Liability Reserve AR increased due to new PPVs, analyze and reclassify any disbursments to "Other Noncapital Financing Payments".
A123: %,FFUND_CODE,TBOR_CASHFLOW_FUND,NCASHFLOW,NAUXILIARY,NAGENCY,FACCOUNT,TBOR_CASHFLOW_ACCT,NOTHER_RECALC | I123: 0 | J123: 0 | K123: =+J123 -> 0 | M123: =-K123 -> 0 | O123: 497xxx (except 497001, 497002), 498998 | S123: Note: Analyze and reclassify if necessary.
M126: =SUM(M121:M123) -> 14518.88
A128: %,FFUND_CODE,TBOR_CASHFLOW_FUND,NCASHFLOW,NAUXILIARY,FACCOUNT,TBOR_CASHFLOW_ACCT,NNONCAP_FIN | B128: 16 | C128: Other Noncapital Financing Payments | F128: =M132 -> 60106.8 | I128: 67963.88 | J128: 0 | K128: =-I128+J128 -> -67963.88 | M128: =-K128 -> 67963.88 | O128: 1260xx, 2180xx, 2181xx | Q128: Exclude Funds 60xxx, 61xxx, 62xxx
A129: %,FFUND_CODE,TBOR_CASHFLOW_FUND,NCASHFLOW,NAUXILIARY,FACCOUNT,TBOR_CASHFLOW_ACCT,NNONCAP_DEBT_PMTS | I129: 0 | J129: 0 | K129: =J129 -> 0 | M129: =-K129 -> 0 | O129: 818190 | Q129: Exclude Funds 60xxx, 61xxx, 62xxx | S129: Debt Payments not related to Capital Assets
A130: %,FFUND_CODE,TBOR_CASHFLOW_FUND,NCASHFLOW,NAUXILIARY,NAGENCY,FACCOUNT,TBOR_CASHFLOW_ACCT,NOTHER_NONCAP_792 | I130: 0 | J130: 7857.08 | K130: =J130 -> 7857.08 | M130: =-K130 -> -7857.08 | O130: 792xxx | Q130: Exclude Funds 60xxx, 61xxx, 62xxx
A131: %,FFUND_CODE,TBOR_CASHFLOW_FUND,NCASHFLOW,NAUXILIARY,NAGENCY,FACCOUNT,TBOR_CASHFLOW_ACCT,NOTHER_NONCAP_219_291 | I131: 0 | J131: 0 | K131: =-I131+J131 -> 0 | M131: =-K131 -> 0 | O131: 219490, 219590, 291190, 291290 | Q131: Exclude Funds 60xxx, 61xxx, 62xxx
M132: =SUM(M128:M130) -> 60106.8
C133: NET CASH FLOWS PROVIDED BY NON-CAPITAL FINANCING ACTIVITIES | F133: =SUM(F104:F132) -> 106039246.5
C136: CASH FLOWS FROM CAPITAL AND RELATED FINANCING ACTIVITIES
I137: Period 0 | J137: Period 12 | K137: ="FY" & TEXT(ASD, "YY") & " Net" -> FY16 Net | M137: Effect on Cash
B138: 17 | C138: Capital grants and gifts received
A139: %,FFUND_CODE,TBOR_CASHFLOW_FUND,NCASHFLOW,NAUXILIARY,FACCOUNT,TBOR_CASHFLOW_ACCT,NCAPTL_GRNT_GIFT_FED | F139: =M143 -> 22634097.03 | I139: 0 | J139: 0 | K139: =+J139 -> 0 | M139: =-K139 -> 0 | O139: 4852xx | Q139: Exclude Funds 60xxx, 61xxx, 62xxx | S139: Capital Grants and Gifts - Federal
A140: %,FFUND_CODE,TBOR_CASHFLOW_FUND,NCASHFLOW,NAUXILIARY,FACCOUNT,TBOR_CASHFLOW_ACCT,NCAPTL_GRNT_GIFT_ST | I140: 0 | J140: -15152176.3 | K140: =+J140 -> -15152176.3 | M140: =-K140 -> 15152176.3 | O140: 4854xx except 485498 | Q140: Exclude Funds 60xxx, 61xxx, 62xxx | S140: Capital Grants and Gifts - State
A141: %,FFUND_CODE,TBOR_CASHFLOW_FUND,NCASHFLOW,NAUXILIARY,FACCOUNT,TBOR_CASHFLOW_ACCT,NCAPTL_GRNT_GIFT_OTH | I141: 0 | J141: -5925191.79 | K141: =+J141 -> -5925191.79 | M141: =-K141 -> 5925191.79 | O141: 4856xx,4858xx (except 485898) | Q141: Exclude Funds 60xxx, 61xxx, 62xxx | S141: Capital Grants and Gifts - Other
A142: %,FFUND_CODE,TBOR_CASHFLOW_FUND,NCASHFLOW,NAUXILIARY,FACCOUNT,TBOR_CASHFLOW_ACCT,NCAPTL_GRNT_GIFT_ASST | I142: 1764491.44 | J142: 207762.5 | K142: =+I142-J142 -> 1556728.94 | M142: =+K142 -> 1556728.94 | O142: 124996, 125020, 1256xx | Q142: Exclude Funds 60xxx, 61xxx, 62xxx
M143: =SUM(M139:M142) -> 22634097.03
A145: %,FFUND_CODE,TBOR_CASHFLOW_FUND,NCASHFLOW,NAUXILIARY,FACCOUNT,TBOR_CASHFLOW_ACCT,NPROCEED_FROM_ASSET | B145: 18 | C145: Proceeds from Sale of capital assets | F145: =M145 -> 0 | I145: 0 | J145: 0 | K145: =+J145 -> 0 | M145: =-K145 -> 0 | O145: 4931xx, 493310, 493330 | Q145: Exclude Funds 60xxx, 61xxx, 62xxx
A147: %,FFUND_CODE,TBOR_CASHFLOW_FUND,NCASHFLOW,NAUXILIARY,NAGENCY,FACCOUNT,TBOR_CASHFLOW_ACCT,NCAP_PURCH_EX_8901 | B147: 19 | C147: Purchases of Capital Assets | F147: =M158 -> 34472059.65 | I147: 0 | J147: 31708532.5 | K147: =+J147 -> 31708532.5 | M147: =-K147 -> -31708532.5 | O147: 8901xx, 890900 | S147: Depreciation
A148: %,FFUND_CODE,TBOR_CASHFLOW_FUND,NCASHFLOW,NAUXILIARY,NAGENCY,FACCOUNT,TBOR_CASHFLOW_ACCT,NCAP_PURCH_AM_16 | I148: 657540198.8 | J148: 645049813.9 | K148: =+I148-J148 -> 12490384.93 | M148: =+K148 -> 12490384.93 | O148: 16xxxx
A149: %,FFUND_CODE,TBOR_CASHFLOW_FUND,NCASHFLOW,NAUXILIARY,NAGENCY,FACCOUNT,TBOR_CASHFLOW_ACCT,NCAP_PURCH_AM_1332 | I149: 0 | J149: 278.83 | K149: =+I149-J149 -> -278.83 | M149: =+K149 -> -278.83 | O149: 1332xx
A150: %,FFUND_CODE,TBOR_CASHFLOW_FUND,NCASHFLOW,NAUXILIARY,NAGENCY,FACCOUNT,TBOR_CASHFLOW_ACCT,NCAP_PURCH_RV_4933 | I150: 0 | J150: 393215.77 | K150: =+J150 -> 393215.77 | M150: =-K150 -> -393215.77 | O150: 4933xx excluding 493310 & 493330
A151: %,FFUND_CODE,TBOR_CASHFLOW_FUND,NCASHFLOW,NAUXILIARY,NAGENCY,FACCOUNT,TBOR_CASHFLOW_ACCT,NCAP_PURCH_RV_485 | I151: 0 | J151: 0 | K151: =+J151 -> 0 | M151: 0 | O151: 485498, 485898 | S151: Capital Grants and Gifts - State
A152: %,FFUND_CODE,TBOR_CASHFLOW_FUND,NCASHFLOW,NAUXILIARY,NAGENCY,FACCOUNT,TBOR_CASHFLOW_ACCT,NCAP_PURCH_LB_2114 | I152: -1537208.06 | J152: -821600.94 | K152: =-I152+J152 -> 715607.12 | M152: -715607.12 | O152: 211450; 2119xx except 21195x, 21196x, and 211999
A153: %,FFUND_CODE,TBOR_CASHFLOW_FUND,NCASHFLOW,NAUXILIARY,NAGENCY,FACCOUNT,TBOR_CASHFLOW_ACCT,NCAP_PURCH_LB_2194 | I153: -324334183.6 | J153: -302358425.6 | K153: 21975758 | M153: -21975758 | O153: 2194xx (except 219490), 2911xx (except 291190), 2912xx (except 291290)
A154: %,FFUND_CODE,TBOR_CASHFLOW_FUND,NCASHFLOW,NAUXILIARY,NAGENCY,FACCOUNT,TBOR_CASHFLOW_ACCT,NCAP_PURCH_LB_2195 | I154: 0 | J154: 0 | K154: 0 | M154: 0 | O154: 2195xx (except 219590)
A155: %,FFUND_CODE,TBOR_CASHFLOW_FUND,NCASHFLOW,NAUXILIARY,NAGENCY,FACCOUNT,TBOR_CASHFLOW_ACCT,NCAP_PURCH_LB_298 | I155: 0 | J155: -67137916.29 | K155: =-I155+J155 -> -67137916.29 | M155: =-K155 -> 67137916.29 | O155: 298301, 298402
A156: %,FFUND_CODE,TBOR_CASHFLOW_FUND,NCASHFLOW,NAUXILIARY,NAGENCY,FACCOUNT,TBOR_CASHFLOW_ACCT,NCAP_PURCH_RV_497001 | I156: 0 | J156: 0 | K156: =+J156 -> 0 | M156: =-K156 -> 0 | O156: 497001
A157: %,FLEDGER,VGAAP,VCAPITAL,FFUND_CODE,TBOR_CASHFLOW_FUND,NCASHFLOW,NAUXILIARY,NAGENCY,FACCOUNT,TBOR_CASHFLOW_ACCT,NCAP_PURCH_EX_8181 | I157: 0 | J157: -9637150.65 | K157: =+J157 -> -9637150.65 | M157: =-K157 -> 9637150.65 | O157: 8181xx (except 818190) Exclude Actuals Ledger
M158: =SUM(M147:M157) -> 34472059.65
A160: %,FLEDGER,VACTUALS,FFUND_CODE,TBOR_CASHFLOW_FUND,NCASHFLOW,NAUXILIARY,NAGENCY,FACCOUNT,TBOR_CASHFLOW_ACCT,NPRINC_CAP_EX_8181X | B160: 20 | C160: Principal paid on capital debt and lease | F160: =M164 -> -8214797.89 | I160: 0 | J160: 9635345.19 | K160: =+J160 -> 9635345.19 | M160: =-K160 -> -9635345.19 | O160: 8181xx (Except 818190) Actuals Only
A161: %,FFUND_CODE,TBOR_CASHFLOW_FUND,NCASHFLOW,NAUXILIARY,NAGENCY,FACCOUNT,TBOR_CASHFLOW_ACCT,NPRINC_CAP_EX_8182 | I161: 0 | J161: 92035.72 | K161: =+J161 -> 92035.72 | M161: =-K161 -> -92035.72 | O161: 818299 | Q161: Amortized Deferred Inflow
A162: %,FFUND_CODE,TBOR_CASHFLOW_FUND,NCASHFLOW,NAUXILIARY,NAGENCY,FACCOUNT,TBOR_CASHFLOW_ACCT,NPRINC_CAP_LEASE_LIAB | I162: 1381101.29 | J162: -131481.73 | K162: =-I162+J162 -> -1512583.02 | M162: =-K162 -> 1512583.02 | O162: 298100, 170100 | Q162: Deferred Inflow/Outflow
A163: %,FFUND_CODE,TBOR_CASHFLOW_FUND,NCASHFLOW,NAUXILIARY,NAGENCY,FACCOUNT,TBOR_CASHFLOW_ACCT,NPRINC_CAP_LEASE_REV | I163: 0 | J163: 0 | K163: =+J163 -> 0 | M163: =-K163 -> 0 | O163: 497002
M164: =SUM(M160:M163) -> -8214797.89
A166: %,FFUND_CODE,TBOR_CASHFLOW_FUND,NCASHFLOW,NAUXILIARY,NAGENCY,FACCOUNT,TBOR_CASHFLOW_ACCT,NINTER_CAP_LEASE_EXP | B166: 21 | C166: Interest paid on capital debt and lease | F166: =M168 -> -15694182.12 | I166: 0 | J166: 17075028.86 | K166: =+J166 -> 17075028.86 | M166: =-K166 -> -17075028.86 | O166: 8182xx except 818299 | S166: Interest Expense
A167: %,FFUND_CODE,TBOR_CASHFLOW_FUND,NCASHFLOW,NAUXILIARY,NAGENCY,FACCOUNT,TBOR_CASHFLOW_ACCT,NINTER_CAP_LEASE_LIAB | I167: 0 | J167: -1380846.744 | K167: =-I167+J167 -> -1380846.744 | M167: =-K167 -> 1380846.744 | O167: 211499
M168: =SUM(M166:M167) -> -15694182.12
C173: NET CASH USED BY CAPITAL AND RELATED FINANCING ACTIVITIES | F173: =SUM(F139:F172) -> 33197176.67
C176: CASH FLOWS FROM INVESTING ACTIVITIES
A178: %,FFUND_CODE,TBOR_CASHFLOW_FUND,NCASHFLOW,NAUXILIARY,NAGENCY,FACCOUNT,TBOR_CASHFLOW_ACCT,NPRCDS_INVEST_ASSETS | B178: 22 | C178: Proceeds from sales and maturities of investments | F178: =M180 -> -2295.28 | I178: 4225437.6 | J178: 4275520.44 | K178: =+I178-J178 -> -50082.84 | M178: =+K178 -> -50082.84 | O178: 1198xx, 15xxxx except 1580xx and 1581xx | S178: Investments
A179: %,FFUND_CODE,TBOR_CASHFLOW_FUND,NCASHFLOW,NAUXILIARY,NAGENCY,FACCOUNT,TBOR_CASHFLOW_ACCT,NPRCDS_INVEST_REVENUE | I179: 0 | J179: -47787.56 | K179: =+J179 -> -47787.56 | M179: =-K179 -> 47787.56 | O179: 4932xx, 4934xx and 4951xx except 495109 | S179: Investment Income
M180: =SUM(M178:M179) -> -2295.28
A182: %,FFUND_CODE,TBOR_CASHFLOW_FUND,NINVESTMENT INCOME,FACCOUNT,TBOR_CASHFLOW_ACCT,NINTEREST_DIV_EARNED | B182: 23 | C182: Interest and dividends earned on investments | F182: =M182 -> 302373.1 | I182: 0 | J182: -302373.1 | K182: =+J182 -> -302373.1 | M182: =-K182 -> 302373.1 | O182: 481xxx->484xxx, 486xxx (except Funds 30 and 31), 487xxx>490xxx, | S182: Investment Income
A184: %,FFUND_CODE,TBOR_CASHFLOW_FUND,NCASHFLOW,NAUXILIARY,NAGENCY,FACCOUNT,TBOR_CASHFLOW_ACCT,NPURCH_INVESTMENTS | B184: 24 | C184: Purchase of Investments | F184: =M184 -> 0 | I184: 0 | J184: 0 | K184: =+J184 -> 0 | M184: =-K184 -> 0 | O184: 495109 | S184: Investment Income | U184: Calculated
U185: Entry Required
C186: NET CASH PROVIDED (USED) BY INVESTING ACTIVITIES | F186: =SUM(F177:F184) -> 300077.82
S187: Check Points
C188: NET INCREASE (DECREASE) IN CASH | F188: =SUM(F186+F173+F133+F98) -> 9505814.31 | S188: =+I20+I21+I22+I23+I24+I25+I26+I27+I28+I37+I38+I39+I40+I41+I42+I43+I51+I52+I53+I54+I55+I56+I57+I58+I59+I60+I67+I68+I69+I70+I79+I80+I105+I108+I115+I116+I118+I122+I128+I142+I148+I149+I152+I153+I154+I155+I162+I167+I178+I71+I89+I190+I131 -> 193997059.7 | T188: Calculated SNP PY Ending Net Position
S189: =+SRECNP!D75 -> 193034629.8 | T189: Enter SNP PY Ending Net Position
A190: %,FFUND_CODE,TBOR_CASHFLOW_FUND,NCASHFLOW,NAUXILIARY,NAGENCY,FACCOUNT,TBOR_CASHFLOW_ACCT,NCASH_YEAR_BEG | C190: CASH - BEGINNING OF YEAR | F190: =I190 -> 73087827.35 | I190: 73087827.35 | J190: 82593641.66 | K190: =+I190-J190 -> -9505814.31 | M190: =+K190 -> -9505814.31 | O190: 111000 -> 1194xx, 1580xx, 1581xx period 0 balance | S190: =+S188-S189 -> 962429.926 | T190: Variance
C191: CASH - END OF YEAR | E191: Calculated => | F191: =F188+F190 -> 82593641.66 | I191: =J190 -> 82593641.66 | J191: <= Mapped | S191: =+J20+J21+J22+J23+J24+J25+J26+J27+J28+J37+J38+J39+J40+J41+J42+J43+J51+J52+J53+J54+J55+J56+J57+J58+J59+J60+J67+J68+J69+J70+J79+J80+J105+J108+J115+J116+J118+J122+J128+J142+J148+J149+J152+J153+J154+J155+J162+J167+J178+J71+J89+J190+J131 -> 212331414.6 | T191: Calculated SNP CY Ending Net Position
S192: =+SRECNP!D78 -> 212331414.6 | T192: Enter SNP CY Ending Net Position
C193: Cash & Noncurrent Cash from SNP | S193: =+S191-S192 -> -0.00200009346 | T193: Variance
C194: Should be -0- | E194: Difference => | F194: =F191-I191 -> 0 | S194: =(+J12+J13+J14+J17+J18+J19+J32+J34+J35+J36+J47+J48+J49+J50+J64+J65+J66+J77+J147+J117+J157+J160+J129)*-1 -> -163411141.6 | T194: Calculated Operating Loss
S195: =+F204 -> -163411141.6 | T195: Enter Operating Loss From SRECNP
S196: =+S194-S195 -> 0 | T196: Variance
C197: See check points in AFR FY2016 Model | S197: =(+J12+J13+J14+J17+J18+J19+J32+J34+J35+J36+J47+J48+J49+J50+J64+J65+J66+J77+J147+J104+J110+J111+J112+J113+J114+J117+J121+J123+J130+J139+J140+J141+J145+J150+J151+J156+J157+J160+J161+J163+J166+J179+J182+J184+J129)*-1 -> 19296784.79 | T197: Calculated Change in Net Position
S198: =+SRECNP!D71 -> 19296784.79 | T198: Enter Change in Net Position From SRECNP
S199: =+S197-S198 -> -1.11758709e-07 | T199: Variance
C200: RECONCILIATION OF NET OPERATING REVENUES (EXPENSES) TO | S200: =+F191 -> 82593641.66 | T200: Calculated Ending Cash
C201: NET CASH PROVIDED (USED) BY OPERATING ACTIVITIES: | S201: =I191 -> 82593641.66 | T201: Mapped Ending Cash
S202: =+S200-S201 -> 0 | T202: Variance
I203: Period 0 | J203: Period 12 | K203: ="FY" & TEXT(ASD, "YY") & " Net" -> FY16 Net | M203: Effect on Cash | S203: =+F98 -> -130030686.7 | T203: Cash Flows from Operating Activities
B204: 25 | C204: Operating income (loss) | F204: =+SRECNP!D47 -> -163411141.6 | O204: From SRECNP | S204: =+F278 -> -130030686.7 | T204: Cash Flows from Operating Activities from Reconciliation
S205: =+S203-S204 -> 0 | T205: Variance
C206: Adjustments to reconcile net income (loss) to net cash provided (used) by operating activities | S206: Amounts from above | T206: Variance
A207: %,FFUND_CODE,TBOR_CASHFLOW_FUND,NCASHFLOW,NAUXILIARY,NAGENCY,FACCOUNT,TBOR_CASHFLOW_ACCT,NDEPRECIATION | B207: 26 | D207: Depreciation (not cash) | F207: =M207 -> 31708532.5 | I207: 0 | J207: 31708532.5 | K207: =+J207 -> 31708532.5 | M207: =K207 -> 31708532.5 | O207: 8901xx, 890900 | Q207: This should be positive | S207: =-M147 -> 31708532.5 | T207: =+M207-S207 -> 0
A208: %,FFUND_CODE,TBOR_CASHFLOW_FUND,NCASHFLOW,NAUXILIARY,NAGENCY,FACCOUNT,TBOR_CASHFLOW_ACCT,NOPERATING_EXP_NONCSH | B208: 27 | D208: Operating Expenses Related to NonCash Gifts | F208: =M208 -> 21467.41 | I208: 0 | J208: 21467.41 | K208: =+J208 -> 21467.41 | M208: =K208 -> 21467.41 | O208: 727198 | Q208: This should be positive | S208: =-M117 -> 21467.41 | T208: =+M208-S208 -> 0
B209: 28 | D209: Excess Principal ***Reclassify*** | F209: =M209 -> -1805.46 | J209: =J160+J157+J129 -> -1805.46 | K209: =J209 -> -1805.46 | M209: =K209 -> -1805.46 | Q209: This should be positive | S209: =-M129 -> 0 | T209: -1805.46
A210: %,FFUND_CODE,TBOR_CASHFLOW_FUND,NCASHFLOW,NAUXILIARY,NAGENCY,FACCOUNT,TBOR_CASHFLOW_ACCT,NCHANGE_BNP_RECON | B210: 29 | D210: Change in Beg Net Position ***Reclassify this balance*** | F210: =M210 -> -962429.928 | I210: -193997059.8 | J210: -193034629.8 | K210: =-I210+J210 -> 962429.928 | M210: =-K210 -> -962429.928 | O210: 3xxxx | Q210: Note: Analyze and Reclassify | S210: =M97 -> -962429.928 | T210: 0
B212: 30 | D212: Change in assets and liabilities:
A213: %,FFUND_CODE,TBOR_CASHFLOW_FUND,NCASHFLOW,NAUXILIARY,FACCOUNT,TBOR_CASHFLOW_ACCT,NRECV_NET_121 | E213: Receivables, net | F213: =M221 -> 6438337.232 | I213: 278055.882 | J213: 733074.02 | K213: =+I213-J213 -> -455018.138 | M213: =+K213 -> -455018.138 | O213: 121xxx, | Q213: Exclude funds 60xxx, 61xxx, 62xxx | S213: =+M20 -> -455018.138 | T213: =M213-S213 -> 0
A214: %,FFUND_CODE,TBOR_CASHFLOW_FUND,NCASHFLOW,NAUXILIARY,FACCOUNT,TBOR_CASHFLOW_ACCT,NRECV_NET_124 | I214: 3104391.57 | J214: -2674151.58 | K214: =+I214-J214 -> 5778543.15 | M214: =+K214 -> 5778543.15 | O214: 124xxx (except 124996, 124998) | Q214: Exclude funds 60xxx, 61xxx, 62xxx | S214: =+M37 -> 5778543.15 | T214: =M214-S214 -> 0
A215: %,FFUND_CODE,TBOR_CASHFLOW_FUND,NCASHFLOW,NAUXILIARY,FACCOUNT,TBOR_CASHFLOW_ACCT,NRECV_NET_125 | I215: 57729.49 | J215: 94967.84 | K215: -37238.35 | M215: -37238.35 | O215: 125xxx (except 125020 and 1256xx) | Q215: Exclude funds 60xxx, 61xxx, 62xxx | S215: =+M38 -> -37238.35 | T215: 0
A216: %,FFUND_CODE,TBOR_CASHFLOW_FUND,NCASHFLOW,NAUXILIARY,FACCOUNT,TBOR_CASHFLOW_ACCT,NRECV_NET_1272 | I216: 0 | J216: 239.62 | K216: -239.62 | M216: -239.62 | O216: 1272xx | Q216: Exclude funds 60xxx, 61xxx, 62xxx | S216: =+M39 -> -239.62 | T216: 0
A217: %,FFUND_CODE,TBOR_CASHFLOW_FUND,NCASHFLOW,NAUXILIARY,FACCOUNT,TBOR_CASHFLOW_ACCT,NRECV_NET_1273 | I217: 206047.91 | J217: 254502.28 | K217: -48454.37 | M217: -48454.37 | O217: 1273xx | Q217: Exclude funds 60xxx, 61xxx, 62xxx | S217: =+M40 -> -48454.37 | T217: 0
A218: %,FFUND_CODE,TBOR_CASHFLOW_FUND,NCASHFLOW,NAUXILIARY,FACCOUNT,TBOR_CASHFLOW_ACCT,NRECV_NET_12_F14000 | I218: 5627176.98 | J218: 6358992.68 | K218: -731815.7 | M218: -731815.7 | O218: 1261xx ->1269xx (except for 126960 & 126970) | Q218: Exclude funds 60xxx, 61xxx, 62xxx | S218: =+M21 -> -731815.7 | T218: 0
A219: %,FFUND_CODE,TBOR_CASHFLOW_FUND,NCASHFLOW,NAUXILIARY,FACCOUNT,TBOR_CASHFLOW_ACCT,NRECV_NET_1271 | I219: 2650055.8 | J219: 850238.85 | K219: 1799816.95 | M219: 1799816.95 | O219: 1270xx, 1271xx | Q219: Exclude funds 60xxx, 61xxx, 62xxx | S219: =+M22 -> 1799816.95 | T219: 0
A220: %,FFUND_CODE,TBOR_CASHFLOW_FUND,NCASHFLOW,NAUXILIARY,FACCOUNT,TBOR_CASHFLOW_ACCT,NRECV_NET_128 | I220: 291419.27 | J220: 158675.96 | K220: 132743.31 | M220: 132743.31 | O220: 128xxx - 129xxx | Q220: Exclude funds 60xxx, 61xxx, 62xxx | S220: =+M23 -> 132743.31 | T220: 0
M221: =SUM(M213:M220) -> 6438337.232
A223: %,FFUND_CODE,TBOR_CASHFLOW_FUND,NCASHFLOW,NAUXILIARY,FACCOUNT,TBOR_CASHFLOW_ACCT,NINVENT_AM_14 | B223: 31 | E223: Inventories | F223: =M223 -> -1161465.75 | I223: 3023418.96 | J223: 4184884.71 | K223: =+I223-J223 -> -1161465.75 | M223: =+K223 -> -1161465.75 | O223: 14xxxx | Q223: Exclude Funds 60xxx, 61xxx, 62xxx | S223: =+M53+M60 -> -6207381.53 | T223: =+M223+M273-S223 -> 0 | U223: Checkpoint includes Deferred Outflows
A225: %,FFUND_CODE,TBOR_CASHFLOW_FUND,NCASHFLOW,NAUXILIARY,FACCOUNT,TBOR_CASHFLOW_ACCT,NPREPAID_AM_131 | B225: 32 | E225: Prepaid Items | F225: =M228 -> 209481.05 | I225: 703126.98 | J225: 663331.34 | K225: =+I225-J225 -> 39795.64 | M225: =+K225 -> 39795.64 | O225: 131xxx | Q225: Exclude Funds 60xxx, 61xxx, 62xxx | S225: =+M51 -> 39795.64 | T225: =M225-S225 -> 0
A226: %,FFUND_CODE,TBOR_CASHFLOW_FUND,NCASHFLOW,NAUXILIARY,FACCOUNT,TBOR_CASHFLOW_ACCT,NPREPAID_AM_1321 | I226: 663265.67 | J226: 502335.87 | K226: =+I226-J226 -> 160929.8 | M226: =+K226 -> 160929.8 | O226: 1321xx, 1324xx, 1329xx, 1331xx, 139xxx | Q226: Exclude Funds 60xxx, 61xxx, 62xxx | S226: =+M52 -> 160929.8 | T226: =M226-S226 -> 0
A227: %,FFUND_CODE,TBOR_CASHFLOW_FUND,NCASHFLOW,NAUXILIARY,FACCOUNT,TBOR_CASHFLOW_ACCT,NPREPAID_AM_1322 | I227: 39079.95 | J227: 30324.34 | K227: 8755.61 | M227: 8755.61 | O227: 1322xx, 1323xx | Q227: Exclude Funds 60xxx, 61xxx, 62xxx | S227: =+M67 -> 8755.61 | T227: 0
M228: =SUM(M225:M227) -> 209481.05
B230: 33 | E230: Other assets | F230: 0 | K230: =+I230-J230 -> 0 | M230: =+K230 -> 0
A232: %,FFUND_CODE,TBOR_CASHFLOW_FUND,NCASHFLOW,NAUXILIARY,FACCOUNT,TBOR_CASHFLOW_ACCT,NNOTES_RECV_AM_122998 | B232: 34 | E232: Notes Receivable,Net | F232: =M234 -> -109202.51 | I232: 0 | J232: 33500 | K232: =+I232-J232 -> -33500 | M232: =+K232 -> -33500 | O232: 122998 | Q232: Exclude funds 60xxx, 61xxx, 62xxx | S232: =+M79 -> -33500 | T232: =M232-S232 -> 0
A233: %,FFUND_CODE,TBOR_CASHFLOW_FUND,NCASHFLOW,NAUXILIARY,FACCOUNT,TBOR_CASHFLOW_ACCT,NNOTES_RECV_AM_122 | I233: 516363.13 | J233: 592065.64 | K233: =+I233-J233 -> -75702.51 | M233: =+K233 -> -75702.51 | O233: 122xxx excluding 122998 | Q233: Exclude funds 60xxx, 61xxx, 62xxx | S233: =+M80 -> -75702.51 | T233: 0
M234: =SUM(M232:M233) -> -109202.51
A236: %,FFUND_CODE,TBOR_CASHFLOW_FUND,NCASHFLOW,NAUXILIARY,FACCOUNT,TBOR_CASHFLOW_ACCT,NACCTS_PAY_2198 | B236: 35 | E236: Accounts Payable | F236: =M239 -> 1319492.956 | I236: 1190191.73 | J236: 1154466.89 | K236: =-I236+J236 -> -35724.84 | M236: =-K236 -> 35724.84 | O236: 2198xx | Q236: Exclude Funds 60xxx, 61xxx, 62xxx | S236: =+M28 -> 35724.84 | T236: =M236-S236 -> 0
A237: %,FFUND_CODE,TBOR_CASHFLOW_FUND,NCASHFLOW,NAUXILIARY,FACCOUNT,TBOR_CASHFLOW_ACCT,NACCTS_PAY_2110 | I237: -8073366.064 | J237: -9357134.18 | K237: =-I237+J237 -> -1283768.116 | M237: =-K237 -> 1283768.116 | O237: 2110xx, 2114xx (except 211450 & 211499), 2116xx, 211999, 2122xx, 213xxx, 215xxx, 2199xx, 221xxx -> 229xxx, 2182xx, 2185xx, 2187xx, 211800 | Q237: Exclude Funds 60xxx, 61xxx, 62xxx | S237: =+M54 -> 1283768.116 | T237: 0
A238: %,FFUND_CODE,TBOR_CASHFLOW_FUND,NCASHFLOW,NAUXILIARY,FACCOUNT,TBOR_CASHFLOW_ACCT,NACCTS_PAY_2115 | I238: 0 | J238: 0 | K238: =-I238+J238 -> 0 | M238: =-K238 -> 0 | O238: 2115xx | Q238: Exclude Funds 60xxx, 61xxx, 62xxx | S238: =+M71 -> 0 | T238: 0
M239: =SUM(M236:M238) -> 1319492.956
A241: %,FFUND_CODE,TBOR_CASHFLOW_FUND,NCASHFLOW,NAUXILIARY,FACCOUNT,TBOR_CASHFLOW_ACCT,NSALARIES_PAYABLE | B241: 36 | E241: Salaries Payable | F241: =M241 -> 468635.97 | I241: -442494.28 | J241: -911130.25 | K241: =-I241+J241 -> -468635.97 | M241: =-K241 -> 468635.97 | O241: 2121xx | Q241: Exclude Funds 60xxx, 61xxx, 62xxx | S241: =+M68 -> 468635.97 | T241: =M241-S241 -> 0
A242: %,FFUND_CODE,TBOR_CASHFLOW_FUND,NCASHFLOW,NAUXILIARY,FACCOUNT,TBOR_CASHFLOW_ACCT,NBENEFITS_PAYABLE | B242: 37 | E242: Benefits Payable | F242: =M242 -> 0 | I242: 0 | J242: 0 | K242: =-I242+J242 -> 0 | M242: =-K242 -> 0 | O242: 23xxxx, 291700 | Q242: Exclude Funds 60xxx, 61xxx, 62xxx | S242: =+M56 -> 0 | T242: 0
A244: %,FFUND_CODE,TBOR_CASHFLOW_FUND,NCASHFLOW,NAUXILIARY,FACCOUNT,TBOR_CASHFLOW_ACCT,NCONTRACTS_PAYABLE | B244: 38 | E244: Contracts Payable | F244: =M244 -> 0 | I244: 0 | J244: 0 | K244: =-I244+J244 -> 0 | M244: =-K244 -> 0 | O244: 21196x | Q244: Exclude Funds 60xxx, 61xxx, 62xxx | S244: =+M55 -> 31387.53 | T244: =M244+M245-S244 -> 0 | U244: Checkpoint includes Retainages Payable
A245: %,FFUND_CODE,TBOR_CASHFLOW_FUND,NCASHFLOW,NAUXILIARY,FACCOUNT,TBOR_CASHFLOW_ACCT,NRETAINAGES_PAYABLE | B245: 39 | E245: Retainages Payable | F245: =M245 -> 31387.53 | I245: 0 | J245: -31387.53 | K245: =-I245+J245 -> -31387.53 | M245: =-K245 -> 31387.53 | O245: 21195x | Q245: Exclude Funds 60xxx, 61xxx, 62xxx | U245: Checkpoint included in Contracts Payable
A246: %,FFUND_CODE,TBOR_CASHFLOW_FUND,NCASHFLOW,NAUXILIARY,FACCOUNT,TBOR_CASHFLOW_ACCT,NDEPOSITS | B246: 40 | E246: Deposits | F246: =M246 -> -8654.37 | I246: -56681.81 | J246: -48027.44 | K246: =-I246+J246 -> 8654.37 | M246: =-K246 -> -8654.37 | O246: 214xxx | Q246: Exclude Funds 60xxx, 61xxx, 62xxx | S246: =+M24 -> -8654.37 | T246: =M246-S246 -> 0
A248: %,FFUND_CODE,TBOR_CASHFLOW_FUND,NCASHFLOW,NAUXILIARY,FACCOUNT,TBOR_CASHFLOW_ACCT,NADVANCES_216 | B248: 41 | E248: Advances (Including Tuition and Fees) | F248: =M253 -> 910434.872 | I248: -12632012.59 | J248: -13493509.08 | K248: =-I248+J248 -> -861496.493 | M248: =-K248 -> 861496.493 | O248: 216xxx | Q248: Exclude Funds 60xxx, 61xxx, 62xxx | S248: =+M25 -> 861496.493 | T248: =M248-S248 -> 0
A249: %,FFUND_CODE,TBOR_CASHFLOW_FUND,NCASHFLOW,NAUXILIARY,FACCOUNT,TBOR_CASHFLOW_ACCT,NADVANCES_2179 | I249: 0 | J249: 0 | K249: =-I249+J249 -> 0 | M249: =-K249 -> 0 | O249: 2179xx | Q249: Exclude Funds 60xxx, 61xxx, 62xxx | S249: =+M41 -> 0 | T249: 0
A250: %,FFUND_CODE,TBOR_CASHFLOW_FUND,NCASHFLOW,NAUXILIARY,FACCOUNT,TBOR_CASHFLOW_ACCT,NADVANCES_2914 | I250: 0 | J250: 0 | K250: 0 | M250: =-K250 -> 0 | O250: 2914xx | Q250: Exclude Funds 60xxx, 61xxx, 62xxx | S250: =+M42 -> 0 | T250: 0
A251: %,FFUND_CODE,TBOR_CASHFLOW_FUND,NCASHFLOW,NAUXILIARY,FACCOUNT,TBOR_CASHFLOW_ACCT,NADVANCES_217 | I251: -2670913.381 | J251: -2719851.76 | K251: -48938.379 | M251: 48938.379 | O251: 217xxx, except 2178xx and 2179xx | Q251: Exclude Funds 60xxx, 61xxx, 62xxx | S251: =+M26 -> 48938.379 | T251: 0
... 45 more rows

Sheet Receivabls
D1: %,QBOR_GASB_LEDGER_NVS,CA.POSTED_TOTAL_AMT,SPER0to999,FFUND_CODE,TBOR_ACCTRECV_FUND,NEXCEPT_11921_80X_90X | F1: %,QBOR_GASB_LEDGER_NVS,CA.POSTED_TOTAL_AMT,SPER0to999,FFUND_CODE,TBOR_ACCTRECV_FUND,NFUNDS_80X_90X | H1: %,QBOR_GASB_LEDGER_NVS,CA.POSTED_TOTAL_AMT,SPP0to999,FFUND_CODE,TBOR_ACCTRECV_FUND,NEXCEPT_11921_80X_90X | J1: %,QBOR_GASB_LEDGER_NVS,CA.POSTED_TOTAL_AMT,SPP0to999,FFUND_CODE,TBOR_ACCTRECV_FUND,NFUNDS_80X_90X
B2: Kennesaw State University | O2: /opt/psoft/psconfig/appserv/prcs/fprod/NVISION/INSTANCE
B3: Accounts Receivable | O3: ACCTRECV
B4: ="For the Fiscal Year Ended: "&TEXT(ASD,"mmmm dd, yyyy") -> For the Fiscal Year Ended: June 30, 2016 | O4: 2016-06-30
O5: ACCOUNT_RECEIVABLE.XNV
B6: Note 3 - Accounts Receivable | O6: JBFREEMAN
E7: ="June 30, " &(TEXT(ASD,"YYYY")) -> June 30, 2016 | I7: ="June 30, " &(TEXT(ASD,"YYYY")-1) -> June 30, 2015
D9: All Funds except Funds 11921, 80xxx & 90xxxx | F9: Funds 80xxx & 90xxxx | H9: All Funds except Funds 11921, 80xxx & 90xxxx | J9: Funds 80xxx & 90xxxx
D11: Business-type Activities | F11: Fiduciary Fund | H11: Business-type Activities | J11: Fiduciary Fund
A13: %,FACCOUNT,TBOR_ACCTRECV_ACCT,NSTUDENT_TUITION_FEES | B13: Student Tuition and Fees | D13: 3172563.28 | F13: 0 | H13: 1236343.48 | J13: 0 | L13: Exclude funds 12xxx. Accounts 121xxx except accounts ending in 99
A14: %,FACCOUNT,TBOR_ACCTRECV_ACCT,NAUXILIARY_ENTERPRISE | B14: Auxiliary Enterprises and Other Operating Activities | D14: 3111438.96 | F14: 0 | H14: 2586275.22 | J14: 0 | L14: Funds 12xxx only. Accounts 121xxx through 129xxx (except 122xxx, 125020, 1256xx, 125700, 1268xx, 1269xx, 1267xx and accounts ending in 99)
A15: %,FACCOUNT,TBOR_ACCTRECV_ACCT,NFED_FINANCIAL_ASSIST | B15: Federal Financial Assistance | D15: 1824929.68 | F15: 0 | H15: 5137754.57 | J15: 0 | L15: Exclude funds 12xxx. Account 124xxx (except accounts ending in 99)
A16: %,FACCOUNT,TBOR_ACCTRECV_ACCT,NSTATE_APPROPRIATIONS | B16: State General Appropriations Allotment | D16: 0 | F16: 0 | H16: 0 | J16: 0 | L16: Exclude funds 12xxx. Account 123xxx (except accounts ending in 99)
A17: %,FACCOUNT,TBOR_ACCTRECV_ACCT,NGA_STUDENT_FINANCE | B17: Georgia Student Finance Commission | D17: 0 | F17: 0 | H17: 0 | J17: 0 | L17: 125700
A18: %,FACCOUNT,TBOR_ACCTRECV_ACCT,NGA_STATE_FINANCE | B18: Georgia State Financing and Investment Commission | D18: 207762.5 | F18: 0 | H18: 1107300.72 | J18: 0 | L18: 1256xx, 125020
B19: Margin Allocation Funds
A20: %,FACCOUNT,TBOR_ACCTRECV_ACCT,NDUE_AFFILIATED_ORG | B20: Due from Affiliated Organizations | D20: 6358992.68 | F20: 0 | H20: 4604168.07 | J20: 0 | L20: 1268xx, 1269xx (except 126960 and 126970)
A21: %,FACCOUNT,TBOR_ACCTRECV_ACCT,NDUE_USG_INSTITUTIONS | B21: Due From Other USG Institutions | D21: 2098530.5 | F21: 0 | H21: 1482586.04 | J21: 0 | L21: 1267xx, 126960, 126970
A22: %,FACCOUNT,TBOR_ACCTRECV_ACCT,NOTHER | B22: Other | D22: 4819915.3 | F22: 0 | H22: 3457942.31 | J22: 0 | L22: Exclude funds 12xxx. Accounts 125xxx (except 125020, 1256xx, 125700 and accounts ending in 99), 127xxx through 129xxx (except accounts ending in 99)
D24: =SUM(D13:D22) -> 21594132.9 | F24: =SUM(F13:F22) -> 0 | H24: =SUM(H13:H22) -> 19612370.41 | J24: =SUM(J13:J22) -> 0
A26: %,R,FACCOUNT,TBOR_ACCTRECV_ACCT,NLESS_DOUBTFUL_ACCTS | B26: Less Allowance for Doubtful Accounts | D26: 5085313.67 | F26: 0 | H26: 1730668.53 | J26: 0 | L26: Any 12xxxx account ending in 99 except 122xxx accounts.
B27: Net Accounts Recievable | D27: =D24-D26 -> 16508819.23 | F27: =F24-F26 -> 0 | H27: =H24-H26 -> 17881701.88 | J27: =J24-J26 -> 0
B31: ="Report ID: "&RID -> Report ID: ACCTRECV
B32: ="Layout Name: "&LYN -> Layout Name: ACCOUNT_RECEIVABLE.XNV
B33: ="Operator: "&OPR -> Operator: JBFREEMAN
B34: ="Instance Directory: "&IDN -> Instance Directory: /opt/psoft/psconfig/appserv/prcs/fprod/NVISION/INSTANCE
B35: ="Run Date: "&TEXT(NvsEndTime,"mmmm dd, yyyy") -> Run Date: March 10, 2017
B44: Version 9.2 | C44: 2.23 | D44: 5.14
C45: 2.35
B46: Release | D46: Date | F46: Developer | H46: Change Request and Details | O46: Change Information
B47: 5.13 | D47: 2016-04-05 | F47: Robert Prescott | H47: TSK27603 - New nVision Report | O47: Added node to REPORT_FUNDS tree called OLD_AUX_FUND (12000->120999)
B48: 5.14 | D48: 2016-05-04 | F48: Robert Prescott | H48: TSK27768 - Change Account Mapping

Sheet Inventory
D1: %,QBOR_GASB_LEDGER_NVS,CA.POSTED_TOTAL_AMT,S2YEAR | F1: %,QBOR_GASB_LEDGER_NVS,CA.POSTED_TOTAL_AMT,S2YR-1
B2: Kennesaw State University
B3: Notes | I3: INV
B4: ="For the Fiscal Year Ended: "&TEXT(ASD,"mmmm dd, yyyy") -> For the Fiscal Year Ended: June 30, 2016 | I4: JBFREEMAN
I5: 2016-06-30
B6: Note 4 - Inventories | D6: ="June 30, " &(TEXT(ASD,"YYYY")) -> June 30, 2016 | F6: ="June 30, "&(TEXT(ASD,"YYYY")-1) -> June 30, 2015 | I6: GASB_INVENTORIES | K6: All Funds except Funds 11921, 80xxx & 90xxx, unless specifically excluded
I7: /opt/psoft/psconfig/appserv/prcs/fprod/NVISION/INSTANCE
A8: %,FFUND_CODE,TBOR_INV_FUND,NINVENTORIES,FACCOUNT,TBOR_INV_ACCT,NCONSUMABLE_SUPPLIES | B8: Consumable Supplies | D8: 26680.48 | F8: 0 | K8: 141xxx
A9: %,FFUND_CODE,TBOR_INV_FUND,NINVENTORIES,FACCOUNT,TBOR_INV_ACCT,NMERCHANDISE_RESALE | B9: Merchandise for Resale | D9: 4158204.23 | F9: 3023418.96 | K9: 142xxx
B11: Total | D11: =SUM(D8:D9) -> 4184884.71 | F11: =SUM(F8:F9) -> 3023418.96
B15: Data Entry Cell
B16: Prior Year Information
B17: Formulas
B21: All accounts 141xxx and 142xxx. The total ties back to Statement of Net Position - Inventories
B22: More detailed mapping is not available.
B25: Check point
B26: Cell D11/F11 | D26: =D11 -> 4184884.71 | F26: =F11 -> 3023418.96
B27: Statement of Net Position D16/F16
B28: If not -0-, find problem | D28: =D26-D27 -> 4184884.71 | F28: =F26-F27 -> 3023418.96
B32: ="Report ID: "&RID -> Report ID: INV
B33: ="Layout Name: "&LYN -> Layout Name: GASB_INVENTORIES
B34: ="Operator: "&OPR -> Operator: JBFREEMAN
B35: ="Instance Directory: "&IDN -> Instance Directory: /opt/psoft/psconfig/appserv/prcs/fprod/NVISION/INSTANCE
B36: ="Run Date: "&TEXT(NvsEndTime,"mmmm dd, yyyy at HH:MM") -> Run Date: March 10, 2017 at 09:32
B40: Version | D40: 5.13
B42: Change Information
B43: Release | D43: Date | E43: Developer | H43: Change Request and Details
B44: 2.7 | D44: 2013-04-12 | F44: RMullinix | J44: TSK18762 | K44: Create GASB note 4 Inventories report
B45: 4 | D45: 2015-01-10 | F45: Robert Prescott | K45: TSK22851 - 9.2 Upgrade
B46: 5 | D46: 2015-09-30 | F46: RMullinix | K46: TSK26266 - prepare for switch to unix processing
B47: 5.13 | D47: 2016-04-08 | F47: Robert Prescott | K47: TSK27599 - New Mapping

Sheet Capital Assets
A1: %,SFALLYEAR,FFUND_CODE,TBOR_CAPASS_FUND,NCAPITAL_ASSETS | D1: %,QBOR_GASB_LEDGER_PER0_NVS,CA.POSTED_TOTAL_AMT,S2YEAR | F1: %,QBOR_GASB_CAPASS_ADD_NVS,CADDS | H1: %,QBOR_GASB_CAPASS_RED_NVS,CREDS
B2: Kennesaw State University | L2: CAPASS
B3: Capital Assets Disclosure Report | L3: JBFREEMAN
B4: ="For the Fiscal Year Ended: "&TEXT(ASD,"mmmm dd, yyyy") -> For the Fiscal Year Ended: June 30, 2016 | L4: 2016-06-30
L5: GASB_CAPITAL_ASSETS
B6: ="Following are the changes in capital assets for the years ended June 30, " & (TEXT(ASD,"yyyy")) & " and " & (TEXT(ASD,"yyyy")-1) & ":" -> Following are the changes in capital assets for the years ended June 30, 2016 and 2015: | K6: All Funds except Funds 11921, 80xxx, & 90xxx, unless specifically excluded | L6: /opt/psoft/psconfig/appserv/prcs/fprod/NVISION/INSTANCE
D8: (Restated)
B9: Footnote 6 - Capital Assets Disclosure | D9: Balance | F9: Additions | H9: Reductions | J9: Balance
D10: ="July 1, " &(TEXT(ASD,"yyyy")-1) -> July 1, 2015 | J10: ="June 30, " &TEXT(ASD,"yyyy") -> June 30, 2016
B12: Capital Assets, not being depreciated
A13: %,FACCOUNT,TBOR_CAPASS_ACCT,NLAND | B13: Land | D13: 28747794.87 | F13: 28716327.41 | H13: 21694065.89 | J13: =+D13+F13-H13 -> 35770056.39 | K13: 161xxx
A14: %,FACCOUNT,TBOR_CAPASS_ACCT,NCAPITALIZED_COLLECT | B14: Capitalized Collections | D14: 8442905.86 | F14: 1323126.95 | H14: 715926.95 | J14: =+D14+F14-H14 -> 9050105.86 | K14: 1681xx
A15: %,FACCOUNT,TBOR_CAPASS_ACCT,NCONSTRUCTION_WIP | B15: Construction Work-In-Progress | D15: 6359531.19 | F15: 19262887.16 | H15: 18786582.39 | J15: =D15+F15-H15 -> 6835835.96 | K15: 1690xx
A16: %,FACCOUNT,TBOR_CAPASS_ACCT,NSOFTWARE_DEV_WIP | B16: Software Development-In-Progress | D16: 0 | F16: 0 | H16: 0 | J16: =D16+F16-H16 -> 0 | K16: 1699xx
B17: Total Capital Assets Not Being Depreciated | D17: =SUM(D13:D16) -> 43550231.92 | F17: =SUM(F13:F16) -> 49302341.52 | H17: =SUM(H13:H16) -> 41196575.23 | J17: =SUM(J13:J16) -> 51655998.21
B19: Capital Assets, Being Depreciated:
A20: %,FACCOUNT,TBOR_CAPASS_ACCT,NINFRASTRUCTURE | B20: Infrastructure | D20: 11727425.15 | F20: 162098.1 | H20: 0 | J20: =+D20+F20-H20 -> 11889523.25 | K20: 167xxx(except 167900 and 167190)
A21: %,FACCOUNT,TBOR_CAPASS_ACCT,NBUILDINGS | B21: Building and Building Improvements | D21: 461542651.2 | F21: 523417076.1 | H21: 181014158.2 | J21: 803945569.1 | K21: 162xxx(except 162900 and 162190)
A22: %,FACCOUNT,TBOR_CAPASS_ACCT,NFACILITIES | B22: Facilities and Other Improvements | D22: 7065361.42 | F22: 665936.7 | H22: 177397.65 | J22: 7553900.47 | K22: 163xxx(except 163900 and 163190)
A23: %,FACCOUNT,TBOR_CAPASS_ACCT,NEQUIPMENT | B23: Equipment | D23: 50637681.03 | F23: 19200738.27 | H23: 18370403.92 | J23: 51468015.38 | K23: 165xxx(except 165900 and 165190)
A24: %,FACCOUNT,TBOR_CAPASS_ACCT,NCAPITAL_LEASES | B24: Capital Leases | D24: 341121123.2 | F24: 338285005.7 | H24: 679406129 | J24: 0 | K24: 166xxx(except 1669xx)
A25: %,FACCOUNT,TBOR_CAPASS_ACCT,NLIBRARY_COLLECTIONS | B25: Library Collections | D25: 27587974.72 | F25: 580549.98 | H25: 167784.23 | J25: 28000740.47 | K25: 164xxx(except 1649xx)
A26: %,FACCOUNT,TBOR_CAPASS_ACCT,NCAPITALIZED_COLL_DPD | B26: Capitalized Collections | D26: 614620 | F26: 2788789.81 | H26: 2747255.86 | J26: 656153.95 | K26: 168xxx(except 1689xx, 1682xx, 1681xx)
A27: %,FACCOUNT,TBOR_CAPASS_ACCT,NWATER_TIMBER_MIN_EAS | B27: Water, Timber, Mineral Rights, and Easements | D27: 0 | F27: 0 | H27: 0 | J27: 0 | K27: 16822x
A28: %,FACCOUNT,TBOR_CAPASS_ACCT,NPATENTS_TRADE_COPY | B28: Patents, Trademarks, and Copyrights | D28: 0 | F28: 0 | H28: 0 | J28: 0 | K28: 16823x
A29: %,FACCOUNT,TBOR_CAPASS_ACCT,NSOFTWARE | B29: Software | D29: 0 | F29: 625.99 | H29: 625.99 | J29: 0 | K29: 16821x
B30: Total Capital Assets, Being Depreciated | D30: =SUM(D20:D29) -> 900296836.8 | F30: =SUM(F20:F29) -> 885100820.7 | H30: =SUM(H20:H29) -> 881883754.8 | J30: =SUM(J20:J29) -> 903513902.7
B32: Less: Accumulated depreciation
A33: %,R,FACCOUNT,TBOR_CAPASS_ACCT,NINFRASTRUCTURE_DEP | B33: Infrastructure | D33: 4448431.61 | F33: 416776.45 | H33: 0 | J33: =+D33+F33-H33 -> 4865208.06 | K33: 167900 and 167190
A34: %,R,FACCOUNT,TBOR_CAPASS_ACCT,NBUILDING_DEP | B34: Buildings and Building Improvements | D34: 139181657.7 | F34: 145320537 | H34: 43295790.33 | J34: 241206404.3 | K34: 162900 and 162190
A35: %,R,FACCOUNT,TBOR_CAPASS_ACCT,NFACILITIES_DEP | B35: Facilities and Other Improvements | D35: 3752446.66 | F35: 270439.33 | H35: 4323.04 | J35: 4018562.95 | K35: 163900 and 163190
A36: %,R,FACCOUNT,TBOR_CAPASS_ACCT,NEQUIPMENT_DEP | B36: Equipment | D36: 32620870.02 | F36: 13005842.64 | H36: 12846661.99 | J36: 32780050.67 | K36: 165900 and 165190
A37: %,R,FACCOUNT,TBOR_CAPASS_ACCT,NCAPITAL_LEASE_DEP | B37: Capital Leases | D37: 79482324.73 | F37: 116262907.3 | H37: 195745231.6 | J37: 0.4149999917 | K37: 1669xx
A38: %,R,FACCOUNT,TBOR_CAPASS_ACCT,NLIBRARY_DEP | B38: Library Collections | D38: 25680120.32 | F38: 483151.91 | H38: 167784.23 | J38: 25995488 | K38: 1649xx
A39: %,R,FACCOUNT,TBOR_CAPASS_ACCT,NCAPITALIZED_DEP | B39: Capitalized Collections | D39: 1141018.88 | F39: 132580.01 | H39: 19226.28 | J39: 1254372.61 | K39: 1689xx(except 16891x, 16892x, 16893x)
A40: %,R,FACCOUNT,TBOR_CAPASS_ACCT,NWATER_DEP | B40: Water, Timber, Mineral Rights, and Easements | D40: 0 | F40: 0 | H40: 0 | J40: 0 | K40: 16892x
A41: %,R,FACCOUNT,TBOR_CAPASS_ACCT,NPATENTS_DEP | B41: Patents, Trademarks, and Copyrights | D41: 0 | F41: 0 | H41: 0 | J41: 0 | K41: 16893x
A42: %,R,FACCOUNT,TBOR_CAPASS_ACCT,NSOFTWARE_DEP | B42: Software | D42: 0 | F42: 0 | H42: 0 | J42: 0 | K42: 16891x
B43: Total Accumulated Depreciation | D43: =SUM(D33:D42) -> 286306869.9 | F43: =SUM(F33:F42) -> 275892234.6 | H43: =SUM(H33:H42) -> 252079017.5 | J43: =SUM(J33:J42) -> 310120087
B45: Total Capital Assets, Being Depreciated, Net | D45: =SUM(D30-D43) -> 613989966.9 | F45: =SUM(F30-F43) -> 609208586.1 | H45: =SUM(H30-H43) -> 629804737.3 | J45: =SUM(J30-J43) -> 593393815.7
B48: Capital Assets, net | D48: =SUM(D17+D45) -> 657540198.8 | F48: =SUM(F17+F45) -> 658510927.6 | H48: =SUM(H17+H45) -> 671001312.6 | J48: =SUM(J17+J45) -> 645049813.9
B53: Footnote 6 - Capital Assets Disclosure | D53: Balance | F53: Additions | H53: Reductions | J53: Balance
D54: ="July 1, " &(TEXT(ASD,"yyyy")-2) -> July 1, 2014 | J54: ="June 30, " &(TEXT(ASD,"yyyy")-1) -> June 30, 2015
B56: Capital Assets, not being depreciated
B57: Land | D57: 25844320.37 | F57: 2663031.89 | H57: 1814401.89 | J57: =+D57+F57-H57 -> 26692950.37 | K57: 161xxx
B58: Capitalized Collections | D58: 5351098 | F58: 4897907.86 | H58: 1836600 | J58: =+D58+F58-H58 -> 8412405.86 | K58: 1681xx
B59: Construction Work-In-Progress | D59: 2107838.83 | F59: 18448651.64 | H59: 18007417 | J59: =D59+F59-H59 -> 2549073.47 | K59: 1690xx
B60: Software Development-In-Progress | D60: 0 | F60: 0 | H60: 0 | J60: =D60+F60-H60 -> 0 | K60: 1699xx
B61: Total Capital Assets Not Being Depreciated | D61: =SUM(D57:D60) -> 33303257.2 | F61: =SUM(F57:F60) -> 26009591.39 | H61: =SUM(H57:H60) -> 21658418.89 | J61: =SUM(J57:J60) -> 37654429.7
B63: Capital Assets, Being Depreciated:
B64: Infrastructure | D64: 6622147.69 | F64: 6971842.79 | H64: 6971842.78 | J64: =+D64+F64-H64 -> 6622147.7 | K64: 167xxx(except 167900 and 167190)
B65: Building and Building Improvements | D65: 313624185.4 | F65: 238784430.3 | H65: 237288930.6 | J65: 315119685.1 | K65: 162xxx(except 162900 and 162190)
B66: Facilities and Other Improvements | D66: 5371606.88 | F66: 266584.73 | H66: 8900 | J66: 5629291.61 | K66: 163xxx(except 163900 and 163190)
B67: Equipment | D67: 30120554.4 | F67: 9267192.03 | H67: 3972073.84 | J67: 35415672.59 | K67: 165xxx(except 165900 and 165190)
B68: Capital Leases | D68: 205351437.8 | F68: 102170927.7 | H68: 59248491.29 | J68: 248273874.1 | K68: 166xxx(except 1669xx)
B69: Library Collections | D69: 20480220.43 | F69: 167722.11 | H69: 32127.6 | J69: 20615814.94 | K69: 164xxx(except 1649xx)
B70: Capitalized Collections | D70: 3628200.91 | F70: 1046010.05 | H70: 4059590.96 | J70: 614620 | K70: 168xxx(except 1689xx, 1682xx, 1681xx)
B71: Water, Timber, Mineral Rights, and Easements | D71: 0 | F71: 0 | H71: 0 | J71: 0 | K71: 16822x
B72: Patents, Trademarks, and Copyrights | D72: 0 | F72: 0 | H72: 0 | J72: 0 | K72: 16823x
B73: Software | D73: 0 | F73: 10000 | H73: 10000 | J73: 0 | K73: 16821x
B74: Total Capital Assets, Being Depreciated | D74: =SUM(D64:D73) -> 585198353.4 | F74: =SUM(F64:F73) -> 358684709.7 | H74: =SUM(H64:H73) -> 311591957.1 | J74: =SUM(J64:J73) -> 632291106.1
B76: Less: Accumulated depreciation
B77: Infrastructure | D77: 2222824.81 | F77: 2977575.74 | H77: 2770196.1 | J77: =+D77+F77-H77 -> 2430204.45 | K77: 167900 and 167190
B78: Buildings and Building Improvements | D78: 60063960.79 | F78: 56223044.69 | H78: 47032513.15 | J78: 69254492.33 | K78: 162900 and 162190
B79: Facilities and Other Improvements | D79: 3171858.12 | F79: 396110.82 | H79: 206465.89 | J79: 3361503.05 | K79: 163900 and 163190
B80: Equipment | D80: 18222860.52 | F80: 6240304.81 | H80: 2723473.59 | J80: 21739691.74 | K80: 165900 and 165190
B81: Capital Leases | D81: 47612292.3 | F81: 51764788.7 | H81: 43526012.54 | J81: 55851068.46 | K81: 1669xx
B82: Library Collections | D82: 19252166.06 | F82: 451133.46 | H82: 32127.6 | J82: 19671171.92 | K82: 1649xx
B83: Capitalized Collections | D83: 990163.17 | F83: 607436.68 | H83: 475266.28 | J83: 1122333.57 | K83: 1689xx(except 16891x, 16892x, 16893x)
B84: Water, Timber, Mineral Rights, and Easements | D84: 0 | F84: 0 | H84: 0 | J84: 0 | K84: 16892x
B85: Patents, Trademarks, and Copyrights | D85: 0 | F85: 0 | H85: 0 | J85: 0 | K85: 16893x
B86: Software | D86: 0 | F86: 0 | H86: 0 | J86: 0 | K86: 16891x
B87: Total Accumulated Depreciation | D87: =SUM(D77:D86) -> 151536125.8 | F87: =SUM(F77:F86) -> 118660394.9 | H87: =SUM(H77:H86) -> 96766055.15 | J87: =SUM(J77:J86) -> 173430465.5
B89: Total Capital Assets, Being Depreciated, Net | D89: =SUM(D74-D87) -> 433662227.7 | F89: =SUM(F74-F87) -> 240024314.8 | H89: =SUM(H74-H87) -> 214825901.9 | J89: =SUM(J74-J87) -> 458860640.6
B92: Capital Assets, net | D92: =SUM(D61+D89) -> 466965484.9 | F92: =SUM(F61+F89) -> 266033906.2 | H92: =SUM(H61+H89) -> 236484320.8 | J92: =SUM(J61+J89) -> 496515070.3
B96: ="Report ID: "&RID -> Report ID: CAPASS
B97: ="Layout Name: "&LYN -> Layout Name: GASB_CAPITAL_ASSETS
B98: ="Operator: "&OPR -> Operator: JBFREEMAN
B99: ="Instance Directory: " &IDN -> Instance Directory: /opt/psoft/psconfig/appserv/prcs/fprod/NVISION/INSTANCE
B100: ="Run Date: "&TEXT(NvsEndTime,"mmmm dd, yyyy") -> Run Date: March 10, 2017
B104: Tree Information
D105: Top Level | F105: Tree | H105: Node
B106: See nVision Tracking Database
B108: Version | D108: 5.13
B111: Change Information
B112: Release | D112: Date | E112: Developer | H112: Change Request and Details
D113: 2006-02-23 | F113: Rod Reynolds | H113: CHG5647 TSK15830
B114: 1.09 | D114: 2009-02-24 | F114: Lina brennan | H114: chg13399Tsk45361
B115: 2.09 | D115: 2010-11-17 | F115: Lina brennan | H115: RFC4796;Tsk5308
B116: 2.12 | D116: 2010-02-24 | F116: Lina brennan | H116: RFC3010;Tsk6900
B117: 2.7 | D117: 2013-04-11 | F117: RMullinix | H117: TSK18702
B118: 4 | D118: 2015-01-09 | F118: Robert Prescott | H118: TSK22694
B119: 5 | D119: 2015-09-30 | F119: RMullinix | H119: TSK26266 | J119: prepare for switch to unix processing
B120: 5.13 | D120: 2016-04-11 | F120: Robert Prescott | H120: TSK27590

Sheet Advances
B2: Kennesaw State University | O2: /opt/psoft/psconfig/appserv/prcs/fprod/NVISION/INSTANCE
B3: Advances | O3: ADVANCES
B4: ="For the Fiscal Year Ended: "&TEXT(ASD,"mmmm dd, yyyy") -> For the Fiscal Year Ended: June 30, 2016 | O4: 2016-06-30
O5: ADVANCES.XNV
B6: Note 7 - Advances (Including Tuition & Fees) | O6: JBFREEMAN
E7: ="June 30, " &(TEXT(ASD,"YYYY")) -> June 30, 2016 | I7: ="June 30, " &(TEXT(ASD,"YYYY")-1) -> June 30, 2015 | L7: All Funds except Funds 11921, 80xxx & 90xxxx, unless specifically excluded
D9: Current Liabilities | F9: Noncurrent Liabilities | H9: Current Liabilities | J9: Noncurrent Liabilities
B11: Prepaid Tuition and Fees | D11: 13493509.08 | H11: 8654341.57 | L11: 216xxx Current Liabilities only. No noncurrent liabilities.
B12: Research | D12: 0 | F12: 0 | H12: 0 | J12: 0 | L12: Current Liabilities - 2178xx and 2179xx. Noncurrent - 2914xx
B13: Other Advances | D13: 2719851.76 | F13: 0 | H13: 3112008.97 | J13: 0 | L13: Current Liabilities - 217xxx (except 2178xx and 2179xx). Noncurrent - 2913xx
B15: Totals | D15: =SUM(D11:D13) -> 16213360.84 | F15: =SUM(F11:F13) -> 0 | H15: =SUM(H11:H13) -> 11766350.54 | J15: =SUM(J11:J13) -> 0
B19: Check Points
B20: D15/F15 | D20: =D15 -> 16213360.84 | F20: =F15 -> 0 | H20: =H15 -> 11766350.54 | J20: =J15 -> 0
B21: Statement of Net Position
B22: Should be -0- | D22: =D20-D21 -> 16213360.84 | F22: =F20-F21 -> 0 | H22: =H20-H21 -> 11766350.54 | J22: =J20-J21 -> 0
B26: ="Report ID: "&RID -> Report ID: ADVANCES
B27: ="Layout Name: "&LYN -> Layout Name: ADVANCES.XNV
B28: ="Operator: "&OPR -> Operator: JBFREEMAN
B29: ="Instance Directory: "&IDN -> Instance Directory: /opt/psoft/psconfig/appserv/prcs/fprod/NVISION/INSTANCE
B30: ="Run Date: "&TEXT(NvsEndTime,"mmmm dd, yyyy") -> Run Date: March 10, 2017
B39: Version 9.2 | C39: 2.23 | D39: 5.13
C40: 2.35
B41: Release | D41: Date | F41: Developer | H41: Change Request and Details | O41: Change Information
B42: 5.13 | D42: 2016-04-05 | F42: Robert Prescott | H42: TSK27580 - New nVision Report | O42: Added node to REPORT_FUNDS tree called OLD_AUX_FUND (12000->120999)

Sheet L-T Debt
B2: Kennesaw State University | Q2: /opt/psoft/psconfig/appserv/prcs/fprod/NVISION/INSTANCE
B3: Long Term Liabilities | Q3: LTLIAB | R3: ADDITIONS | S3: REDUCTIONS
B4: ="For the Fiscal Year Ended: "&TEXT(ASD,"mmmm dd, yyyy") -> For the Fiscal Year Ended: June 30, 2016 | Q4: 2016-06-30
R5: R6 - Lease Obligations | S5: S6/S7 - Lease Obligations
B6: ="Long-term Liability Activity for the years ended "&"June 30, " &(TEXT(ASD,"YYYY")-1)&" and "&TEXT(ASD,"YYYY")&" was as follows:" -> Long-term Liability Activity for the years ended June 30, 2015 and 2016 was as follows: | Q6: LONG_TERM_LIABILITY.XNV | R6: -588071324.6 | S6: 1164712919
B7: Note 8 - Long Term Liabilities | D7: Balance | J7: Balance | N7: All Funds except Funds 11921, 80xxx, & 90xxx, unless specifically excluded | Q7: JBFREEMAN | S7: -554665836.1
D9: ="July 1, " &(TEXT(ASD,"YYYY")-1) -> July 1, 2015 | F9: Additions | H9: Reductions | J9: ="June 30, " &TEXT(ASD,"YYYY") -> June 30, 2016 | L9: Current Portion | N9: Mapping for "Balance June 30" column | P9: Mapping for "Current Portion" column | R9: R10/R11 - Compensated Absences | S9: S10/S11 - Compensated Absences
B10: Leases | R10: -7336.36 | S10: 301448.44
B11: Lease Obligations | D11: 324334183.6 | F11: =(R6*-1) -> 588071324.6 | H11: =S6+S7 -> 610047082.6 | J11: 302358425.6 | L11: 9206846.08 | N11: 2911xx, 2194xx | P11: 2194xx | R11: 16128.32 | S11: -497724.58
R13: R14 - Net Pension | S13: S14 - Net Pension
B14: Other Liabilities | R14: -31456611 | S14: 8403368
B15: Compensated Absences | D15: 10558610.33 | F15: =(R10+R11)*-1 -> -8791.96 | H15: =(S10+S11) -> -196276.14 | J15: 10746094.51 | L15: 7402522.75 | N15: 2971xx, 2871xx | P15: 2871xx
B16: Net Pension Liability | D16: 104328946 | F16: =(R14*-1) -> 31456611 | H16: =(S14*1) -> 8403368 | J16: 127382189 | N16: 2915xx | P16: Not Applicable | R16: R17 - Notes and Loans Payable | S16: S17/S18 - Notes and Loans Payable
B17: Notes and Loans Payable | D17: 0 | F17: =(R17*-1) -> 0 | H17: =(S17+S18) -> 0 | J17: 0 | L17: 0 | N17: 2195xx, 2912xx | P17: 2195xx | R17: 0 | S17: 0
B18: Claims and Judgments | D18: 0 | F18: =(R21*-1) -> 0 | H18: =(S21+S22) -> 0 | J18: 0 | L18: 0 | N18: 219003, 219004 | P18: 219003 | S18: 0
B19: Other Post-Employment Benefit Liability | D19: 0 | F19: =(R25*-1) -> 0 | H19: =(S25*1) -> 0 | J19: 0 | N19: 2916xx | P19: Not Applicable
B20: Pollution Remediation | D20: 0 | F20: =(R28*-1) -> 0 | H20: =(S28+S29) -> 0 | J20: 0 | L20: 0 | N20: 219001, 219002 | P20: 219001 | R20: R21 - Claims and Judgments | S20: S21/S22 - Claims and Judgments
B21: Total | D21: =SUM(D15:D20) -> 114887556.3 | F21: =SUM(F15:F20) -> 31447819.04 | H21: =SUM(H15:H20) -> 8207091.86 | J21: =SUM(J15:J20) -> 138128283.5 | L21: =SUM(L15:L20) -> 7402522.75 | R21: 0 | S21: 0
S22: 0
B23: Total Long Term Liabilities | D23: =D11+D21 -> 439221740 | F23: =F11+F21 -> 619519143.7 | H23: =H11+H21 -> 618254174.5 | J23: =J11+J21 -> 440486709.1 | L23: =L11+L21 -> 16609368.83
R24: R25 - Other Post-Employment | S24: S25 - Other Post-Employment
R25: 0 | S25: 0
B27: Note 8 - Long Term Liabilities (Prior Year) | D27: Balance | J27: Balance | R27: R28 - Pollution Remediation | S27: S28/S29 - Pollution Remediation
R28: 0 | S28: 0
D29: ="July 1, " &(TEXT(ASD,"YYYY")-2) -> July 1, 2014 | F29: Additions | H29: Reductions | J29: ="June 30, " &(TEXT(ASD,"YYYY")-1) -> June 30, 2015 | L29: Current Portion | S29: 0
B30: Leases
B31: Lease Obligations | D31: 199756630 | F31: =(R34*-1) -> 292342586.5 | H31: =(S34+S35) -> 252978463.8 | J31: 239120752.7 | L31: 6338530.33 | N31: 2911xx, 2194xx | P31: 2194xx | R31: PRIOR YEAR
R33: R34 - Lease Obligations | S33: S34/S35 - Lease Obligations
B34: Other Liabilities | R34: -292342586.5 | S34: 436567824.1
B35: Compensated Absences | D35: 8011635.5 | F35: =(R38+R39)*-1 -> -7665549.05 | H35: =(S38+S39) -> -8754142.9 | J35: 9100229.35 | L35: 5853467.56 | N35: 2971xx, 2871xx | P35: 2871xx | S35: -183589360.2
B36: Net Pension Liability | D36: 0 | F36: =(R42*-1) -> 118219487 | H36: =(S42*1) -> 34110874 | J36: 84108613 | N36: 2915xx | P36: Not Applicable
B37: Notes and Loans Payable | D37: 0 | F37: =(R45*-1) -> 0 | H37: =(S45+S46) -> 0 | J37: 0 | L37: 0 | N37: 2195xx, 2912xx | P37: 2195xx | R37: R38/R39 - Compensated Absences | S37: S38/S39 - Compensated Absences
B38: Claims and Judgments | D38: 0 | F38: =(R49*-1) -> 0 | H38: =(S49+S50) -> 0 | J38: 0 | L38: 0 | N38: 219003, 219004 | P38: 219003 | R38: -11215271.09 | S38: 10612348.95
B39: Other Post-Employment Benefit Liability | D39: 0 | F39: =(R53*-1) -> 0 | H39: =(S53*1) -> 0 | J39: 0 | N39: 2916xx | P39: Not Applicable | R39: 18880820.14 | S39: -19366491.85
B40: Pollution Remediation | D40: 0 | F40: =(R56*-1) -> 0 | H40: =(S56+S57) -> 0 | J40: 0 | L40: 0 | N40: 219001, 219002 | P40: 219001
B41: Total | D41: =SUM(D35:D40) -> 8011635.5 | F41: =SUM(F35:F40) -> 110553938 | H41: =SUM(H35:H40) -> 25356731.1 | J41: =SUM(J35:J40) -> 93208842.35 | L41: =SUM(L35:L40) -> 5853467.56 | R41: R42 - Net Pension | S41: S42 - Net Pension
R42: -118219487 | S42: 34110874
B43: Total Long Term Liabilities | D43: =D31+D41 -> 207768265.5 | F43: =F31+F41 -> 402896524.5 | H43: =H31+H41 -> 278335194.9 | J43: =J31+J41 -> 332329595 | L43: =L31+L41 -> 12191997.89
R44: R45 - Notes and Loans Payable | S44: S45/S46 - Notes and Loans Payable
R45: 0 | S45: 0
A46: Lease Obligations line logic: | S46: 0
A47: Lease Obligations Additions = (credits in account 2194xx)*-1
A48: Lease Obligations Reductions = (debits in account 2194xx and 2911xx) + (credits in account 2911xx) | R48: R49 - Claims and Judgments | S48: S49/S50 - Claims and Judgments
A49: Compensated Absences line logic: | B49: Compensated Absences line logic: | R49: 0 | S49: 0
A50: Compensated Absences Additions = (account 2971xx journal line credits + account 2871xx journal line debits)*-1 | B50: Compensated Absences Additions = (account 2971xx journal line credits + account 2871xx journal line debits)*-1 | S50: 0
A51: Compensated Absences Reductions = (account 2971xx journal line debits + account 2871xx journal line credits) | B51: Compensated Absences Reductions = (account 2971xx journal line debits + account 2871xx journal line credits)
A52: Net Pension and OPEB Liabilities line logic: Debits = Reductions; Credits*-1 = Additions | B52: Net Pension and OPEB Liabilities line logic: Debits = Reductions; Credits*-1 = Additions | R52: R53 - Other Post-Employment | S52: S53 - Other Post-Employment
A53: Notes and Loans Payable Additions = (credits in account 2195xx)*-1 | R53: 0 | S53: 0
A54: Notes and Loans Payable Reductions = (debits in account 2195xx and 2912xx) + (credits in account 2912xx)
A55: Claims and Judgments Additions = (credits in account 219003)*-1 | R55: R56 - Pollution Remediation | S55: S56/S57 - Pollution Remediation
A56: Claims and Judgments Reductions = (debits in account 219003 and 219004) + (credits in account 219004) | R56: 0 | S56: 0
A57: Pollution Remediation Additions = (credits in account 219001)*-1 | S57: 0
A58: Pollution Remediation Reductions = (debits in account 219001 and 219002) + (credits in account 219002)
B62: ="Report ID: "&RID -> Report ID: LTLIAB
B63: ="Layout Name: "&LYN -> Layout Name: LONG_TERM_LIABILITY.XNV
B64: ="Operator: "&OPR -> Operator: JBFREEMAN
B65: ="Instance Directory: "&IDN -> Instance Directory: /opt/psoft/psconfig/appserv/prcs/fprod/NVISION/INSTANCE
B66: ="Run Date: "&TEXT(NvsEndTime,"mmmm dd, yyyy") -> Run Date: March 10, 2017
B75: Version 9.2 | C75: 2.23 | D75: 5.13
C76: 2.35
B77: Release | D77: Date | F77: Developer | H77: Change Request and Details | Q77: Change Information
B78: 5.13 | D78: 2016-04-05 | F78: Robert Prescott | H78: TSK27594 - New nVision Report | Q78: Added node to REPORT_FUNDS tree called OLD_AUX_FUND (12000->120999)

Sheet Net Position
D1: %,QBOR_GASB_LEDGER_NVS,CA.POSTED_TOTAL_AMT,SPER0to999 | F1: %,QBOR_GASB_LEDGER_NVS,CA.POSTED_TOTAL_AMT,SPP0to999
B2: Kennesaw State University | K2: /opt/psoft/psconfig/appserv/prcs/fprod/NVISION/INSTANCE
B3: Classification of Net Position | K3: NPCLASS
B4: ="For the Fiscal Year Ended: "&TEXT(ASD,"mmmm dd, yyyy") -> For the Fiscal Year Ended: June 30, 2016 | K4: 2016-06-30
K5: CLASSIFICATION_NET_POSITION.XNV
B6: Note 10 - Classification of Net Position | K6: JBFREEMAN
D7: ="June 30, " &(TEXT(ASD,"YYYY")) -> June 30, 2016 | F7: ="June 30, " &(TEXT(ASD,"YYYY")-1) -> June 30, 2015 | H7: ="Increase/(Decrease) FY "&(TEXT(ASD,"YYYY"))&"/"&(TEXT(ASD,"YYYY")-1) -> Increase/(Decrease) FY 2016/2015 | J7: All Funds except Funds 11921, 80xxx, & 90xxx, unless specifically excluded
B8: NET POSITION
A9: %,R,FFUND_CODE,TBOR_NPCLASS_FUND,NNET_INVESTMENTS,FACCOUNT,TBOR_NPCLASS_ACCT,NNET_INVESTMENTS | B9: Net Investment in Capital Assets | D9: 274600389.2 | F9: 186674212 | H9: =D9-F9 -> 87926177.26 | J9: 311xxx
B11: Restricted
B12: Nonexpendable
A13: %,R,FFUND_CODE,TBOR_NPCLASS_FUND,NPERM_ENDOWMENT,FACCOUNT,TBOR_NPCLASS_ACCT,NPERM_ENDOWMENT | B13: Permanent Endowment | D13: 4091172.19 | F13: 547563.86 | H13: =D13-F13 -> 3543608.33 | J13: 360xxx (Fund 40000)
B16: Expendable
A17: %,R,FFUND_CODE,TBOR_NPCLASS_FUND,NRESTRICTED_ACTIVITY,FACCOUNT,TBOR_NPCLASS_ACCT,NRESTRICTED_ACTIVITY | B17: Restricted E&G and Other Organized Activities | D17: 146551.61 | F17: 148085 | H17: =D17-F17 -> -1533.39 | J17: 371xxx (Funds 12xxx, 20000, and 21000)
A18: %,R,FFUND_CODE,TBOR_NPCLASS_FUND,NFEDERAL_LOANS,FACCOUNT,TBOR_NPCLASS_ACCT,NFEDERAL_LOANS | B18: Federal Loans | D18: 686918.31 | F18: 463725.97 | H18: =D18-F18 -> 223192.34 | J18: 371xxx (Fund 30xxx)
A19: %,R,FFUND_CODE,TBOR_NPCLASS_FUND,NINSTITUTIONAL_LOANS,FACCOUNT,TBOR_NPCLASS_ACCT,NINSTITUTIONAL_LOANS | B19: Institutional Loans | D19: 95404.33 | F19: 83779.62 | H19: 11624.71 | J19: 371xxx (Fund 31xxx)
A20: %,R,FFUND_CODE,TBOR_NPCLASS_FUND,NTERM_ENDOWMENTS,FACCOUNT,TBOR_NPCLASS_ACCT,NTERM_ENDOWMENTS | B20: Term Endowments | D20: 0 | F20: 0 | H20: 0 | J20: 371xxx (Fund 41xxx)
A21: %,R,FFUND_CODE,TBOR_NPCLASS_FUND,NQUASI_ENDOWMENTS,FACCOUNT,TBOR_NPCLASS_ACCT,NQUASI_ENDOWMENTS | B21: Quasi-Endowments | D21: 0 | F21: 0 | H21: 0 | J21: 371xxx (Fund 42xxx)
A22: %,R,FFUND_CODE,TBOR_NPCLASS_FUND,NCAPITAL_PROJECTS,FACCOUNT,TBOR_NPCLASS_ACCT,NCAPITAL_PROJECTS | B22: Capital Projects | D22: 0 | F22: 0 | H22: 0 | J22: 371xxx (Fund 50xxx)
A23: %,R,FFUND_CODE,TBOR_NPCLASS_FUND,NHEALTH_INS_RESERVE,FACCOUNT,TBOR_NPCLASS_ACCT,NHEALTH_INS_RESERVE | B23: Health Insurance Reserve | D23: 0 | F23: 0 | H23: 0 | J23: 371xxx (Fund 11922)
B24: Sub-Total | D24: =SUM(D13:D23) -> 5020046.44 | F24: =SUM(F13:F23) -> 1243154.45 | H24: =SUM(H13:H23) -> 3776891.99
B26: Unrestricted
A27: %,R,FFUND_CODE,TBOR_NPCLASS_FUND,NAUXILIARY_OPERATIONS,FACCOUNT,TBOR_NPCLASS_ACCT,NAUXILIARY_OPERATIONS | B27: Hide - Auxiliary Operations | D27: 17657426.75 | F27: -2391739.927
A28: %,R,FFUND_CODE,TBOR_NPCLASS_FUND,NOTHER_UNRESTRICTED,FACCOUNT,TBOR_NPCLASS_ACCT,NOTHER_UNRESTRICTED | B28: Hide - Other Unrestricted | D28: -93438620.46 | F28: -72944013.58
B29: Hide - Reserve Encumbrances (All Funds except 12%, 2%, 3%, 4%) | D29: 27001300.54 | F29: 27304463.37
B30: Hide - Reserve Encumbrances (Fund 12000 only) | D30: 1285535.49 | F30: 1506695.85
B31: Auxiliary Operations | D31: =D27-D30 -> 16371891.26 | F31: =F27-F30 -> -3898435.777 | H31: =D31-F31 -> 20270327.03 | J31: 321xxx, 329xxx - except for 329600, 34xxxx (Funds 12xxx)
A32: %,R,FFUND_CODE,TBOR_NPCLASS_FUND,NRR_RESERVE,FACCOUNT,TBOR_NPCLASS_ACCT,NRR_RESERVE | B32: R & R Reserve | D32: 6386972.03 | F32: 8518334.158 | H32: =D32-F32 -> -2131362.128 | J32: 323xxx
B33: Reserve for Encumbrances | D33: =D29+D30 -> 28286836.03 | F33: =F29+F30 -> 28811159.22 | H33: -524323.19 | J33: Ledger=ENCUMB: Acct 381xxx, Periods 0-12, FUND NOT LIKE 2%, 3%, 4%
A34: %,R,FFUND_CODE,TBOR_NPCLASS_FUND,NRESERVE_INVENTORY,FACCOUNT,TBOR_NPCLASS_ACCT,NRESERVE_INVENTORY | B34: Reserve for Inventory | D34: 6670.12 | F34: 0 | H34: 6670.12 | J34: 322xxx
A35: %,R,FFUND_CODE,TBOR_NPCLASS_FUND,NHEALTH_INS_RESERVE,FACCOUNT,TBOR_NPCLASS_ACCT,NHEALTH_INS_RESERVE | B35: Health Insurance Reserve | D35: 0 | F35: 0 | H35: 0 | J35: 371xxx (Fund 11922 & 11923)
B36: Other Unrestricted | D36: =D28-D29 -> -120439921 | F36: =F28-F29 -> -100248477 | H36: -20191444.05 | J36: 321xxx, 329xxx - except for 329600, 34xxxx (Exclude Funds 12xxx)
A37: %,R,FFUND_CODE,TBOR_NPCLASS_FUND,NCAPITAL_RESERVE,FACCOUNT,TBOR_NPCLASS_ACCT,NCAPITAL_RESERVE | B37: Capital Reserve Fund | D37: 2098530.5 | F37: 1482586.04 | H37: 615944.46 | J37: 329600
B38: Sub-Total | D38: =SUM(D31:D37) -> -67289021.07 | F38: =SUM(F31:F37) -> -65334833.31 | H38: =SUM(H31:H37) -> -1954187.756
B40: TOTAL NET POSITION | D40: =D9+D24+D38 -> 212331414.6 | F40: =F9+F24+F38 -> 122582533.1 | H40: =H9+H24+H38 -> 89748881.49
B43: Breakout of Non-Lapsing Funds
B45: Departmental Sales & Services - Fund 14000
B46: Reserve for Encumbrances | D46: 451264.61 | F46: 240823.1 | H46: Ledger=ENCUMB: Acct 381xxx, Periods 0-12, Fund 14000
B47: Other Unrestricted | D47: =D48-D46 -> 6615907.49 | F47: =F48-F46 -> 4904609.31 | H47: 321xxx, 322xxx, 323xxx, 329xxx, 34xxxx (Fund 14000)
A48: %,R,FFUND_CODE,TBOR_NPCLASS_FUND,NDEPARTMENTAL_SALES,FACCOUNT,TBOR_NPCLASS_ACCT,NNONLAP_OTHER_UNREST | B48: Total | D48: 7067172.1 | F48: 5145432.41
B50: Indirect Cost Recoveries - Fund 15000
B51: Reserve for Encumbrances | D51: 16144.86 | F51: 8010.16 | H51: Ledger=ENCUMB: Acct 381xxx, Periods 0-12, Fund 15000
B52: Other Unrestricted | D52: =D53-D51 -> 2116977.72 | F52: =F53-F51 -> 1802396.64 | H52: 321xxx, 322xxx, 323xxx, 329xxx, 34xxxx (Fund 15000)
A53: %,R,FFUND_CODE,TBOR_NPCLASS_FUND,NINDIRECT_COST_RECOV,FACCOUNT,TBOR_NPCLASS_ACCT,NNONLAP_OTHER_UNREST | B53: Total | D53: 2133122.58 | F53: 1810406.8
B55: Technology Fees - Fund 16000
B56: Reserve for Encumbrances | D56: 789774.35 | F56: 519766.91 | H56: Ledger=ENCUMB: Acct 381xxx, Periods 0-12, Fund 16000
B57: Other Unrestricted | D57: =D58-D56 -> 671790.52 | F57: =F58-F56 -> 89450.08 | H57: 321xxx, 322xxx, 323xxx, 329xxx, 34xxxx (Fund 16000)
A58: %,R,FFUND_CODE,TBOR_NPCLASS_FUND,NTECHNOLOGY_FEES,FACCOUNT,TBOR_NPCLASS_ACCT,NNONLAP_OTHER_UNREST | B58: Total | D58: 1461564.87 | F58: 609216.99
B61: ="Report ID: "&RID -> Report ID: NPCLASS
B62: ="Layout Name: "&LYN -> Layout Name: CLASSIFICATION_NET_POSITION.XNV
B63: ="Operator: "&OPR -> Operator: JBFREEMAN
B64: ="Instance Directory: "&IDN -> Instance Directory: /opt/psoft/psconfig/appserv/prcs/fprod/NVISION/INSTANCE
B65: ="Run Date: "&TEXT(NvsEndTime,"mmmm dd, yyyy") -> Run Date: March 10, 2017
B74: Version 9.2 | C74: 2.23 | D74: 5.13
C75: 2.35
B76: Release | D76: Date | F76: Developer | H76: Change Request and Details | K76: Change Information
B77: 5.13 | D77: 2016-03-22 | F77: Robert Prescott | H77: TSK27546 - New nVision Report | K77: Added node to REPORT_FUNDS tree called OLD_AUX_FUND (12000->120999)

Sheet Lease Obligations
D1: %,QBOR_GASB_LEDGER_NVS,CA.POSTED_TOTAL_AMT,SPER0to999 | F1: %,QBOR_GASB_LEDGER_NVS,CA.POSTED_TOTAL_AMT,SPER0to999
B2: Kennesaw State University | O2: /opt/psoft/psconfig/appserv/prcs/fprod/NVISION/INSTANCE
B3: Summary of Carrying Values of Assets Held Under Capital Leases | O3: LEASEOBL
B4: ="For the Fiscal Year Ended: "&TEXT(ASD,"mmmm dd, yyyy") -> For the Fiscal Year Ended: June 30, 2016 | O4: 2016-06-30
O5: LEASE_OBLIGATIONS.XNV
B6: Note 13A - Lease Obligations | L6: All Funds except Funds 11921, 80xxx, & 90xxx, unless specifically excluded | O6: JBFREEMAN
D8: Gross Amount | F8: Less: Accumulated Depreciation | H8: ="Net, Assets Held Under Capital Lease at "&TEXT(ASD,"mmmm dd, yyyy") -> Net, Assets Held Under Capital Lease at June 30, 2016 | J8: ="Outstanding Balances per lease schedules at "&TEXT(ASD,"mmmm dd, yyyy") -> Outstanding Balances per lease schedules at June 30, 2016 | L8: Mapping for "Gross Amount" Column | N8: Mapping for "Less: Accumulated Depreciation" Column
A10: %,FFUND_CODE,TBOR_LEASEOBL_FUND,NLEASE_OBLIGATION | B10: Leased Land & Land Improvements | D10: 21694065.89 | F10: -0.002 | H10: =D10-F10 -> 21694065.89 | L10: 1611xx | N10: Not Applicable
A11: %,FFUND_CODE,TBOR_LEASEOBL_FUND,NLEASE_OBLIGATION | B11: Leased Infrastructure | D11: 0 | F11: 0 | H11: =D11-F11 -> 0 | L11: 1671xx excluding 16719x | N11: 16719x
A12: %,FFUND_CODE,TBOR_LEASEOBL_FUND,NLEASE_OBLIGATION | B12: Leased Buildings & Building Improvements | D12: 328885465.5 | F12: -89660686.4 | H12: 418546151.9 | L12: 1621xx excluding 16219x | N12: 16219x
A13: %,FFUND_CODE,TBOR_LEASEOBL_FUND,NLEASE_OBLIGATION | B13: Leased Facilities and Other Improvements | D13: 0 | F13: 0 | H13: 0 | L13: 1631xx excluding 16319x | N13: 16319x
A14: %,FFUND_CODE,TBOR_LEASEOBL_FUND,NLEASE_OBLIGATION | B14: Leased Equipment | D14: 0 | F14: 0 | H14: 0 | L14: 1651xx excluding 16519x | N14: 16519x
B15: ="Total Assets Held Under Capital Lease at "&TEXT(ASD,"mmmm dd, yyyy") -> Total Assets Held Under Capital Lease at June 30, 2016 | D15: =SUM(D10:D14) -> 350579531.4 | F15: =SUM(F10:F14) -> -89660686.4 | H15: =SUM(H10:H14) -> 440240217.8 | J15: =SUM(J10:J14) -> 0
B19: ="Report ID: "&RID -> Report ID: LEASEOBL
B20: ="Layout Name: "&LYN -> Layout Name: LEASE_OBLIGATIONS.XNV
B21: ="Operator: "&OPR -> Operator: JBFREEMAN
B22: ="Instance Directory: "&IDN -> Instance Directory: /opt/psoft/psconfig/appserv/prcs/fprod/NVISION/INSTANCE
B23: ="Run Date: "&TEXT(NvsEndTime,"mmmm dd, yyyy") -> Run Date: March 10, 2017
B32: Version 9.2 | C32: 2.23 | D32: 5.13
C33: 2.35
B34: Release | D34: Date | F34: Developer | H34: Change Request and Details | O34: Change Information
B35: 5.13 | D35: 2016-03-22 | F35: Robert Prescott | H35: TSK27545 - New nVision Report | O35: Added node to REPORT_FUNDS tree called OLD_AUX_FUND (12000->120999)

Sheet Nat vs Functional
A1: %,QBOR_GASB_LEDGER_NVS,CA.POSTED_TOTAL_AMT,S2YEAR | F1: %,FPROGRAM_CODE,TBOR_NAT_PRGM,NINSTRUCTION,FFUND_CODE,TBOR_NAT_FUND,NNON_AUX_FUNDS | H1: %,FPROGRAM_CODE,TBOR_NAT_PRGM,NRESEARCH,FFUND_CODE,TBOR_NAT_FUND,NNON_AUX_FUNDS | J1: %,FPROGRAM_CODE,TBOR_NAT_PRGM,NPUBLIC_SERVICE,FFUND_CODE,TBOR_NAT_FUND,NNON_AUX_FUNDS | L1: %,FPROGRAM_CODE,TBOR_NAT_PRGM,NACADEMIC,FFUND_CODE,TBOR_NAT_FUND,NNON_AUX_FUNDS | N1: %,FPROGRAM_CODE,TBOR_NAT_PRGM,NSTUDENT_SVCS,FFUND_CODE,TBOR_NAT_FUND,NNON_AUX_FUNDS | P1: %,FPROGRAM_CODE,TBOR_NAT_PRGM,NINST_SUPPORT,FFUND_CODE,TBOR_NAT_FUND,NNON_AUX_FUNDS | R1: %,FPROGRAM_CODE,TBOR_NAT_PRGM,NPLANT_OPS,FFUND_CODE,TBOR_NAT_FUND,NNON_AUX_FUNDS | T1: %,FPROGRAM_CODE,TBOR_NAT_PRGM,NSCHOLARSHIPS,FFUND_CODE,TBOR_NAT_FUND,NNON_AUX_FUNDS | W1: %,FFUND_CODE,TBOR_NAT_FUND,NNON_AUX_FUNDS,FPROGRAM_CODE,TBOR_NAT_PRGM,NAUXILIARY,S2YEAR | X1: %,FFUND_CODE,TBOR_NAT_FUND,NAUXILIARY_ENT,S2YEAR | Z1: %,FFUND_CODE,TBOR_NAT_FUND,NNON_AUX_FUNDS,FPROGRAM_CODE,V00000,V | AB1: %,FPROGRAM_CODE,TBOR_NAT_PRGM,NPATIENT_CARE,FFUND_CODE,TBOR_NAT_FUND,NNON_AUX_FUNDS
B2: Kennesaw State University
B3: Notes to Financial Statements | AK3: NAT
B4: Statement of Operating Expenses - Natural vs. Functional Classifications | AK4: GASB_NATURAL
B5: ="For Fiscal Year Ended: "&TEXT(ASD,"mmmm dd, yyyy") -> For Fiscal Year Ended: June 30, 2016 | AK5: JBFREEMAN
B6: Note # 15 | AF6: Check Points - Should agree with | AK6: 2016-06-30
F7: ="Year Ended June 30, " &(TEXT(ASD,"YYYY")) -> Year Ended June 30, 2016 | AF7: SRECNP Operating Expenses
D8: All Funds except Funds 11921, 80xxx & 90xxxx, unless specifically excluded | F8: Functional Classification
AK9: /opt/psoft/psconfig/appserv/prcs/fprod/NVISION/INSTANCE
D10: Actual, Capital, and GAAP Ledger | J10: Public | L10: Academic | N10: Student | P10: Institutional | R10: Plant Operations | T10: Scholarships | V10: Auxiliary | Z10: Unallocated | AD10: Total | AH10: Should
B11: Natural Classification | F11: Instruction | H11: Research | J11: Service | L11: Support | N11: Services | P11: Support | R11: & Maintenance | T11: Fellowships | V11: Enterprises | Z11: Expenses | AB11: Patient Care | AD11: Expenses | AF11: SRECNP | AH11: Be Zero
A13: %,FACCOUNT,TBOR_NAT_ACCT,NFACULTY SALARY | B13: Faculty | D13: 51xxxx, 53xxxx | F13: 88188963.57 | H13: 277721.26 | J13: 620469.14 | L13: 1993970.98 | N13: 228497.76 | P13: 324332.23 | R13: -118941.14 | T13: 0 | V13: =W13+X13 -> 4550 | W13: 0 | X13: 4550 | Z13: 0 | AB13: 0 | AD13: =SUM(F13+H13+J13+L13+N13+P13+R13+T13+V13+Z13+AB13) -> 91519563.8 | AH13: =AD13-AF13 -> 91519563.8
A14: %,FACCOUNT,TBOR_NAT_ACCT,NSTAFF SALARY | B14: Staff | D14: 52xxxx,54xxxx | F14: 25850272.15 | H14: 267943.83 | J14: 3609388.98 | L14: 30188047.33 | N14: 17343363.93 | P14: 18459867.67 | R14: 12062160.94 | T14: 0 | V14: =W14+X14 -> 10648168.87 | W14: 0 | X14: 10648168.87 | Z14: 0 | AB14: 0 | AD14: =SUM(F14+H14+J14+L14+N14+P14+R14+T14+V14+Z14+AB14) -> 118429213.7 | AH14: =AD14-AF14 -> 118429213.7
A15: %,FACCOUNT,TBOR_NAT_ACCT,NBENEFITS | B15: Benefits | D15: 55xxxx | F15: 23492188.53 | H15: 90702.57 | J15: 991168.63 | L15: 8609461.63 | N15: 5133735.27 | P15: 10986992.32 | R15: 4219256.93 | T15: 0 | V15: 3160481.9 | W15: 0 | X15: 3160481.9 | Z15: 0 | AB15: 0 | AD15: 56683987.78 | AH15: 56683987.78
A16: %,FACCOUNT,TBOR_NAT_ACCT,NOTHER PER SERVICES | B16: Personal Services | D16: 56xxxx, 59xxxx,723xxx | F16: 72506.14 | H16: 0 | J16: 37505.15 | L16: 25236.04 | N16: 47309.21 | P16: 969125.38 | R16: -159982.57 | T16: 0 | V16: 191685.41 | W16: 0 | X16: 191685.41 | Z16: 0 | AB16: 0 | AD16: 1183384.76 | AH16: 1183384.76
A17: %,FACCOUNT,TBOR_NAT_ACCT,NTRAVEL_EMP | B17: Travel | D17: 6xxxxx | F17: 1768121.74 | H17: 49657.09 | J17: 100399.78 | L17: 614620.53 | N17: 342503.07 | P17: 312031.62 | R17: 60995.72 | T17: 0 | V17: 85782.82 | W17: 0 | X17: 85782.82 | Z17: 0 | AB17: 0 | AD17: 3334112.37 | AH17: 3334112.37
A18: %,FACCOUNT,TBOR_NAT_ACCT,NSCHOLARSHIPS | B18: Scholarships and fellowships | D18: 78xxxx | F18: 707739 | H18: 20600 | J18: 307998.62 | L18: 79510.54 | N18: 605565.74 | P18: 6073.96 | R18: 0 | T18: 22826517.56 | V18: 3502831.85 | W18: 0 | X18: 3502831.85 | Z18: 0 | AB18: 0 | AD18: 28056837.27 | AH18: 28056837.27
A19: %,FACCOUNT,TBOR_NAT_ACCT,NUTILITIES | B19: Utilities | D19: 717xxx, 771xxx | F19: 470553.36 | H19: 0.5 | J19: 41217.72 | L19: 411591.25 | N19: 438497.37 | P19: 279819.33 | R19: 6777191.82 | T19: 0 | V19: 1317738.6 | W19: 0 | X19: 1317738.6 | Z19: 0 | AB19: 0 | AD19: 9736609.95 | AH19: 9736609.95
A20: %,FACCOUNT,TBOR_NAT_ACCT,NSUPPLIES | B20: Supplies and others services | D20: 65xxxx,700xxx,702xxx->704xxx, 712xxx,714xxx,715xxx,719xxx->722xxx, 724xxx, 725xxx, 726xxx, 727xxx, 733xxx, 734xxx, 735xxx, 742xxx -> 744xxx, 748xxx, 751xxx -> 753xxx, 798xxx, 799990,800000 -> 889xxx (except 8182xx), 9xxxxx (except 99999x),4711xx, 7281xx | F20: 13573050.83 | H20: 546008.66 | J20: 3269440.12 | L20: 9509367.23 | N20: 6790569.591 | P20: 14731115.44 | R20: 13982870.54 | T20: 0 | V20: 54122395.85 | W20: 0 | X20: 54122395.85 | Z20: 0 | AB20: 0 | AD20: 116524818.3 | AH20: 116524818.3
A21: %,FACCOUNT,TBOR_NAT_ACCT,NDEPRECIATION | B21: Depreciation | D21: 8901xx, 890900 | F21: 3032561.58 | H21: 233387.42 | J21: 12698.92 | L21: 3405881.73 | N21: 3247711.28 | P21: 3512566.83 | R21: 6101742.78 | T21: 0 | V21: 12161981.96 | W21: 0 | X21: 12161981.96 | Z21: 0 | AB21: 0 | AD21: 31708532.5 | AH21: 31708532.5
B23: Total Expenses | F23: =SUM(F13:F21) -> 157155956.9 | H23: =SUM(H13:H21) -> 1486021.33 | J23: 8990287.06 | L23: 54837687.26 | N23: 34177753.22 | P23: 49581924.78 | R23: 42925295.02 | T23: 22826517.56 | V23: 85195617.26 | W23: 0 | X23: 85195617.26 | Z23: 0 | AB23: 0 | AD23: =SUM(AD13:AD21) -> 457177060.4 | AH23: =AD23-AF23 -> 457177060.4
B26: Program Code | F26: 11xxx | H26: 12xxx | J26: 13xxx | L26: 14xxx | N26: 15xxx | P26: 16xxx | R26: 17xxx | T26: 18xxx | V26: Programs 2xxxx all other funds | W26: Programs 2xxxx all other funds | Z26: All expenses with no program code or all zeros program code | AB26: 32000
F27: Exclude Funds 12xxx | H27: Exclude Funds 12xxx | J27: Exclude Funds 12xxx | L27: Exclude Funds 12xxx | N27: Exclude Funds 12xxx | P27: Exclude Funds 12xxx | R27: Exclude Funds 12xxx | T27: Exclude Funds 12xxx | V27: Fund 12xxx all programs | X27: Fund 12xxx all programs | Z27: Exclude Funds 12xxx | AB27: Exclude Funds 12xxx
F29: ="Year Ended June 30, " &(TEXT(ASD,"YYYY")-1) -> Year Ended June 30, 2015
F30: Functional Classification
J32: Public | L32: Academic | N32: Student | P32: Institutional | R32: Plant Operations | T32: Scholarships | V32: Auxiliary | Z32: Unallocated | AB32: (Augusta U Only) | AD32: Total
B33: Natural Classification | F33: Instruction | H33: Research | J33: Service | L33: Support | N33: Services | P33: Support | R33: & Maintenance | T33: Fellowships | V33: Enterprises | Z33: Expenses | AB33: Patient Care | AD33: Expenses
A35: %,FACCOUNT,TBOR_NAT_ACCT,NFACULTY SALARY,S2YR-1 | B35: Faculty | D35: 51xxxx, 53xxxx | F35: 66357888.02 | H35: 205691.95 | J35: 551126.611 | L35: 1115631.72 | N35: 151045.83 | P35: 144827.99 | R35: -92520.43 | T35: 0 | V35: =W35+X35 -> 19785.36 | W35: 0 | X35: 19785.36 | Z35: 0 | AB35: 0 | AD35: =SUM(F35+H35+J35+L35+N35+P35+R35+T35+V35+Z35+AB35) -> 68453477.06 | AH35: =AD35-AF35 -> 68453477.06
A36: %,FACCOUNT,TBOR_NAT_ACCT,NSTAFF SALARY,S2YR-1 | B36: Staff | D36: 52xxxx,54xxxx | F36: 21784288.41 | H36: 371822.13 | J36: 2606974.61 | L36: 22159376.48 | N36: 12910897.78 | P36: 13608504 | R36: 8138158.78 | T36: 0 | V36: =W36+X36 -> 9246840.2 | W36: 0 | X36: 9246840.2 | Z36: 0 | AB36: 0 | AD36: =SUM(F36+H36+J36+L36+N36+P36+R36+T36+V36+Z36+AB36) -> 90826862.39 | AH36: =AD36-AF36 -> 90826862.39
A37: %,FACCOUNT,TBOR_NAT_ACCT,NBENEFITS,S2YR-1 | B37: Benefits | D37: 55xxxx | F37: 17159764.82 | H37: 108549.21 | J37: 801625.739 | L37: 5982122.07 | N37: 3781141.7 | P37: 7376214.61 | R37: 2825640.57 | T37: 0 | V37: 2658104.86 | W37: 0 | X37: 2658104.86 | Z37: 0 | AB37: 0 | AD37: 40693163.58 | AH37: 40693163.58
A38: %,FACCOUNT,TBOR_NAT_ACCT,NOTHER PER SERVICES,S2YR-1 | B38: Personal Services | D38: 56xxxx, 59xxxx, 723xxx (do not include 566xxx) | F38: 46275.41 | H38: 0 | J38: 8718.17 | L38: 15422.14 | N38: 24349.4 | P38: 470604.09 | R38: -91271.41 | T38: 0 | V38: 137501.05 | W38: 0 | X38: 137501.05 | Z38: 0 | AB38: 0 | AD38: 611598.85 | AH38: 611598.85
A39: %,FACCOUNT,TBOR_NAT_ACCT,NTRAVEL_EMP,S2YR-1 | B39: Travel | D39: 6xxxxx | F39: 1430411.19 | H39: 30433.99 | J39: 97916.31 | L39: 399588.16 | N39: 348940.17 | P39: 256885.76 | R39: 88121.46 | T39: 0 | V39: 85414.43 | W39: 0 | X39: 85414.43 | Z39: 0 | AB39: 0 | AD39: 2737711.47 | AH39: 2737711.47
A40: %,FACCOUNT,TBOR_NAT_ACCT,NSCHOLARSHIPS,S2YR-1 | B40: Scholarships and fellowships | D40: 78xxxx | F40: 645063.56 | H40: 41195 | J40: 124360 | L40: 750 | N40: 832275.12 | P40: 182971.95 | R40: 0 | T40: 16128412.21 | V40: 3302353.51 | W40: 0 | X40: 3302353.51 | Z40: 0 | AB40: 0 | AD40: 21257381.35 | AH40: 21257381.35
A41: %,FACCOUNT,TBOR_NAT_ACCT,NUTILITIES,S2YR-1 | B41: Utilities | D41: 717xxx, 771xxx | F41: 360560.67 | H41: 394.41 | J41: 36154.37 | L41: 268303.7 | N41: 192102.4 | P41: 73616.24 | R41: 4915181.68 | T41: 0 | V41: 565477.48 | W41: 0 | X41: 565477.48 | Z41: 0 | AB41: 0 | AD41: 6411790.95 | AH41: 6411790.95
A42: %,FACCOUNT,TBOR_NAT_ACCT,NSUPPLIES,S2YR-1 | B42: Supplies and others services | D42: 65xxxx,700xxx,702xxx->704xxx, 712xxx,714xxx,715xxx,719xxx->722xxx, 724xxx, 725xxx, 726xxx, 727xxx, 733xxx, 734xxx, 735xxx, 742xxx -> 744xxx, 748xxx, 751xxx -> 753xxx, 798xxx, 799990,800000 -> 889xxx (except 8182xx), 9xxxxx (except 99999x),4711xx, 7281xx | F42: 11968417.2 | H42: 243226.11 | J42: 2404803.19 | L42: 9040379.76 | N42: 6740952.81 | P42: 10272460.01 | R42: 10673237.42 | T42: 0 | V42: 35182404.64 | W42: 0 | X42: 35182404.64 | Z42: 0 | AB42: 0 | AD42: 86525881.14 | AH42: 86525881.14
A43: %,FACCOUNT,TBOR_NAT_ACCT,NDEPRECIATION,S2YR-1 | B43: Depreciation | D43: 890900, 8901xx | F43: 607338.66 | H43: 155178.16 | J43: 2265.98 | L43: 2188006.5 | N43: 2302633.96 | P43: 1964814.56 | R43: 6155620.61 | T43: 0 | V43: 8911128.59 | W43: 0 | X43: 8911128.59 | Z43: 0 | AB43: 0 | AD43: 22286987.02 | AH43: 22286987.02
B45: Total Expenses | F45: =SUM(F35:F43) -> 120360008 | H45: =SUM(H35:H43) -> 1156490.96 | J45: =SUM(J35:J43) -> 6633944.98 | L45: =SUM(L35:L43) -> 41169580.53 | N45: =SUM(N35:N43) -> 27284339.17 | P45: =SUM(P35:P43) -> 34350899.21 | R45: =SUM(R35:R43) -> 32612168.68 | T45: =SUM(T35:T43) -> 16128412.21 | V45: =SUM(V35:V43) -> 60109010.12 | W45: =SUM(W35:W43) -> 0 | X45: =SUM(X35:X43) -> 60109010.12 | Z45: =SUM(Z35:Z43) -> 0 | AB45: =SUM(AB35:AB43) -> 0 | AD45: =SUM(AD35:AD43) -> 339804853.8 | AH45: 339804853.8
B48: Totals should agree with SRECNP Operating Expenses
B52: ="Report ID: "&RID -> Report ID: NAT
B53: ="Layout Name: "&LYN -> Layout Name: GASB_NATURAL
B54: ="Operator: "&OPR -> Operator: JBFREEMAN
B55: ="Instance Directory: "&IDN -> Instance Directory: /opt/psoft/psconfig/appserv/prcs/fprod/NVISION/INSTANCE
B56: ="Run Date: "&TEXT(NvsEndTime,"mmmm dd,yyyy") -> Run Date: March 10,2017
B63: Version | C63: 8.9 | D63: 5.14
B66: Change Information
D67: Date | F67: Release | G67: Developer | I67: Change Request and Details
D68: 2008-05-06 | F68: 1 | H68: Lina B. | I68: change or ticket number and details of change | J68: TSK40588
D69: 2009-03-06 | F69: 1.1 | H69: Lina B. | J69: TSK49274
D70: 2010-11-17 | F70: 2.09 | H70: Lina B. | J70: RFC4796;TSK5311
D71: 2010-02-08 | F71: 2.12 | H71: Lina B. | J71: RFC3010;TSK6942
D72: 2011-03-11 | F72: 2.18 | H72: Michael Campbell | J72: mst11521tsk11698 | L72: Made change to exclude the 566xxx account from the Personal services via query
L73: see query for criteria
D74: 2011-06-15 | F74: ad hoc release | H74: Michael Campbell | J74: mst12831 tsk12832 | L74: additional requirements were received on 6/10 also updated labels on report which were not done in 2009.
D75: 2013-04-11 | F75: 2.7 | H75: RMullinix | J75: TSK18705 | L75: Wording and formatting changes, added check point section/formula on right
D76: 2015-01-08 | F76: 4 | H76: Robert Presscott | J76: TSK22576 | L76: 9.2 Upgrade
D77: 2015-09-30 | F77: 5 | H77: RMullinix | J77: TSK26266 | L77: prepare for switch to unix processing
D78: 2016-04-11 | F78: 5.13 | H78: Mpaktinat | J78: tsk27547 | L78: Update for 5.13 release per the request of the Office of Fiscal Affairs
D79: 2016-05-11 | F79: 5.14 | H79: Robert Presscott | J79: TSK27769 | L79: Update Mapping

Sheet Aux SNP
A1: %,S2YEAR | G1: %,QBOR_GASB_LEDGER_NVS,CA.POSTED_TOTAL_AMT,FFUND_CODE,TBOR_AUXSNP_FUND,NHOUSING | I1: %,QBOR_GASB_LEDGER_NVS,CA.POSTED_TOTAL_AMT,FFUND_CODE,TBOR_AUXSNP_FUND,NSTORES AND SHOPS | K1: %,QBOR_GASB_LEDGER_NVS,CA.POSTED_TOTAL_AMT,FFUND_CODE,TBOR_AUXSNP_FUND,NFOOD SERVICES | M1: %,QBOR_GASB_LEDGER_NVS,CA.POSTED_TOTAL_AMT,FFUND_CODE,TBOR_AUXSNP_FUND,NTRANSPORT AND PARK | O1: %,QBOR_GASB_LEDGER_NVS,CA.POSTED_TOTAL_AMT,FFUND_CODE,TBOR_AUXSNP_FUND,NTRANSPORTATION | Q1: %,QBOR_GASB_LEDGER_NVS,CA.POSTED_TOTAL_AMT,FFUND_CODE,TBOR_AUXSNP_FUND,NHEALTH SERVICES | S1: %,QBOR_GASB_LEDGER_NVS,CA.POSTED_TOTAL_AMT,FFUND_CODE,TBOR_AUXSNP_FUND,NATHLETICS | U1: %,QBOR_GASB_LEDGER_NVS,CA.POSTED_TOTAL_AMT,FFUND_CODE,TBOR_AUXSNP_FUND,NOTHER OPERATIONS
B2: Kennesaw State University | Y2: AUXSNP
B3: Auxiliary Enterprises | Y3: JBFREEMAN
B4: Statement of Net Position | Y4: 2016-06-30
B5: =TEXT(ASD,"mmmm dd, yyyy") -> June 30, 2016 | Y5: GASB_AUXILIARY_STATEMENT_OF_NET_POSITION
Y6: /opt/psoft/psconfig/appserv/prcs/fprod/NVISION/INSTANCE
G8: Residence | I8: Stores and | K8: Food | M8: Parking | O8: Transportation | Q8: Health | S8: Intercollegiate
G9: Halls | I9: Shops | K9: Services | Q9: Services | S9: Athletics | U9: Other | W9: Total
D10: Fund numbers: | G10: 12210 | I10: 12230 | K10: 12220 | M10: 12250 | O10: 12260 | Q10: 12240 | S10: 12280 | U10: 12270
B12: ASSETS
B13: Current Assets
A14: %,FACCOUNT,TBOR_AUXSNP_ACCT,NCASH | B14: Cash and cash equivalents | D14: 111xxx,112xxx,1181xx,118200,1185xx, 1191xx, 1192xx, 1193xx,1194xx | G14: 18583355 | I14: 1845351.937 | K14: -2303936.998 | M14: 7788401.74 | O14: -3265517.245 | Q14: 1053656.257 | S14: 2913830.642 | U14: -1012363.941 | W14: =SUM(G14:U14) -> 25602777.39
A15: %,FACCOUNT,TBOR_AUXSNP_ACCT,NSHORTTERM INVESTMENT | B15: Short-term investments | D15: 1198xx | G15: 0 | I15: 0 | K15: 0 | M15: 0 | O15: 0 | Q15: 0 | S15: 0 | U15: 0 | W15: 0
B16: Accounts receivable, net | W16: 0
A17: %,FACCOUNT,TBOR_AUXSNP_ACCT,NRECEIVABLES_FED | B17: Rec.-Federal Financial Assistance | D17: 124xxx | G17: 0 | I17: 0 | K17: 0 | M17: 0 | O17: 0 | Q17: 0 | S17: 0 | U17: 0 | W17: 0
A18: %,FACCOUNT,TBOR_AUXSNP_ACCT,NRECEIVABLES_STATE | B18: Rec.-State General Appropriations | D18: 123xxx | G18: 0 | I18: 0 | K18: 0 | M18: 0 | O18: 0 | Q18: 0 | S18: 0 | U18: 0 | W18: 0
A19: %,FACCOUNT,TBOR_AUXSNP_ACCT,NRECEIVABLES_OTHER | B19: Rec.- Other | D19: 12xxxx (except for 122xxx, 123xxx, 124xxx, 1260xx, 1268xx,1269xx) | G19: 239508 | I19: 439129.74 | K19: 219610.16 | M19: 107619.69 | O19: 8378.8 | Q19: 0 | S19: 4963.75 | U19: 126677.56 | W19: 1145887.7
A20: %,FACCOUNT,TBOR_AUXSNP_ACCT,NRECEIVABLES_AFFIL | B20: Due From Affiliated Organizations | D20: 1268xx | G20: 1178269.58 | I20: 0 | K20: 180212.66 | M20: 0 | O20: 0 | Q20: 0 | S20: 1012084.78 | U20: 0 | W20: 2370567.02
A21: %,FACCOUNT,TBOR_AUXSNP_ACCT,NINVENTORIES | B21: Inventories | D21: 141xxx, and 142xxx | G21: 0 | I21: 4158204.23 | K21: 0 | M21: 0 | O21: 0 | Q21: 0 | S21: 0 | U21: 0 | W21: 4158204.23
A22: %,FACCOUNT,TBOR_AUXSNP_ACCT,NPREPAID ITEMS | B22: Prepaid Items | D22: 13xxxx | G22: 1282.52 | I22: 150620.26 | K22: 0 | M22: 0 | O22: 0 | Q22: 0 | S22: 0 | U22: 123223.06 | W22: 275125.84
A23: %,FACCOUNT,TBOR_AUXSNP_ACCT,NOTHER ASSETS | B23: Other assets | D23: 1260xx, 2180xx | G23: 0 | I23: 0 | K23: 0 | M23: 0 | O23: 0 | Q23: 0 | S23: 0 | U23: 0 | W23: 0
B24: Total Current Assets | G24: =SUM(G14:G23) -> 20002415.1 | I24: =SUM(I14:I23) -> 6593306.167 | K24: =SUM(K14:K23) -> -1904114.178 | M24: =SUM(M14:M23) -> 7896021.43 | O24: =SUM(O14:O23) -> -3257138.445 | Q24: =SUM(Q14:Q23) -> 1053656.257 | S24: =SUM(S14:S23) -> 3930879.172 | U24: =SUM(U14:U23) -> -762463.321 | W24: 33552562.18
B26: Noncurrent Assets
A27: %,FACCOUNT,TBOR_AUXSNP_ACCT,NNONCURRENT CASH | B27: Noncurrent Cash (Externally Restricted) | D27: 1580xx, 1581xx | G27: 0 | I27: 0 | K27: 0 | M27: 0 | O27: 0 | Q27: 0 | S27: 0 | U27: 0 | W27: =SUM(G27:U27) -> 0
A28: %,FACCOUNT,TBOR_AUXSNP_ACCT,NEXT_SHORTTERM_INVEST | B28: Short-Term Investments (Externally Restricted) | D28: 1582xx | G28: 0 | I28: 0 | K28: 0 | M28: 0 | O28: 0 | Q28: 0 | S28: 0 | U28: 0 | W28: 0
A29: %,FACCOUNT,TBOR_AUXSNP_ACCT,NDUE_AFFILIATED_ORG | B29: Due From Affiliated Organizations | D29: 1269xx (Except 126960 and 126970) | G29: 0 | I29: 0 | K29: 0 | M29: 0 | O29: 0 | Q29: 0 | S29: 0 | U29: 0 | W29: 0
A30: %,FACCOUNT,TBOR_AUXSNP_ACCT,NCAPITAL_RESERVE | B30: Due From USO - Capital Liability Reserve Fund | D30: 126960 | G30: 695485.74 | I30: 0 | K30: 146142.32 | M30: 544851.36 | O30: 0 | Q30: 0 | S30: 12509.76 | U30: 1236 | W30: 1400225.18
A31: %,FACCOUNT,TBOR_AUXSNP_ACCT,NDUE_USG_INSTITUTIONS | B31: Due From Institutions - Capital Liability Reserve Fund | D31: 126970 | G31: 0 | I31: 0 | K31: 0 | M31: 0 | O31: 0 | Q31: 0 | S31: 0 | U31: 0 | W31: 0
A32: %,FACCOUNT,TBOR_AUXSNP_ACCT,NINVESTMENTS | B32: Investments | D32: 15xxxx (except 158xxx) | G32: 0 | I32: 0 | K32: 0 | M32: 0 | O32: 0 | Q32: 0 | S32: 0 | U32: 0 | W32: 0
A33: %,FACCOUNT,TBOR_AUXSNP_ACCT,NNOTES RECEIVABLE | B33: Notes receivable, net | D33: 122xxx | G33: 0 | I33: 0 | K33: 0 | M33: 0 | O33: 0 | Q33: 0 | S33: 0 | U33: 0 | W33: 0
A34: %,FACCOUNT,TBOR_AUXSNP_ACCT,NCAPITAL_ASSETS | B34: Capital assets, net | D34: 16xxxx | G34: 140570871.2 | I34: 2566488.95 | K34: 15988712.32 | M34: 59388578.19 | O34: 2867.6 | Q34: 825480.85 | S34: 4015368.434 | U34: 357558.78 | W34: 223715926.3
B35: Other assets | W35: 0
B36: Total Noncurrent Assets | G36: =SUM(G27:G35) -> 141266356.9 | I36: =SUM(I27:I35) -> 2566488.95 | K36: =SUM(K27:K35) -> 16134854.64 | M36: =SUM(M27:M35) -> 59933429.55 | O36: =SUM(O27:O35) -> 2867.6 | Q36: =SUM(Q27:Q35) -> 825480.85 | S36: =SUM(S27:S35) -> 4027878.194 | U36: =SUM(U27:U35) -> 358794.78 | W36: 225116151.5
B38: TOTAL ASSETS | G38: =G24+G36 -> 161268772 | I38: =I24+I36 -> 9159795.117 | K38: =K24+K36 -> 14230740.46 | M38: =M24+M36 -> 67829450.98 | O38: =O24+O36 -> -3254270.845 | Q38: =Q24+Q36 -> 1879137.107 | S38: =S24+S36 -> 7958757.366 | U38: =U24+U36 -> -403668.541 | W38: =SUM(G38:U38) -> 258668713.6
B40: Deferred Outflows of Resources
A41: %,FACCOUNT,TBOR_AUXSNP_ACCT,NDEF_AMT_DEBT | B41: Deferred Amount on Debt Refunding | D41: 170100 | G41: 1069927.65 | I41: 0 | K41: 0 | M41: 71736.56 | O41: 0 | Q41: 0 | S41: 0 | U41: 0
A42: %,FACCOUNT,TBOR_AUXSNP_ACCT,NDEF_AMT_BEN | B42: Deferred Amount on Defined Benefit Pension Plan | D42: 170200 | G42: 0 | I42: 0 | K42: 0 | M42: 0 | O42: 0 | Q42: 0 | S42: 0 | U42: 0
A43: %,FACCOUNT,TBOR_AUXSNP_ACCT,NDEF_OUTFLOW_RESOURCE | B43: Other Deferred Outflows of Resources | D43: 1700xx, 170900 | G43: 0 | I43: 0 | K43: 0 | M43: 0 | O43: 0 | Q43: 0 | S43: 0 | U43: 0
B44: Total Deferred Outflows of Resources | G44: =SUM(G41:G43) -> 1069927.65 | I44: =SUM(I41:I43) -> 0 | K44: 0 | M44: 71736.56 | O44: =SUM(O41:O43) -> 0 | Q44: 0 | S44: 0 | U44: 0 | W44: 0
B47: LIABILITIES
B48: Current Liabilities
A49: %,R,FACCOUNT,TBOR_AUXSNP_ACCT,NACCOUNTS PAYABLE | B49: Accounts Payable | D49: 2110xx, 2114xx, 2115xx, 2116xx, 2118xx, 211999, 2122xx, 213xxx, 215xxx, 2198xx, 2199xx, 221xxx, 222xxx, 223xxx, 224xxx, 225xxx, 226xxx, 227xxx, 228xxx, 229xxx, 2182xx, 2185xx, 2187xx | G49: 506986.73 | I49: 765297.45 | K49: 4418413.61 | M49: 314133.492 | O49: 0.23 | Q49: 8971.06 | S49: 17476.04 | U49: 58546.76 | W49: =SUM(G49:U49) -> 6089825.372
A50: %,R,FACCOUNT,TBOR_AUXSNP_ACCT,NSALARIES PAYABLE | B50: Salaries Payable | D50: 2121xx | G50: 3920.47 | I50: 6057.64 | K50: 923.04 | M50: 3424.35 | O50: 0 | Q50: 0 | S50: 5710.26 | U50: 2744.37 | W50: 22780.13
A51: %,R,FACCOUNT,TBOR_AUXSNP_ACCT,NBENEFITS | B51: Benefits Payable | D51: 23xxx, 291700 | G51: 0 | I51: 0 | K51: 0 | M51: 0 | O51: 0 | Q51: 0 | S51: 0 | U51: 0 | W51: 0
A52: %,R,FACCOUNT,TBOR_AUXSNP_ACCT,NCONTRACTS PAYABLE | B52: Contracts Payable | D52: 2119xx (except 21195x, 21197x, and 211999) | G52: 0 | I52: 0 | K52: 0 | M52: 0 | O52: 0 | Q52: 0 | S52: 0 | U52: 0 | W52: 0
A53: %,R,FACCOUNT,TBOR_AUXSNP_ACCT,NRETAINAGES_PAYABLE | B53: Retainages Payable | D53: 21195x and 21197x | G53: 0 | I53: 1219 | K53: 0 | M53: 0 | O53: 0 | Q53: 0 | S53: 0 | U53: 0 | W53: 1219
A54: %,R,FACCOUNT,TBOR_AUXSNP_ACCT,NDEPOSITS | B54: Deposits | D54: 214xxx | G54: 0 | I54: 33027.44 | K54: 0 | M54: 0 | O54: 0 | Q54: 0 | S54: 0 | U54: 0 | W54: 33027.44
A55: %,R,FACCOUNT,TBOR_AUXSNP_ACCT,NADVANCES | B55: Advances (Including Tuition & Fees) | D55: 216xxx,217xxx | G55: 154133.8 | I55: 31626.65 | K55: 111495.16 | M55: 639235.78 | O55: -0.15 | Q55: 224718.94 | S55: 986702.13 | U55: 0 | W55: 2147912.31
A56: %,R,FACCOUNT,TBOR_AUXSNP_ACCT,NOTHER LIABILITIES | B56: Other liabilities | D56: 2191xx except for 219101, 219102, 219103, 219104, 219105 | G56: 0 | I56: 0 | K56: 1404.7 | M56: 0 | O56: 0 | Q56: 0 | S56: 0 | U56: 117301.79 | W56: 118706.49
A57: %,R,FACCOUNT,TBOR_AUXSNP_ACCT,NDEPOSITS FOR OTHERS | B57: Deposits held for other organizations | D57: 24xxxx,25xxxx | G57: 0 | I57: 0 | K57: 0 | M57: 0 | O57: 0 | Q57: 0 | S57: 0 | U57: 0 | W57: 0
A58: %,R,FACCOUNT,TBOR_AUXSNP_ACCT,NLEASE PURCHASE | B58: Lease Purchase Obligations | D58: 2194xx | G58: 2590822.83 | I58: 0 | K58: 315002.26 | M58: 2499058.31 | O58: 0 | Q58: 17281.55 | S58: 20697.93 | U58: 14802.42 | W58: 5457665.3
A59: %,R,FACCOUNT,TBOR_AUXSNP_ACCT,NCOMPENSATED ABSENCE | B59: Compensated absences | D59: 2871xx | G59: 82755.43 | I59: 77891.49 | K59: 66036.44 | M59: 10825.71 | O59: 14929.81 | Q59: 20963.12 | S59: 326312.27 | U59: 74548.29 | W59: 674262.56
A60: %,R,FACCOUNT,TBOR_AUXSNP_ACCT,NDUE_2_AFFILIATED_ORG | B60: Due to Affiliated Organizations | D60: 2188xx | G60: 199399.47 | I60: 0 | K60: 0 | M60: 167136.96 | O60: 0 | Q60: 0 | S60: 200800.82 | U60: 0 | W60: 567337.25
A61: %,R,FACCOUNT,TBOR_AUXSNP_ACCT,NDUE_2_USO | B61: Due to USO - Capital Liability Reserve Fund | D61: 218100 | G61: 0 | I61: 0 | K61: 0 | M61: 0 | O61: 0 | Q61: 0 | S61: 0 | U61: 0 | W61: 0
A62: %,R,FACCOUNT,TBOR_AUXSNP_ACCT,NNOTES AND LOANS CUR | B62: Notes and Loans Payable | D62: 2195xx | G62: 0 | I62: 0 | K62: 0 | M62: 0 | O62: 0 | Q62: 0 | S62: 0 | U62: 0 | W62: 0
A63: %,R,FACCOUNT,TBOR_AUXSNP_ACCT,NPOLLUTION_REMED_CURR | B63: Pollution Remediation | D63: 219101 | G63: 0 | I63: 0 | K63: 0 | M63: 0 | O63: 0 | Q63: 0 | S63: 0 | U63: 0 | W63: 0
A64: %,R,FACCOUNT,TBOR_AUXSNP_ACCT,NCLAIMS_JUDGE_ADD_CR | B64: Claims and Judgements | D64: 219103 | G64: 0 | I64: 0 | K64: 0 | M64: 0 | O64: 0 | Q64: 0 | S64: 0 | U64: 0 | W64: 0
B65: Total Current Liabilities | G65: =SUM(G49:G64) -> 3538018.73 | I65: =SUM(I49:I64) -> 915119.67 | K65: 4913275.21 | M65: 3633814.602 | O65: =SUM(O49:O64) -> 14929.89 | Q65: 271934.67 | S65: 1557699.45 | U65: 267943.63 | W65: 15112735.85
B67: Noncurrent Liabilities
A68: %,R,FACCOUNT,TBOR_AUXSNP_ACCT,NLEASE PURCHASE NC | B68: Lease Purchase Obligations | D68: 2911xx | G68: 85678539.93 | I68: 0 | K68: 16904673.7 | M68: 64838273.03 | O68: 0 | Q68: 578089.29 | S68: 1495109.91 | U68: 24050.01 | W68: =SUM(G68:U68) -> 169518735.9
A69: %,R,FACCOUNT,TBOR_AUXSNP_ACCT,NADVANCES_NC | B69: Advances (Including Tuition & Fees) | D69: 2913xx, 2914xx | G69: 0 | I69: 0 | K69: 0 | M69: 0 | O69: 0 | Q69: 0 | S69: 0 | U69: 0 | W69: 0
A70: %,R,FACCOUNT,TBOR_AUXSNP_ACCT,NCOMP_ABSENCE_NC | B70: Compensated Absences | D70: 2971xx | G70: 32466.78 | I70: 37610.61 | K70: 31523.17 | M70: 5033.65 | O70: 5656.48 | Q70: 9155.1 | S70: 154522.74 | U70: 34958.26 | W70: 310926.79
A71: %,R,FACCOUNT,TBOR_AUXSNP_ACCT,NDUE_2_USO_NC | B71: Due to USO - Capital Liability Reserve Fund | D71: 218101 | G71: 0 | I71: 0 | K71: 0 | M71: 0 | O71: 0 | Q71: 0 | S71: 0 | U71: 0 | W71: 0
A72: %,R,FACCOUNT,TBOR_AUXSNP_ACCT,NNET_PENSION_LIAB | B72: Net Pension Liability | D72: 2915xx | G72: 0 | I72: 0 | K72: 0 | M72: 0 | O72: 0 | Q72: 0 | S72: 0 | U72: 0 | W72: 0
A73: %,R,FACCOUNT,TBOR_AUXSNP_ACCT,NPOST_EMP_LIABILITY | B73: Other Post-Employement Benefit Liability | D73: 291600 | G73: 0 | I73: 0 | K73: 0 | M73: 0 | O73: 0 | Q73: 0 | S73: 0 | U73: 0 | W73: 0
A74: %,R,FACCOUNT,TBOR_AUXSNP_ACCT,NOTHER LIABILITIES NC | B74: Other liabilities | D74: 219105 | G74: 0 | I74: 0 | K74: 0 | M74: 0 | O74: 0 | Q74: 0 | S74: 0 | U74: 0 | W74: 0
A75: %,R,FACCOUNT,TBOR_AUXSNP_ACCT,NDUE_2_AFFIL_ORG_NC | B75: Due To Affiliated Organizations | D75: 2189xx | G75: 0 | I75: 0 | K75: 0 | M75: 0 | O75: 0 | Q75: 0 | S75: 0 | U75: 0 | W75: 0
A76: %,R,FACCOUNT,TBOR_AUXSNP_ACCT,NNOTES AND LOANS NC | B76: Notes and Loans Payable | D76: 2912xx | G76: 0 | I76: 0 | K76: 0 | M76: 0 | O76: 0 | Q76: 0 | S76: 0 | U76: 0 | W76: 0
A77: %,R,FACCOUNT,TBOR_AUXSNP_ACCT,NPOLLUTION_REMED | B77: Pollution Remediation, NonCurrent | D77: 219102 | G77: 0 | I77: 0 | K77: 0 | M77: 0 | O77: 0 | Q77: 0 | S77: 0 | U77: 0 | W77: 0
A78: %,R,FACCOUNT,TBOR_AUXSNP_ACCT,NCLAIMS_JUDGE_ADD | B78: Claims and Judgements | D78: 219104 | G78: 0 | I78: 0 | K78: 0 | M78: 0 | O78: 0 | Q78: 0 | S78: 0 | U78: 0 | W78: 0
B79: Total Noncurrent Liabilities | G79: =SUM(G68:G78) -> 85711006.71 | H79: =SUM(H68:H78) -> 0 | I79: 37610.61 | J79: 0 | K79: 16936196.87 | L79: 0 | M79: 64843306.68 | N79: 0 | O79: 5656.48 | Q79: 587244.39 | R79: 0 | S79: 1649632.65 | T79: 0 | U79: 59008.27 | V79: 0 | W79: 169829662.7
B81: TOTAL LIABILITIES | G81: =SUM(G65+G79) -> 89249025.44 | H81: =SUM(H65+H79) -> 0 | I81: 952730.28 | J81: 0 | K81: 21849472.08 | L81: 0 | M81: 68477121.28 | N81: 0 | O81: 20586.37 | Q81: 859179.06 | R81: 0 | S81: 3207332.1 | T81: 0 | U81: 326951.9 | V81: 0 | W81: 184942398.5
B83: Deferred Inflows of Resources
A84: %,R,FACCOUNT,TBOR_AUXSNP_ACCT,NDEF_GAIN_DEBT | B84: Deferred gain on debt refundng | D84: 2981xx | G84: 0 | I84: 0 | K84: 0 | M84: 0 | O84: 0 | Q84: 0 | S84: 0 | U84: 0
A85: %,R,FACCOUNT,TBOR_AUXSNP_ACCT,NDEF_GRANTS | B85: Deferred Grants Received in Advance of Timing Requirements | D85: 2984xx | G85: 0 | I85: 0 | K85: 0 | M85: 0 | O85: 0 | Q85: 0 | S85: 0 | U85: 0
A86: %,R,FACCOUNT,TBOR_AUXSNP_ACCT,NDEF_SRVC_ARRANGEMENT | B86: Deferred service concession arrangement receipts | D86: 2983xx | G86: 67137916.29 | I86: 0 | K86: 0 | M86: 0 | O86: 0 | Q86: 0 | S86: 0 | U86: 0
A87: %,R,FACCOUNT,TBOR_AUXSNP_ACCT,NDEF_BEN_PEN | B87: Deferred Defined Benefit Pension Plan | D87: 2982xx | G87: 0 | I87: 0 | K87: 0 | M87: 0 | O87: 0 | Q87: 0 | S87: 0 | U87: 0
A88: %,R,FACCOUNT,TBOR_AUXSNP_ACCT,NDEF_OTHER_INFLOW | B88: Other Deferred Inflows of Resources | D88: 2980xx, 2989xx | G88: 0 | I88: 0 | K88: 0 | M88: 0 | O88: 0 | Q88: 0 | S88: 0 | U88: 0
B89: Total Deferred Inflows of Resources | G89: =SUM(G84:G88) -> 67137916.29 | H89: =SUM(H84:H88) -> 0 | I89: 0 | J89: 0 | K89: 0 | L89: 0 | M89: 0 | N89: 0 | O89: 0 | Q89: 0 | R89: 0 | S89: 0 | T89: 0 | U89: 0 | V89: 0 | W89: 0
B92: NET POSITION
A93: %,R,FACCOUNT,TBOR_AUXSNP_ACCT,NCAPITAL ASSETS,SPER0to999 | B93: Net Invested in Capital Assets | D93: 311xxx | G93: -13766480.23 | I93: 2565269.95 | K93: -1687578.583 | M93: -7877016.594 | O93: 2867.6 | Q93: 230110.01 | S93: 2499560.594 | U93: 318706.35 | W93: =SUM(G93:U93) -> -17714560.9
B94: Restricted for
A95: %,R,FACCOUNT,TBOR_AUXSNP_ACCT,NNONEXPENDABLE,SPER0to999 | B95: Nonexpendable | D95: 360xxx | G95: 0 | I95: 0 | K95: 0 | M95: 0 | O95: 0 | Q95: 0 | S95: 0 | U95: 0 | W95: =SUM(G95:U95) -> 0
A96: %,R,FACCOUNT,TBOR_AUXSNP_ACCT,NEXPENDABLE,SPER0to999 | B96: Expendable | D96: 371xxx, 371xxx | G96: 0 | I96: 0 | K96: 0 | M96: 0 | O96: 0 | Q96: 0 | S96: 0 | U96: 0 | W96: =SUM(G96:U96) -> 0
A97: %,R,FACCOUNT,TBOR_AUXSNP_ACCT,NUNRESTRICTED,SPER0to999 | B97: Unrestricted | D97: 321xxx,322xxx,323xxx,329xxx,34xxxx | G97: 19718238.16 | I97: 5641794.887 | K97: -5931153.038 | M97: 7301082.848 | O97: -3277724.815 | Q97: 789848.037 | S97: 2251864.672 | U97: -1049326.791 | W97: =SUM(G97:U97) -> 25444623.96
B98: TOTAL NET POSITION | G98: =SUM(G93:G97) -> 5951757.926 | I98: =SUM(I93:I97) -> 8207064.837 | K98: =SUM(K93:K97) -> -7618731.621 | M98: =SUM(M93:M97) -> -575933.746 | O98: =SUM(O93:O97) -> -3274857.215 | Q98: =SUM(Q93:Q97) -> 1019958.047 | S98: =SUM(S93:S97) -> 4751425.266 | U98: =SUM(U93:U97) -> -730620.441 | W98: =SUM(W93:W97) -> 7730063.053
B100: Check Point: Total Assets minus Total Liabilities equals Total Net Position
B101: (If not -0-, find problem) | G101: =G38+G44-G81-G89-G98 -> -2.980232239e-08 | I101: =I38+I44-I81-I89-I98 -> 0 | K101: =K38+K44-K81-K89-K98 -> 0 | M101: =M38+M44-M81-M89-M98 -> -7.450580597e-09 | O101: =O38+O44-O81-O89-O98 -> 0 | Q101: =Q38+Q44-Q81-Q89-Q98 -> 0 | S101: =S38+S44-S81-S89-S98 -> 0 | U101: =U38+U44-U81-U89-U98 -> 0 | W101: =W38+W44-W81-W89-W98 -> 65996252.08
B103: Note: Unrestricted Net Assets include the following:
A104: %,R,FACCOUNT,TBOR_AUXSNP_ACCT,NR AND R RESERVE,SPER0to999 | B104: R & R Reserve | D104: 323xxx | G104: 253736.68 | I104: 1074476.98 | K104: 1043267.22 | M104: 589031.73 | O104: 1515210.3 | Q104: 35100.75 | S104: 1363459.12 | U104: 512689.25 | W104: =SUM(G104:U104) -> 6386972.03
A105: %,R,FACCOUNT,TBOR_AUXSNP_ACCT,NGIFTS,SPER0to999 | B105: Reserves for Deferred Gift Revenue from Auxiliary Vendor | D105: 3292xx | G105: 0 | I105: 0 | K105: 0 | M105: 0 | O105: 0 | Q105: 0 | S105: 0 | U105: 0 | W105: 0
B106: Reserve for Encumbrance | D106: Ledger=ENCUMB: Acct 381xxx, period 0->12 | G106: 128898.68 | I106: 799373.128 | K106: 61080.923 | M106: 215328.69 | O106: 0 | Q106: 0 | S106: 0 | U106: 80854.069 | W106: 1285535.49
A107: %,R,FACCOUNT,TBOR_AUXSNP_ACCT,NINVENTORY,SPER0to999 | B107: Inventory | D107: 322xxx | G107: 0 | I107: 0 | K107: 0 | M107: 0 | O107: 0 | Q107: 0 | S107: 0 | U107: 0 | W107: 0
A108: %,R,FACCOUNT,TBOR_AUXSNP_ACCT,NUNRESTRICTED_OTHER,SPER0to999 | G108: 19464501.48 | I108: 4567317.907 | K108: -6974420.258 | M108: 6712051.118 | O108: -4792935.115 | Q108: 754747.287 | S108: 888405.552 | U108: -1562016.041 | W108: 19057651.93
B109: Other Unrestricted | D109: 321xxx, 329xxx (except for 3292xx),34xxxx | G109: =G108-G106 -> 19335602.8 | I109: =I108-I106 -> 3767944.779 | K109: -7035501.181 | M109: 6496722.428 | O109: =O108-O106 -> -4792935.115 | Q109: 754747.287 | S109: 888405.552 | U109: -1642870.11 | W109: 17772116.44
B110: Total Unrestricted | G110: =SUM(G104:G107)+G109 -> 19718238.16 | I110: =SUM(I104:I107)+I109 -> 5641794.887 | K110: -5931153.038 | M110: 7301082.848 | O110: =SUM(O104:O107)+O109 -> -3277724.815 | Q110: 789848.037 | S110: 2251864.672 | U110: -1049326.791 | V110: =SUM(V104:V107)+V109 -> 0 | W110: =SUM(W104:W107)+W109 -> 25444623.96
B113: Check Point: Unrestricted Net Position detail = Unrestricted Net Position total | G113: =SUM(G97-G110) -> 0 | I113: =SUM(I97-I110) -> 0 | K113: =SUM(K97-K110) -> 9.313225746e-10 | M113: =SUM(M97-M110) -> 9.313225746e-10 | O113: =SUM(O97-O110) -> 4.656612873e-10 | Q113: =SUM(Q97-Q110) -> 0 | S113: =SUM(S97-S110) -> -4.656612873e-10 | U113: =SUM(U97-U110) -> -2.328306437e-10 | W113: =SUM(W97-W110) -> 0
B114: (If not -0-, find problem)
D120: ="Report ID: "&RID -> Report ID: AUXSNP
D121: ="Layout Name: "&LYN -> Layout Name: GASB_AUXILIARY_STATEMENT_OF_NET_POSITION
D122: ="Operator: "&OPR -> Operator: JBFREEMAN
D123: ="Instance Directory: "&IDN -> Instance Directory: /opt/psoft/psconfig/appserv/prcs/fprod/NVISION/INSTANCE
D124: ="Run Date: " &TEXT(NvsEndTime, "mmmm dd, yyyy") -> Run Date: March 10, 2017
G144: Version | K144: 5.16
D146: Change Information
G147: Date | M147: Developer | O147: Change Request and Details
G148: 2008-05-01 | M148: Lina | O148: Tsk 40393
G149: 2009-02-10 | I149: 1.09 | M149: Lina | O149: Tsk45361 | Q149: Performance tuning
G150: 2009-03-09 | I150: 1.1 | M150: Lina | O150: Tsk49275 | Q150: Replace Program and Fund Logic with Fund logic ONLY
G151: 2009-11-17 | I151: 2.09 | M151: Lina | O151: RFC4796;Tsk3506
G152: 2010-02-08 | I152: 2.12 | M152: Lina | O152: RFC3010;Tsk6939
G153: 2013-04-10 | I153: 2.7 | M153: RMullinix | O153: TSK18706
G154: 2014-04-16 | I154: 3.2 | M154: Yvonne Howington | O154: TSK21560
G155: 2015-01-12 | I155: 4 | M155: Robert Prescott | O155: TSK22594 | Q155: 9.2 Upgrade
G156: 2015-04-22 | I156: 4.2 | M156: Robin Mullinix | O156: TSK24930 | Q156: Changes to Capital Assets, broke out Accumulated Depreciation (account 16x9xx) added to new row
G157: 2015-09-30 | I157: 5 | M157: RMullinix | O157: TSK26266 | Q157: prepare for switch to unix processing
G158: 2016-04-15 | I158: 5.13 | M158: Mpaktinat | O158: tsk27617 | Q158: Update for 5.13 release per the request of the Office of Fiscal Affairs
G159: 2016-05-12 | I159: 5.14 | M159: Robert Prescott | O159: TSK27813 | Q159: Update Mapping for Accounts Payable
G160: 42563 | I160: 5.16 | M160: MPaktinat | O160: TSK28250 | Q160: delete the row for Investment (Externally Restricted)

Sheet Aux SRECNP
A1: %,S2YEAR | G1: %,QBOR_GASB_LEDGER_NVS,CA.POSTED_TOTAL_AMT,FFUND_CODE,TBOR_AUXSREC_FUND,NHOUSING | I1: %,QBOR_GASB_LEDGER_NVS,CA.POSTED_TOTAL_AMT,FFUND_CODE,TBOR_AUXSREC_FUND,NSTORES AND SHOPS | K1: %,QBOR_GASB_LEDGER_NVS,CA.POSTED_TOTAL_AMT,FFUND_CODE,TBOR_AUXSREC_FUND,NFOOD SERVICES | M1: %,QBOR_GASB_LEDGER_NVS,CA.POSTED_TOTAL_AMT,FFUND_CODE,TBOR_AUXSREC_FUND,NTRANSPORT AND PARK | O1: %,QBOR_GASB_LEDGER_NVS,CA.POSTED_TOTAL_AMT,FFUND_CODE,TBOR_AUXSREC_FUND,NTRANSPORTATION | Q1: %,QBOR_GASB_LEDGER_NVS,CA.POSTED_TOTAL_AMT,FFUND_CODE,TBOR_AUXSREC_FUND,NHEALTH SERVICES | S1: %,QBOR_GASB_LEDGER_NVS,CA.POSTED_TOTAL_AMT,FFUND_CODE,TBOR_AUXSREC_FUND,NATHLETICS | U1: %,QBOR_GASB_LEDGER_NVS,CA.POSTED_TOTAL_AMT,FFUND_CODE,TBOR_AUXSREC_FUND,NOTHER OPERATIONS
B2: Kennesaw State University
B3: Auxiliary Services | Z3: AUXSREC
B4: Statement of Revenue, Expenses, and Changes in Net Position
B5: ="For the Year Ended: "&TEXT(ASD,"mmmm dd, yyyy") -> For the Year Ended: June 30, 2016 | Z5: JBFREEMAN
Z6: 2016-06-30
G7: Residence | I7: Stores and | K7: Food | Q7: Health | S7: Intercollegiate | Z7: GASB_SRECNP_AUX
G8: Halls | I8: Shops | K8: Services | M8: Parking | O8: Transportation | Q8: Services | S8: Athletics | U8: Other | W8: Total | Z8: /opt/psoft/psconfig/appserv/prcs/fprod/NVISION/INSTANCE
E9: Fund numbers: | G9: 12210 | I9: 12230 | K9: 12220 | M9: 12250 | O9: 12260 | Q9: 12240 | S9: 12280 | U9: 12270
C10: REVENUES
C11: Operating Revenues
A12: %,R,FACCOUNT,TBOR_AUXSREC_ACCT,NAUXILIARY ENTERPRISE | C12: Sales and services | E12: 40xxxx -> 479999 | G12: 16550764.98 | I12: 15178645.29 | K12: 26500273.85 | M12: 9806644.49 | O12: 4285324.01 | Q12: 3384931.75 | S12: 14629503.56 | U12: 626743.17 | W12: =SUM(G12:U12) -> 90962831.1 | Y12: 40xxxx -> 479999
A13: %,FACCOUNT,TBOR_AUXSREC_ACCT,NCOST_OF_GOODS | C13: Less: Cost of Goods Sold | E13: 7031xx | G13: 0 | I13: 10856726.52 | K13: 33630.69 | M13: 0 | O13: 0 | Q13: 0 | S13: 0 | U13: 0 | W13: =SUM(G13:U13) -> 10890357.21 | Y13: 7031xx
C14: Gross Margin | G14: =SUM(G12-G13) -> 16550764.98 | I14: =SUM(I12-I13) -> 4321918.77 | K14: 26466643.16 | M14: 9806644.49 | O14: 4285324.01 | Q14: 3384931.75 | S14: 14629503.56 | U14: 626743.17 | W14: =SUM(G14:U14) -> 80072473.89
C16: Expenses
C17: Operating expenses
C18: Salaries
A19: %,FACCOUNT,TBOR_AUXSREC_ACCT,NFACULTY SALARY | C19: Faculty | E19: 51xxxx, 53xxxx | G19: 0 | I19: 0 | K19: 0 | M19: 0 | O19: 0 | Q19: 0 | S19: 4550 | U19: 0 | W19: 4550 | Y19: 51xxxx, 53xxxx
A20: %,FACCOUNT,TBOR_AUXSREC_ACCT,NSTAFF SALARY | C20: Staff | E20: 52xxxx,54xxxx | G20: 1236132.31 | I20: 1729414.1 | K20: 764569.22 | M20: 325578.29 | O20: 97580.91 | Q20: 250281.29 | S20: 5208830.62 | U20: 1035782.13 | W20: 10648168.87 | Y20: 52xxxx,54xxxx
A21: %,FACCOUNT,TBOR_AUXSREC_ACCT,NBENEFITS | C21: Benefits | E21: 55xxxx | G21: 344397.38 | I21: 381313.36 | K21: 279065.43 | M21: 136454.7 | O21: 28634.95 | Q21: 64368.7 | S21: 1650342.68 | U21: 275904.7 | W21: 3160481.9 | Y21: 55xxxx
A22: %,FACCOUNT,TBOR_AUXSREC_ACCT,NOTHER PER SERVICES | C22: Other Personal Services | E22: 56xxxx, 59xxxx, 723xxx | G22: -576 | I22: 352508.02 | K22: 431382.96 | M22: 230131.67 | O22: 83289.55 | Q22: 600 | S22: 172336.41 | U22: -1077987.2 | W22: 191685.41 | Y22: 56xxxx, 59xxxx, 723xxx
A23: %,FACCOUNT,TBOR_AUXSREC_ACCT,NCONTRACTS | C23: Contractual services | E23: 753xxx | G23: 153006.96 | I23: 14829.62 | K23: 21490345.99 | M23: 1059201.96 | O23: 2198419.79 | Q23: 2994199 | S23: 183 | U23: 163179.45 | W23: 28073365.77 | Y23: 753xxx
A24: %,FACCOUNT,TBOR_AUXSREC_ACCT,NTRAVEL_EMP | C24: Travel | E24: 6xxxxx,except 65xxxx | G24: 35121.41 | I24: 19833.32 | K24: 2189.22 | M24: 14122.38 | O24: 270.66 | Q24: 1216.36 | S24: 0 | U24: 13029.47 | W24: 85782.82 | Y24: 6xxxxx,except 65xxxx
A25: %,FACCOUNT,TBOR_AUXSREC_ACCT,NSCHOLARSHIPS | C25: Scholarships and Fellowships | E25: 78xxxx | G25: 0 | I25: 0 | K25: 0 | M25: 0 | O25: 0 | Q25: 0 | S25: 3502831.85 | U25: 0 | W25: 3502831.85 | Y25: 78xxxx
A26: %,FACCOUNT,TBOR_AUXSREC_ACCT,NSUPPLIES_AUX | C26: General material and supplies | E26: 65xxxx,7xxxxx, 8xxxxx,91xxxx ->959999 except (7031xx,717xxx,723xxx, 751xxx, 752xxx, 753xxx, 771xxx, 78xxxx, 8182xx,89xxxx, 911xxx, 921xxx) | G26: 3754600.834 | I26: 1487100.853 | K26: 2686561.158 | M26: 1419568.08 | O26: 433799.475 | Q26: 19117.863 | S26: 4180932.178 | U26: -118279.949 | W26: 13863400.49 | Y26: 65xxxx,7xxxxx, 8xxxxx,91xxxx ->959999 except (7031xx,717xxx,723xxx, 751xxx, 752xxx, 753xxx, 771xxx, 78xxxx, 8182xx,89xxxx, 911xxx, 921xxx)
A27: %,FACCOUNT,TBOR_AUXSREC_ACCT,NPER_DIEM_AND_FEES | C27: Consulting expenses/per diem | E27: 751xxx, 752xxx | G27: 172238.11 | I27: 52506.1 | K27: 438805.02 | M27: 40476.97 | O27: 66723.44 | Q27: 552 | S27: 501 | U27: 63368.68 | W27: 835171.32 | Y27: 751xxx, 752xxx
A28: %,FACCOUNT,TBOR_AUXSREC_ACCT,NUTILITIES | C28: Utilities | E28: 771xxx, 717xxx | G28: 697929.69 | I28: 13278.09 | K28: 398360.06 | M28: 175250.51 | O28: 3533.43 | Q28: 5556.55 | S28: 17956.59 | U28: 5873.68 | W28: 1317738.6 | Y28: 771xxx, 717xxx
A29: %,FACCOUNT,TBOR_AUXSREC_ACCT,NDEPRECIATION | C29: Depreciation | E29: 8901xx, 890900 | G29: 5502598.24 | I29: 193516.05 | K29: 964431 | M29: 5113111.83 | O29: 7159.87 | Q29: 44299.76 | S29: 259561.29 | U29: 77303.92 | W29: 12161981.96 | Y29: 8901xx, 890900
C30: Total operating expenses | G30: =SUM(G19:G29) -> 11895448.93 | I30: =SUM(I19:I29) -> 4244299.513 | K30: 27455710.06 | M30: =SUM(M19:M29) -> 8513896.39 | O30: 2919412.075 | Q30: 3380191.523 | S30: 14998025.62 | U30: 438174.881 | W30: 73845158.99
C31: Operating income (loss) | G31: =SUM(G14-G30) -> 4655316.046 | I31: =SUM(I14-I30) -> 77619.257 | K31: -989066.898 | M31: =SUM(M14-M30) -> 1292748.1 | O31: 1365911.935 | Q31: 4740.227 | S31: -368522.058 | U31: 188568.289 | W31: 6227314.898
C33: NONOPERATING REVENUES(EXPENSES)
A34: %,R,FACCOUNT,TBOR_AUXSREC_ACCT,NSTATE_APPROPS | C34: State appropriations | E34: 4801xx | G34: 0 | I34: 0 | K34: 0 | M34: 0 | O34: 0 | Q34: 0 | S34: 0 | U34: 0 | W34: 0 | Y34: 4801xx
A35: %,R,FACCOUNT,TBOR_AUXSREC_ACCT,NGRANTS | C35: Grants and Contracts | E35: 491xxx, 494xxx | G35: 0 | I35: 0 | K35: 0 | M35: 0 | O35: 0 | Q35: 0 | S35: 0 | U35: 0 | W35: 0 | Y35: 491xxx, 494xxx | Z35: Add: 4211xx, 4212xx, 4213xx,491900
A36: %,R,FACCOUNT,TBOR_AUXSREC_ACCT,NINTEREST INCOME | C36: Interest income | E36: 481xxx -> 484xxx, 486xxx, 487xxx, 488xxx, 489xxx, 490xxx, 4932xx, 4934xx, 4951xx | G36: 8178.51 | I36: 0 | K36: 0 | M36: 3383.58 | O36: 5992.92 | Q36: 0 | S36: 0 | U36: 1875.91 | W36: 19430.92 | Y36: 481xxx -> 484xxx, 486xxx, 487xxx, 488xxx, 489xxx, 490xxx, 4932xx, 4934xx, 4951xx
A37: %,R,FACCOUNT,TBOR_AUXSREC_ACCT,NINTEREST EXPENSE | C37: Interest expense | E37: 8182xx | G37: -5329311.18 | I37: 0 | K37: -1206229.15 | M37: -3657369.882 | O37: 0 | Q37: -31706.11 | S37: -137308.31 | U37: -910.55 | W37: -10362835.18 | Y37: 8182xx
A38: %,R,FACCOUNT,TBOR_AUXSREC_ACCT,NGIFTS_AND_GRANTS | C38: Gifts, non-capital | E38: 485xxx except (4852xx, 4854xx, 4856xx, 4858xx) | G38: 0 | I38: 0 | K38: 0 | M38: 0 | O38: 0 | Q38: 0 | S38: 0 | U38: 0 | W38: 0 | Y38: 485xxx except (4852xx, 4854xx, 4856xx, 4858xx)
A39: %,R,FACCOUNT,TBOR_AUXSREC_ACCT,NSTATE_GIFTS_CAPITAL | C39: Gifts, capital | E39: 4852xx, 4854xx, 4856xx, 4858xx | G39: 3582189.42 | I39: 0 | K39: 7811.08 | M39: 0 | O39: 0 | Q39: 0 | S39: 0 | U39: 0 | W39: 3590000.5 | Y39: 4852xx, 4854xx, 4856xx, 4858xx
A40: %,R,FACCOUNT,TBOR_AUXSREC_ACCT,NMISC_REVENUE | C40: Miscellaneous revenues | E40: 49xxxx, except (490xxx, 491xxx, 4932xx, 4934xx, 494xxx, 4951xx) | F40: D | G40: 70379.93 | I40: 0 | K40: -6533.31 | M40: 0 | O40: -7673.19 | Q40: 0 | S40: -7988.05 | U40: -10523.31 | W40: 37662.07 | Y40: 49xxxx except (490xxx, 491xxx, 4932xx, 4934xx, 494xxx, 4951xx, 498998)
C41: Total nonoperating revenues | G41: =SUM(G34:G40) -> -1668563.32 | I41: =SUM(I34:I40) -> 0 | K41: =SUM(K34:K40) -> -1204951.38 | M41: =SUM(M34:M40) -> -3653986.302 | O41: =SUM(O34:O40) -> -1680.27 | Q41: =SUM(Q34:Q40) -> -31706.11 | S41: =SUM(S34:S40) -> -145296.36 | U41: =SUM(U34:U40) -> -9557.95 | W41: -6715741.692
C42: Income before transfers | G42: =SUM(G31+G41) -> 2986752.726 | I42: =SUM(I31+I41) -> 77619.257 | K42: =SUM(K31+K41) -> -2194018.278 | M42: =SUM(M31+M41) -> -2361238.202 | O42: =SUM(O31+O41) -> 1364231.665 | Q42: =SUM(Q31+Q41) -> -26965.883 | S42: =SUM(S31+S41) -> -513818.418 | U42: =SUM(U31+U41) -> 179010.339 | W42: -488426.794
C44: Transfers
A45: %,FACCOUNT,TBOR_AUXSREC_ACCT,NMANDATORY TRANSFER | C45: Mandatory Transfers | E45: 911xxx | G45: 0 | I45: 0 | K45: 0 | M45: 0 | O45: 0 | Q45: 0 | S45: 0 | U45: 0 | W45: 0 | Y45: 911xxx
A46: %,FACCOUNT,TBOR_AUXSREC_ACCT,NNON MANDATORY TRANS | C46: Non Mandatory Transfers | E46: 921xxx | G46: -241427.82 | I46: 12045.04 | K46: 142031.08 | M46: 0 | O46: 0 | Q46: 0 | S46: 0 | U46: 547452.76 | W46: 460101.06 | Y46: 921xxx
C47: Total Transfers | G47: =SUM(G45+G46) -> -241427.82 | I47: =SUM(I45+I46) -> 12045.04 | K47: =SUM(K45+K46) -> 142031.08 | M47: =SUM(M45+M46) -> 0 | O47: =SUM(O45+O46) -> 0 | Q47: =SUM(Q45+Q46) -> 0 | S47: =SUM(S45+S46) -> 0 | U47: =SUM(U45+U46) -> 547452.76 | W47: 460101.06
C49: Change in Net Position | G49: =SUM(G42+G47) -> 2745324.906 | I49: =SUM(I42+I47) -> 89664.297 | K49: =SUM(K42+K47) -> -2051987.198 | M49: =SUM(M42+M47) -> -2361238.202 | O49: =SUM(O42+O47) -> 1364231.665 | Q49: =SUM(Q42+Q47) -> -26965.883 | S49: =SUM(S42+S47) -> -513818.418 | U49: =SUM(U42+U47) -> 726463.099 | W49: -28325.734
C51: Net Position
A52: %,R,FACCOUNT,TBOR_AUXSREC_ACCT,NNET ASSETS | C52: Net position-beginning of year | E52: 3xxxxx period 0 through period 12 | G52: 2723577.38 | I52: 8141490.62 | K52: -5282682.263 | M52: 1785304.456 | O52: -4639088.88 | Q52: 1046923.93 | S52: 5265243.684 | U52: -362178.02 | W52: 8678590.907 | Y52: 3xxxxx period 0 through period 12
C53: Net position-end of year | E53: (Calculated) | G53: =SUM(G49,G52) -> 5468902.286 | I53: =SUM(I49,I52) -> 8231154.917 | K53: =SUM(K49,K52) -> -7334669.461 | M53: =SUM(M49,M52) -> -575933.746 | O53: =SUM(O49,O52) -> -3274857.215 | Q53: =SUM(Q49,Q52) -> 1019958.047 | S53: =SUM(S49,S52) -> 4751425.266 | U53: =SUM(U49,U52) -> 364285.079 | W53: =SUM(W49,W52) -> 8650265.173 | Y53: (Calculated)
C54: (equal to 3xxxxx period 0 next year)
C59: Check Point: Net Position end of year per Aux. SRECNP should equal Total Net Position per Aux. SNP
C65: ="Report ID: "&RID -> Report ID: AUXSREC
C66: ="Layout Name: "&LYN -> Layout Name: GASB_SRECNP_AUX
C67: ="Operator: "&OPR -> Operator: JBFREEMAN
C68: ="Instance Directory: " &IDN -> Instance Directory: /opt/psoft/psconfig/appserv/prcs/fprod/NVISION/INSTANCE
C69: ="Run Date: "&TEXT(NvsEndTime,"mmmm dd, yyyy") -> Run Date: March 10, 2017
C74: Version 9.2 | G74: 5.14
B76: Change Information
C77: Release | G77: Date | I77: Developer | K77: Change Request and Details
G78: 2008-05-01 | I78: Lina | K78: tsk 40394
C79: 1.09 | G79: 2009-02-10 | I79: Lina | K79: tsk 45361 | O79: performance tuning
C80: 1.1 | G80: 2009-03-04 | I80: Lina | K80: tsk 49276 | O80: FY09 changes
C81: 1.10a | G81: 2009-06-02 | I81: Lina | K81: RFC347 | O81: Add: 4211xx, 4212xx, 4213xx,4919xx to grants and Contracts
C82: 2.09 | G82: 2009-11-17 | I82: Lina | K82: RFC4796;TSK5305
C83: 2.12 | G83: 2010-02-08 | I83: Lina | K83: RFC3010;TSK6940
C84: 2.18 | G84: 2011-03-10 | I84: Michael Campbell | K84: mst11521_tsk11699 | O84: Removed 560000 to 569999 detail from other per services tree node.
O85: 566000 to 566999 was placed the query and left in tree to restrict this account range to specific years. See the query to regulate these accounts.
C86: 2.7 | G86: 2013-04-12 | I86: RMullinix | K86: TSK18707 | O86: Wording changes
C87: 4 | G87: 2015-01-08 | I87: Robert Prescott | K87: TSK22521 | O87: 9.2 Upgrade
C88: 5 | G88: 2015-09-30 | I88: RMullinix | K88: TSK26266 | O88: prepare for switch to unix processing
C89: 5.13 | G89: 2016-04-04 | I89: Yvonne Howington | K89: TSK27576 | O89: created new trees for report, modified query, split out parking and transportation
C90: 5.14 | G90: 2016-05-16 | I90: Michael Paktinat | K90: tsk27812

Sheet Aux Cap Assets
A1: %,SPER0TO12 | D1: %,QBOR_GASB_LEDGER_NVS,CA.POSTED_TOTAL_AMT,FFUND_CODE,TBOR_AUXCAPAS_FUND,NRESIDENCE_HALLS | F1: %,QBOR_GASB_LEDGER_NVS,CA.POSTED_TOTAL_AMT,FFUND_CODE,TBOR_AUXCAPAS_FUND,NSTORES_&_SHOPS | H1: %,QBOR_GASB_LEDGER_NVS,CA.POSTED_TOTAL_AMT,FFUND_CODE,TBOR_AUXCAPAS_FUND,NFOOD_SERVICES | J1: %,QBOR_GASB_LEDGER_NVS,CA.POSTED_TOTAL_AMT,FFUND_CODE,TBOR_AUXCAPAS_FUND,NPARKING | L1: %,QBOR_GASB_LEDGER_NVS,CA.POSTED_TOTAL_AMT,FFUND_CODE,TBOR_AUXCAPAS_FUND,NTRANSPORTATION | N1: %,QBOR_GASB_LEDGER_NVS,CA.POSTED_TOTAL_AMT,FFUND_CODE,TBOR_AUXCAPAS_FUND,NHEALTH_SERVICES | P1: %,QBOR_GASB_LEDGER_NVS,CA.POSTED_TOTAL_AMT,FFUND_CODE,TBOR_AUXCAPAS_FUND,NINTERCOLLEGIATE_ATHL | R1: %,QBOR_GASB_LEDGER_NVS,CA.POSTED_TOTAL_AMT,FFUND_CODE,TBOR_AUXCAPAS_FUND,NOTHER
B2: Kennesaw State University | W2: AUXCAPAS
B3: Auxiliary Enterprises Schedule of Capital Assets | W3: JBFREEMAN
B4: ="For the Fiscal Year Ended: "&TEXT(ASD,"mmmm dd, yyyy") -> For the Fiscal Year Ended: June 30, 2016 | W4: 2016-06-30
W5: AUX_CAPITAL_ASSETS.XNV
D6: Residence | F6: Stores & | H6: Food | N6: Health | P6: Intercollegiate | W6: /opt/psoft/psconfig/appserv/prcs/fprod/NVISION/INSTANCE
D7: Halls | F7: Shops | H7: Services | J7: Parking | L7: Transportation | N7: Services | P7: Athletics | R7: Other | T7: Total
B8: Capital Assets: | C8: Fund Numbers: | D8: 12210 | F8: 12230 | H8: 12220 | J8: 12250 | L8: 12260 | N8: 12240 | P8: 12280 | R8: 12270 | V8: Funds 12xxx only
B10: Capital Assets, not being depreciated
A11: %,FACCOUNT,TBOR_AUXCAPAS_ACCT,NLAND | B11: Land | D11: 0 | F11: 0 | H11: 0 | J11: 3392777.48 | L11: 0 | N11: 0 | P11: 0 | R11: 0 | T11: =SUM(D11:R11) -> 3392777.48 | V11: 161xxx
A12: %,FACCOUNT,TBOR_AUXCAPAS_ACCT,NCAPITALIZED_COLLECT | B12: Capitalized Collections | D12: 0 | F12: 0 | H12: 0 | J12: 0 | L12: 0 | N12: 0 | P12: 0 | R12: 0 | T12: =SUM(D12:R12) -> 0 | V12: 1681xx
A13: %,FACCOUNT,TBOR_AUXCAPAS_ACCT,NCONSTRUCTION_WIP | B13: Construction Work-In-Progress | D13: 0 | F13: 79487 | H13: 23020.11 | J13: -1895 | L13: 0 | N13: 0 | P13: 0 | R13: 0 | T13: 100612.11 | V13: 1690xx
A14: %,FACCOUNT,TBOR_AUXCAPAS_ACCT,NSOFTWARE_DEV_WIP | B14: Software Development-In-Progress | D14: 0 | F14: 0 | H14: 0 | J14: 0 | L14: 0 | N14: 0 | P14: 0 | R14: 0 | T14: 0 | V14: 1699xx
B15: Total Capital Assets Not Being Depreciated | D15: =SUM(D11:D14) -> 0 | F15: =SUM(F11:F14) -> 79487 | H15: =SUM(H11:H14) -> 23020.11 | J15: =SUM(J11:J14) -> 3390882.48 | L15: =SUM(L11:L14) -> 0 | N15: =SUM(N11:N14) -> 0 | P15: =SUM(P11:P14) -> 0 | R15: =SUM(R11:R14) -> 0 | T15: =SUM(T11:T14) -> 3493389.59
B17: Capital Assets, Being Depreciated:
A18: %,FACCOUNT,TBOR_AUXCAPAS_ACCT,NINFRASTRUCTURE | B18: Infrastructure | D18: 0 | F18: 0 | H18: 0 | J18: 1260414.51 | L18: 0 | N18: 0 | P18: 0 | R18: 0 | T18: =SUM(D18:R18) -> 1260414.51 | V18: 167xxx(except 167900 and 167190)
A19: %,FACCOUNT,TBOR_AUXCAPAS_ACCT,NBUILDINGS | B19: Building and Building Improvements | D19: 210586170.2 | F19: 3481967.56 | H19: 19700569.95 | J19: 85050070.62 | L19: 0 | N19: 1061871.62 | P19: 4926171.42 | R19: 559189.9 | T19: =SUM(D19:R19) -> 325366011.3 | V19: 162xxx(except 162900 and 162190)
A20: %,FACCOUNT,TBOR_AUXCAPAS_ACCT,NFACILITIES | B20: Facilities and Other Improvements | D20: 0 | F20: 0 | H20: 0 | J20: 3313535.88 | L20: 0 | N20: 0 | P20: 298875 | R20: 0 | T20: 3612410.88 | V20: 163xxx(except 163900 and 163190)
A21: %,FACCOUNT,TBOR_AUXCAPAS_ACCT,NEQUIPMENT | B21: Equipment | D21: 67473.12 | F21: 108367.52 | H21: 1538729.12 | J21: 119358.45 | L21: 140634.54 | N21: 41943.68 | P21: 431921.55 | R21: 203446.5 | T21: 2651874.48 | V21: 165xxx(except 165900 and 165190)
A22: %,FACCOUNT,TBOR_AUXCAPAS_ACCT,NLIBRARY_COLLECTIONS | B22: Library Collections | D22: 0 | F22: 0 | H22: 0 | J22: 0 | L22: 0 | N22: 0 | P22: 0 | R22: 0 | T22: 0 | V22: 164xxx(except 1649xx)
A23: %,FACCOUNT,TBOR_AUXCAPAS_ACCT,NCAPITALIZED_COLL_DPD | B23: Capitalized Collections | D23: 0 | F23: 0 | H23: 0 | J23: 0 | L23: 0 | N23: 0 | P23: 0 | R23: 0 | T23: 0 | V23: 168xxx(except 1689xx, 1682xx, 1681xx)
A24: %,FACCOUNT,TBOR_AUXCAPAS_ACCT,NWATER_TIMBER_MIN_EAS | B24: Water, Timber, Mineral Rights, and Easements | D24: 0 | F24: 0 | H24: 0 | J24: 0 | L24: 0 | N24: 0 | P24: 0 | R24: 0 | T24: 0 | V24: 16822x
A25: %,FACCOUNT,TBOR_AUXCAPAS_ACCT,NPATENTS_TRADE_COPY | B25: Patents, Trademarks, and Copyrights | D25: 0 | F25: 0 | H25: 0 | J25: 0 | L25: 0 | N25: 0 | P25: 0 | R25: 0 | T25: 0 | V25: 16823x
A26: %,FACCOUNT,TBOR_AUXCAPAS_ACCT,NSOFTWARE | B26: Software | D26: 0 | F26: 0 | H26: 0 | J26: 0 | L26: 0 | N26: 0 | P26: 0 | R26: 0 | T26: 0 | V26: 16821x
B27: Total Capital Assets, Being Depreciated | D27: =SUM(D18:D26) -> 210653643.3 | F27: =SUM(F18:F26) -> 3590335.08 | H27: =SUM(H18:H26) -> 21239299.07 | J27: =SUM(J18:J26) -> 89743379.46 | L27: =SUM(L18:L26) -> 140634.54 | N27: =SUM(N18:N26) -> 1103815.3 | P27: =SUM(P18:P26) -> 5656967.97 | R27: =SUM(R18:R26) -> 762636.4 | T27: =SUM(T18:T26) -> 332890711.1
B29: Less: Accumulated depreciation
A30: %,R,FACCOUNT,TBOR_AUXCAPAS_ACCT,NINFRASTRUCTURE_DEP | B30: Infrastructure | D30: 0 | F30: 0 | H30: 0 | J30: 389468.09 | L30: 0 | N30: 0 | P30: 0 | R30: 0 | T30: =SUM(D30:R30) -> 389468.09 | V30: 167900 and 167190
A31: %,R,FACCOUNT,TBOR_AUXCAPAS_ACCT,NBUILDING_DEP | B31: Buildings and Building Improvements | D31: 70029466.08 | F31: 1049100.55 | H31: 4708881.743 | J31: 31325356.23 | L31: 0 | N31: 243233.7 | P31: 1231314.325 | R31: 227079.58 | T31: =SUM(D31:R31) -> 108814432.2 | V31: 162900 and 162190
A32: %,R,FACCOUNT,TBOR_AUXCAPAS_ACCT,NFACILITIES_DEP | B32: Facilities and Other Improvements | D32: 0 | F32: 0 | H32: 0 | J32: 1663081.64 | L32: 0 | N32: 0 | P32: 204429.05 | R32: 0 | T32: 1867510.69 | V32: 163900 and 163190
A33: %,R,FACCOUNT,TBOR_AUXCAPAS_ACCT,NEQUIPMENT_DEP | B33: Equipment | D33: 53305.65 | F33: 54232.58 | H33: 564725.12 | J33: 104420.93 | L33: 137766.94 | N33: 35100.75 | P33: 205856.17 | R33: 177998.04 | T33: 1333406.18 | V33: 165900 and 165190
A34: %,R,FACCOUNT,TBOR_AUXCAPAS_ACCT,NLIBRARY_DEP | B34: Library Collections | D34: 0 | F34: 0 | H34: 0 | J34: 0 | L34: 0 | N34: 0 | P34: 0 | R34: 0 | T34: 0 | V34: 1649xx
A35: %,R,FACCOUNT,TBOR_AUXCAPAS_ACCT,NCAPITALIZED_DEP | B35: Capitalized Collections | D35: 0 | F35: 0 | H35: 0 | J35: 0 | L35: 0 | N35: 0 | P35: 0 | R35: 0 | T35: 0 | V35: 1689xx(except 16891x, 16892x, 16893x)
A36: %,R,FACCOUNT,TBOR_AUXCAPAS_ACCT,NWATER_DEP | B36: Water, Timber, Mineral Rights, and Easements | D36: 0 | F36: 0 | H36: 0 | J36: 0 | L36: 0 | N36: 0 | P36: 0 | R36: 0 | T36: 0 | V36: 16892x
A37: %,R,FACCOUNT,TBOR_AUXCAPAS_ACCT,NPATENTS_DEP | B37: Patents, Trademarks, and Copyrights | D37: 0 | F37: 0 | H37: 0 | J37: 0 | L37: 0 | N37: 0 | P37: 0 | R37: 0 | T37: 0 | V37: 16893x
A38: %,R,FACCOUNT,TBOR_AUXCAPAS_ACCT,NSOFTWARE_DEP | B38: Software | D38: 0 | F38: 0 | H38: 0 | J38: 0 | L38: 0 | N38: 0 | P38: 0 | R38: 0 | T38: 0 | V38: 16891x
B39: Total Accumulated Depreciation | D39: =SUM(D30:D38) -> 70082771.73 | F39: =SUM(F30:F38) -> 1103333.13 | H39: =SUM(H30:H38) -> 5273606.863 | J39: =SUM(J30:J38) -> 33482326.89 | L39: =SUM(L30:L38) -> 137766.94 | N39: =SUM(N30:N38) -> 278334.45 | P39: =SUM(P30:P38) -> 1641599.545 | R39: =SUM(R30:R38) -> 405077.62 | T39: =SUM(T30:T38) -> 112404817.2
B41: Capital Assets (less Depreciation)
B42: Infrastructure | D42: =D18-D30 -> 0 | F42: =F18-F30 -> 0 | H42: =H18-H30 -> 0 | J42: =J18-J30 -> 870946.42 | L42: =L18-L30 -> 0 | N42: =N18-N30 -> 0 | P42: =P18-P30 -> 0 | R42: =R18-R30 -> 0 | T42: =SUM(D42:R42) -> 870946.42 | V42: Calculated
B43: Buildings and Building Improvements | D43: =D19-D31 -> 140556704.1 | F43: 2432867.01 | H43: =H19-H31 -> 14991688.21 | J43: =J19-J31 -> 53724714.39 | L43: =L19-L31 -> 0 | N43: =N19-N31 -> 818637.92 | P43: =P19-P31 -> 3694857.095 | R43: =R19-R31 -> 332110.32 | T43: =SUM(D43:R43) -> 216551579.1
B44: Facilities and Other Improvements | D44: 0 | F44: 0 | H44: 0 | J44: 1650454.24 | L44: 0 | N44: 0 | P44: 94445.95 | R44: 0 | T44: 1744900.19
B45: Equipment | D45: 14167.47 | F45: 54134.94 | H45: 974004 | J45: 14937.52 | L45: 2867.6 | N45: 6842.93 | P45: 226065.38 | R45: 25448.46 | T45: 1318468.3
B46: Library Collections | D46: 0 | F46: 0 | H46: 0 | J46: 0 | L46: 0 | N46: 0 | P46: 0 | R46: 0 | T46: 0
B47: Capitalized Collections | D47: 0 | F47: 0 | H47: 0 | J47: 0 | L47: 0 | N47: 0 | P47: 0 | R47: 0 | T47: 0
B48: Water, Timber, Mineral Rights, and Easements | D48: 0 | F48: 0 | H48: 0 | J48: 0 | L48: 0 | N48: 0 | P48: 0 | R48: 0 | T48: 0
B49: Patents, Trademarks, and Copyrights | D49: 0 | F49: 0 | H49: 0 | J49: 0 | L49: 0 | N49: 0 | P49: 0 | R49: 0 | T49: 0
B50: Software | D50: 0 | F50: 0 | H50: 0 | J50: 0 | L50: 0 | N50: 0 | P50: 0 | R50: 0 | T50: 0
B51: Total Capital Assets, Being Depreciated, Net | D51: =SUM(D42:D50) -> 140570871.6 | F51: =SUM(F42:F50) -> 2487001.95 | H51: =SUM(H42:H50) -> 15965692.21 | J51: =SUM(J42:J50) -> 56261052.57 | L51: =SUM(L42:L50) -> 2867.6 | N51: =SUM(N42:N50) -> 825480.85 | P51: =SUM(P42:P50) -> 4015368.425 | R51: =SUM(R42:R50) -> 357558.78 | T51: =SUM(T42:T50) -> 220485894
B53: Total Capital Assets, net | D53: =SUM(D15+D51) -> 140570871.6 | F53: =SUM(F15+F51) -> 2566488.95 | H53: =SUM(H15+H51) -> 15988712.32 | J53: =SUM(J15+J51) -> 59651935.05 | L53: =SUM(L15+L51) -> 2867.6 | N53: =SUM(N15+N51) -> 825480.85 | P53: =SUM(P15+P51) -> 4015368.425 | R53: =SUM(R15+R51) -> 357558.78 | T53: =SUM(T15+T51) -> 223979283.6
B56: Mapping (Fund) | D56: 12210 | F56: 12230 | H56: 12220 | J56: 12250 | L56: 12260 | N56: 12240 | P56: 12280 | R56: 12270
B59: ="Report ID: "&RID -> Report ID: AUXCAPAS
B60: ="Layout Name: "&LYN -> Layout Name: AUX_CAPITAL_ASSETS.XNV
B61: ="Operator: "&OPR -> Operator: JBFREEMAN
B62: ="Instance Directory: " &IDN -> Instance Directory: /opt/psoft/psconfig/appserv/prcs/fprod/NVISION/INSTANCE
B63: ="Run Date: "&TEXT(NvsEndTime,"mmmm dd, yyyy") -> Run Date: March 10, 2017
B67: Tree Information
D68: Top Level | F68: Tree | H68: Node
B69: See nVision Tracking Database
B71: Version | D71: 5.13
B74: Change Information
B75: Release | D75: Date | E75: Developer | H75: Change Request and Details | U75: Developer
B76: 5.13 | D76: 2016-04-12 | F76: Robert Prescott | H76: TSK27615 - New nVision Report

Sheet Student Activities SNP
A1: %,FFUND_CODE,TBOR_SASNP_FUND,NSTUDENT ACTIVITIES | D1: %,QBOR_GASB_LEDGER_NVS,CA.POSTED_TOTAL_AMT,S2YEAR | F1: %,QBOR_GASB_LEDGER_NVS,CA.POSTED_TOTAL_AMT,S2YR-1
B2: ="FY" &(TEXT(ASD,"YYYY")) -> FY2016
B3: Kennesaw State University
B4: Student Activities Statement of Net Position | G4: SASNP
B5: ="June 30, " &(TEXT(ASD,"YYYY")) -> June 30, 2016 | G5: JBFREEMAN
G6: 2016-06-30
G7: SA_STATEMENT_OF_NET_POSITION
B8: Assets | D8: ="June 30, " &(TEXT(ASD,"YYYY")) -> June 30, 2016 | F8: ="June 30, "&(TEXT(ASD,"YYYY")-1) -> June 30, 2015 | G8: /opt/psoft/psconfig/appserv/prcs/fprod/NVISION/INSTANCE | K8: Fund 13xxx Only
B9: Current Assets
A10: %,FACCOUNT,TBOR_SASNP_ACCT,NCASH AND CASH EQUIV | B10: Cash and cash equivalents | D10: 19717255.46 | F10: 19231857.58 | K10: 111xxx,112xxx,1181xx,118200,1185xx, 1191xx, 1192xx, 1193xx,1194xx
A11: %,FACCOUNT,TBOR_SASNP_ACCT,NSHORTTERM INVESTMENT | B11: Short-term investments | D11: 0 | F11: 0 | K11: 1198xx
B12: Accounts receivable, net
A13: %,FACCOUNT,TBOR_SASNP_ACCT,NREC FED FIN ASSIST | B13: Rec.-Federal Financial Assistance | D13: 0 | F13: 0 | K13: 124xxx
A14: %,FACCOUNT,TBOR_SASNP_ACCT,NREC STATE GEN APPROP | B14: Rec. State General Appropriations | D14: 0 | F14: 0 | K14: 123xxx
A15: %,FACCOUNT,TBOR_SASNP_ACCT,NREC OTHER | B15: Rec.- Other | D15: 32070.68 | F15: 201731.25 | K15: 12xxxx (except for 122xxx, 123xxx, 124xxx, 1260xx, 1268xx,1269xx)
A16: %,FACCOUNT,TBOR_SASNP_ACCT,NDUE_AFFILIATED_ORG | B16: Due From Affiliated Organizations | D16: 94625 | F16: 72223.59 | K16: 1268xx
A17: %,FACCOUNT,TBOR_SASNP_ACCT,NINVENTORIES | B17: Inventories | D17: 0 | F17: 0 | K17: 141xxx, and 142xxx
A18: %,FACCOUNT,TBOR_SASNP_ACCT,NPREPAID ITEMS | B18: Prepaid Items | D18: 13836.92 | F18: 8303.47 | K18: 13xxxx
A19: %,FACCOUNT,TBOR_SASNP_ACCT,NOTHER ASSETS | B19: Other assets | D19: 0 | F19: 0 | K19: 1260xx, 2180xx
B20: Total Current Assets | D20: =SUM(D10:D19) -> 19857788.06 | F20: =SUM(F10:F19) -> 19514115.89
B22: Noncurrent Assets
A23: %,FACCOUNT,TBOR_SASNP_ACCT,NNONCURRENT CASH | B23: Noncurrent Cash (Externally Restricted) | D23: 0 | F23: 0 | K23: 1580xx, 1581xx
A24: %,FACCOUNT,TBOR_SASNP_ACCT,NSHORT TERM INVEST | B24: Short-Term Investments (Externally Restricted) | D24: 0 | F24: 0 | K24: 1582xx
A25: %,FACCOUNT,TBOR_SASNP_ACCT,NDUE AFFILIATED ORG | B25: Due From Affiliated Organizations | D25: 0 | F25: 0 | K25: 1269xx (Except 126960 and 126970)
A26: %,FACCOUNT,TBOR_SASNP_ACCT,NDUE FROM USO | B26: Due From USO - Capital Liability Reserve Fund | D26: 669977.52 | F26: 669977.52 | K26: 126960
A27: %,FACCOUNT,TBOR_SASNP_ACCT,NDUE FROM INSTITUTION | B27: Due From Institutions - Capital Liability Reserve Fund | D27: 0 | F27: 0 | K27: 126970
A28: %,FACCOUNT,TBOR_SASNP_ACCT,NINVESTMENTS | B28: Investments | D28: 0 | F28: 0 | K28: 15xxxx (except 158xxx)
A29: %,FACCOUNT,TBOR_SASNP_ACCT,NNOTES RECEIVABLE | B29: Notes receivable, net | D29: 0 | F29: 0 | K29: 122xxx
A30: %,FACCOUNT,TBOR_SASNP_ACCT,NCAPITAL ASSETS | B30: Capital assets, net | D30: 104583431.6 | F30: 102489481.3 | K30: 16xxxx
B31: Other assets
B32: Total Noncurrent Assets | D32: =SUM(D23:D31) -> 105253409.2 | F32: =SUM(F23:F31) -> 103159458.8
B33: TOTAL ASSETS | D33: =SUM(D20+D32) -> 125111197.2 | F33: =SUM(F20+F32) -> 122673574.7
B35: Deferred Outflows of Resources
A36: %,FACCOUNT,TBOR_SASNP_ACCT,NDEFERRED DEBT REF | B36: Deferred Amount on Debt Refunding | D36: 0 | F36: 0 | K36: 170100
A37: %,FACCOUNT,TBOR_SASNP_ACCT,NDEFERRED PENSION | B37: Deferred Amount on Defined Benefit Pension Plan | D37: 0 | F37: 0 | K37: 170200
A38: %,FACCOUNT,TBOR_SASNP_ACCT,NDEFERRED REV OTHER | B38: Other Deferred Outflows of Resources | D38: 0 | F38: 0 | K38: 1700xx, 170900
B39: Total Deferred Outflows of Resources | D39: =SUM(D36:D38) -> 0 | F39: =SUM(F36:F38) -> 0
B41: LIABILITIES
B42: Current Liabilities
A43: %,R,FACCOUNT,TBOR_SASNP_ACCT,NACCOUNTS PAYABLE | B43: Accounts Payable | D43: 530269.902 | F43: 451767.19 | K43: 2110xx, 2114xx, 2115xx, 2116xx,2118xx, 211999, 2122xx, 213xxx, 215xxx, 2198xx, 2199xx, 221xxx, 222xxx, 223xxx, 224xxx, 225xxx, 226xxx, 227xxx, 228xxx, 229xxx, 2182xx, 2185xx, 2187xx
A44: %,R,FACCOUNT,TBOR_SASNP_ACCT,NSALARIES PAYABLE | B44: Salaries Payable | D44: 5115.52 | F44: 9679.68 | K44: 2121xx
A45: %,R,FACCOUNT,TBOR_SASNP_ACCT,NBENEFITS | B45: Benefits Payable | D45: 0 | F45: 0 | K45: 23xxxx, 291700
A46: %,R,FACCOUNT,TBOR_SASNP_ACCT,NCONTRACTS PAYABLE | B46: Contracts Payable | D46: 0 | F46: 3247 | K46: 2119xx except 21195x, 21197x, and 211999
A47: %,R,FACCOUNT,TBOR_SASNP_ACCT,NRETAINAGES_PAYABLE | B47: Retainages Payable | D47: 0 | F47: 0 | K47: 21195x and 21197x
A48: %,R,FACCOUNT,TBOR_SASNP_ACCT,NDEPOSITS | B48: Deposits | D48: 0 | F48: 0 | K48: 214xxx
A49: %,R,FACCOUNT,TBOR_SASNP_ACCT,NDEFERRED REVENUE | B49: Advances (Including Tuition & Fees) | D49: 986613.06 | F49: 819092.22 | K49: 216xxx,217xxx
A50: %,R,FACCOUNT,TBOR_SASNP_ACCT,NOTHER LIABILITIES | B50: Other liabilities | D50: 0 | F50: 0 | K50: 2191xx except for 219101, 219102, 219103, 219104, 219105
A51: %,R,FACCOUNT,TBOR_SASNP_ACCT,NDEPOSITS FOR OTHERS | B51: Deposits held for other organizations | D51: 0 | F51: 0 | K51: 24xxxx,25xxxx
A52: %,R,FACCOUNT,TBOR_SASNP_ACCT,NLEASE PURCHASE | B52: Lease Purchase Obligations | D52: 1535954.73 | F52: 1282372.9 | K52: 2194xx
A53: %,R,FACCOUNT,TBOR_SASNP_ACCT,NCOMP ABSENCE | B53: Compensated absences | D53: 105379.54 | F53: 73326.21 | K53: 2871xx
A54: %,R,FACCOUNT,TBOR_SASNP_ACCT,NDUE_2_AFFILIATED_ORG | B54: Due to Affiliated Organizations | D54: 1720 | F54: 0 | K54: 2188xx
A55: %,R,FACCOUNT,TBOR_SASNP_ACCT,NDUE_2_USO | B55: Due to USO - Capital Liability Reserve Fund | D55: 0 | F55: 0 | K55: 218100
A56: %,R,FACCOUNT,TBOR_SASNP_ACCT,NNOTES PAYABLE | B56: Notes and Loans Payable | D56: 0 | F56: 0 | K56: 2195xx
A57: %,R,FACCOUNT,TBOR_SASNP_ACCT,NPOLLUTION_REMED_CURR | B57: Pollution Remediation | D57: 0 | F57: 0 | K57: 219101
A58: %,R,FACCOUNT,TBOR_SASNP_ACCT,NCLAIMS AND JUDGEMENT | B58: Claims and Judgements | D58: 0 | F58: 0 | K58: 219103
B59: Total Current Liabilities | D59: =SUM(D43:D58) -> 3165052.752 | F59: =SUM(F43:F58) -> 2639485.2
B60: Noncurrent Liabilities
A61: %,R,FACCOUNT,TBOR_SASNP_ACCT,NLEASE PURCHASE NC | B61: Lease Purchase Obligations | D61: 104757474.9 | F61: 104606873 | K61: 2911xx
A62: %,R,FACCOUNT,TBOR_SASNP_ACCT,NADVANCES | B62: Advances (Including Tuition & Fees) | D62: 0 | F62: 0 | K62: 2913xx,2914xx
A63: %,R,FACCOUNT,TBOR_SASNP_ACCT,NCOMP ABSENCES | B63: Compensated Absences | D63: 46305.95 | F63: 41234.39 | K63: 2971xx
A64: %,R,FACCOUNT,TBOR_SASNP_ACCT,NDUE TO USO NC | B64: Due to USO - Capital Liability Reserve Fund | D64: 0 | F64: 0 | K64: 218101
A65: %,R,FACCOUNT,TBOR_SASNP_ACCT,NNET PENSION LIAB | B65: Net Pension Liability | D65: 0 | F65: 0 | K65: 2915xx
A66: %,R,FACCOUNT,TBOR_SASNP_ACCT,NOTHER POST EMP BENEF | B66: Other Post-Employement Benefit Liability | D66: 0 | F66: 0 | K66: 291600
A67: %,R,FACCOUNT,TBOR_SASNP_ACCT,NOTHER LIABILITIES NC | B67: Other liabilities | D67: 0 | F67: 0 | K67: 219105
A68: %,R,FACCOUNT,TBOR_SASNP_ACCT,NDUE_2_AFFIL_ORG_NC | B68: Due To Affiliated Organizations | D68: 0 | F68: 0 | K68: 2189xx
A69: %,R,FACCOUNT,TBOR_SASNP_ACCT,NNOTES AND LOANS NC | B69: Notes and Loans Payable | D69: 0 | F69: 0 | K69: 2912xx
A70: %,R,FACCOUNT,TBOR_SASNP_ACCT,NPOLLUTION_REMED | B70: Pollution Remediation | D70: 0 | F70: 0 | K70: 219102
A71: %,R,FACCOUNT,TBOR_SASNP_ACCT,NCLAIMS AND JUDGE NC | B71: Claims and Judgements | D71: 0 | F71: 0 | K71: 219104
B72: Total Noncurrent Liabilities (Note 8) | D72: =SUM(D61:D71) -> 104803780.9 | F72: =SUM(F61:F71) -> 104648107.4
B73: TOTAL LIABILITIES | D73: =SUM(D59+D72) -> 107968833.6 | F73: =SUM(F59+F72) -> 107287592.6
B75: Deferred Inflows of Resources
A76: %,R,FACCOUNT,TBOR_SASNP_ACCT,NDEFERRED GAIN DEBT | B76: Deferred gain on debt refunding | D76: 0 | F76: 0 | K76: 2981xx
A77: %,R,FACCOUNT,TBOR_SASNP_ACCT,NDEFERRED GRANTS REC | B77: Deferred Grants Received in Adv of Timing Requirements | D77: 0 | F77: 0 | K77: 2984xx
A78: %,R,FACCOUNT,TBOR_SASNP_ACCT,NDEFERRED SERVICE CON | B78: Deferred service concession arrangement receipts | D78: 0 | F78: 0 | K78: 2983xx
A79: %,R,FACCOUNT,TBOR_SASNP_ACCT,NDEFERRED DEFINED BEN | B79: Deferred Defined Benefit Pension Plan | D79: 0 | F79: 0 | K79: 2982xx
A80: %,R,FACCOUNT,TBOR_SASNP_ACCT,NDEFERRED OTHER | B80: Other Deferred Inflows of Resources | D80: 0 | F80: 0 | K80: 2980xx, 2989xx
B81: Total Deferred Inflows of Resources | D81: =SUM(D76:D80) -> 0 | F81: =SUM(F76:F80) -> 0
B82: NET POSITION
A83: %,R,FACCOUNT,TBOR_SASNP_ACCT,NNET INVEST CAP ASSET,SPER0to999 | B83: Net Investment in Capital Assets | D83: -1709998.811 | F83: -3399764.591 | K83: 311xxx
B84: Restricted for
A85: %,R,FACCOUNT,TBOR_SASNP_ACCT,NNONEXPENDABLE | B85: Nonexpendable | D85: 0 | F85: 0 | K85: 360xxx
A86: %,R,FACCOUNT,TBOR_SASNP_ACCT,NEXPENDABLE | B86: Expendable | D86: 0 | F86: 0 | K86: 371xxx
A87: %,R,FACCOUNT,TBOR_SASNP_ACCT,NUNRESTRICTED,SPER0to999 | B87: Unrestricted | D87: 18852362.41 | F87: 18785746.72 | K87: 321xxx,322xxx,323xxx,329xxx,34xxxx
B88: TOTAL NET POSITION | D88: =SUM(D83:D87) -> 17142363.6 | F88: =SUM(F83:F87) -> 15385982.13
B90: Calculation check point | D90: =SUM((D33+D39)-(D73+D81))-D88 -> 0 | F90: =SUM((F33+F39)-(F73+F81))-F88 -> 0
B91: (If not -0-, find problem)
B94: ="Report ID: "&RID -> Report ID: SASNP
B95: ="Layout Name: "&LYN -> Layout Name: SA_STATEMENT_OF_NET_POSITION
B96: ="Operator: "&OPR -> Operator: JBFREEMAN
B97: ="Instance Directory: "&IDN -> Instance Directory: /opt/psoft/psconfig/appserv/prcs/fprod/NVISION/INSTANCE
B98: ="Run Date: "&TEXT(NvsEndTime,"mmmm dd, yyyy at HH:MM") -> Run Date: March 10, 2017 at 09:32
B104: Version | D104: 5.16
B106: Change Information
B107: Release | D107: Date | E107: Developer | G107: Change Request and Details
B108: 4.1 | D108: 2015-02-10 | F108: Robert Prescott | J108: TSK24278 | K108: New Report
B109: 4.3 | D109: 2015-05-07 | F109: Robin Mullinix | J109: TSK24278 | K109: Update Report with Mapping document changes made to the regular SNP
B110: 5 | D110: 2015-09-30 | F110: RMullinix | J110: TSK26266 | K110: prepare for switch to unix processing
B111: 5.13 | D111: 2016-04-14 | F111: Yvonne Howington | J111: TSK27616 | K111: Extensive changes and new trees
B112: 5.14 | D112: 2016-05-12 | F112: Mpaktinat | J112: tsk27802 | K112: Update Accounts Payable mapping to include account 2118xx
B113: 5.16 | D113: 2016-07-12 | F113: Mpaktinat | J113: tsk28251 | K113: delete the row for Investment (Externally Restricted)

Sheet Student Activities SRECNP
A1: %,QBOR_GASB_LEDGER_NVS,CA.POSTED_TOTAL_AMT,FFUND_CODE,TBOR_SASRECNP_FUND,NSTUDENT ACTIVITIES | D1: %,S2YEAR | F1: %,S2YR-1
B2: Kennesaw State University | K2: SASRECNP
B3: Student Activities Statement of Revenue Expenses and Changes in Net Position | K3: SA_SRECNP
B4: ="Fiscal Year Ended: "&TEXT(ASD,"mmmm dd, yyyy") -> Fiscal Year Ended: June 30, 2016 | K4: JBFREEMAN
K5: 2016-06-30
D6: Current Year | F6: Prior Year | K6: /opt/psoft/psconfig/appserv/prcs/fprod/NVISION/INSTANCE
D7: ="June 30, " &(TEXT(ASD, "yyyy")) -> June 30, 2016 | F7: ="June 30, " &(TEXT(ASD,"yyyy") - 1) -> June 30, 2015 | I7: Fund 13xxx Only
B9: Revenues
B10: Operating Revenues
A12: %,R,FACCOUNT,TBOR_SASRECNP_ACCT,NTUITION_AND_FEES | B12: Student tuition and fees (net) | D12: 14903511.44 | F12: 12659638.68 | I12: 40xxxx, 453xxx, and 454xxx
A13: %,R,FACCOUNT,TBOR_SASRECNP_ACCT,NFEDERAL APPROP | B13: Federal appropriations | D13: 0 | F13: 0 | I13: 4111xx
B14: Grants and Contracts
A15: %,R,FACCOUNT,TBOR_SASRECNP_ACCT,NFEDERAL GRANTS | B15: Federal | D15: 0 | F15: 0 | I15: 421xxx, 4721xx, 425998
A16: %,R,FACCOUNT,TBOR_SASRECNP_ACCT,NSTATE GRANTS CONTRAC | B16: State | D16: 0 | F16: 0 | I16: 422xxx, and 4722xx
A17: %,R,FACCOUNT,TBOR_SASRECNP_ACCT,NOTHER | B17: Other | D17: 0 | F17: 0 | I17: 423xxx and 4723xx , 424xxx and 4724xxx
A18: %,R,FACCOUNT,TBOR_SASRECNP_ACCT,NSALES AND SERVICES | B18: Sales and Services | D18: 0 | F18: 0 | I18: 441xxx, 449xxx, 452xxx, 4600xx
A19: %,R,FACCOUNT,TBOR_SASRECNP_ACCT,NRENTS AND ROYALTIES | B19: Rents and Royalties | D19: 202677.69 | F19: 15 | I19: 451xxx
A20: %,R,FACCOUNT,TBOR_SASRECNP_ACCT,NOTHER REVENUE | B20: Other operating revenues | D20: 205516.33 | F20: 314934.63 | I20: 4131xx,442xxx,470xxx, 473xxx, 478xxx
B21: TOTAL OPERATING REVENUE | D21: =SUM(D12:D20) -> 15311705.46 | F21: =SUM(F12:F20) -> 12974588.31
B23: Expenses
B24: Operating expenses
B25: Salaries:
A26: %,FACCOUNT,TBOR_SASRECNP_ACCT,NFACULTY SALARY | B26: Faculty | D26: 5950 | F26: 8001.38 | I26: 51xxxx, 53xxxx
A27: %,FACCOUNT,TBOR_SASRECNP_ACCT,NSTAFF SALARY | B27: Staff | D27: 3241996.78 | F27: 1969116.3 | I27: 52xxxx, 54xxxx
A28: %,FACCOUNT,TBOR_SASRECNP_ACCT,NBENEFITS | B28: Benefits | D28: 613824.58 | F28: 435134.65 | I28: 55xxxx
A29: %,FACCOUNT,TBOR_SASRECNP_ACCT,NOTHER PER SERVICES | B29: Other personal services | D29: 17450 | F29: 19607.81 | I29: 56xxxx, 59xxxx,723xxx
A30: %,FACCOUNT,TBOR_SASRECNP_ACCT,NTRAVEL | B30: Travel | D30: 98156.4 | F30: 122134.08 | I30: 6xxxxx (except 65xxxx)
A31: %,FACCOUNT,TBOR_SASRECNP_ACCT,NSCHOLARSHIP_FELLOWS | B31: Scholarships and fellowships | D31: 605315.74 | F31: 830675.12 | I31: 78xxxx
A32: %,FACCOUNT,TBOR_SASRECNP_ACCT,NUTILITIES | B32: Utilities | D32: 338711.08 | F32: 52327.65 | I32: 717xxx,771xxx
A33: %,FACCOUNT,TBOR_SASRECNP_ACCT,NSUPPLIES | B33: Supplies and other services | D33: 4125476.361 | F33: 4243642.28 | I33: 65xxxx,700xxx,702xxx->704xxx, 712xxx,714xxx,715xxx,719xxx->722xxx, 724xxx, 725xxx, 726xxx, 727xxx, 733xxx, 734xxx, 735xxx, 742xxx -> 744xxx, 748xxx, 753xxx, 798xxx, 799990,800000 -> 889xxx (except 8182xx), 9xxxxx (except 99999x),4711xx, 7281xx
A34: %,FACCOUNT,TBOR_SASRECNP_ACCT,NPER DIEM & FEES | B34: Consulting Expenses/per diem | D34: 120142.65 | F34: 339163.97 | I34: 751xxx, 752xxx
A35: %,FACCOUNT,TBOR_SASRECNP_ACCT,NDEPRECIATION | B35: Depreciation | D35: 2886340.54 | F35: 2284981.63 | I35: 8901xx, 890900
B36: TOTAL OPERATING EXPENSES | D36: =SUM(D26:D35) -> 12053364.13 | F36: =SUM(F26:F35) -> 10304784.87
B37: OPERATING INCOME (LOSS) | D37: =D21-D36 -> 3258341.329 | F37: =F21-F36 -> 2669803.44
B39: Nonoperating Revenues/Expenses
A40: %,R,FACCOUNT,TBOR_SASRECNP_ACCT,NSTATE APPROPRIATIONS | B40: State appropriations | D40: 0 | F40: 0 | I40: 4801xx, 4802xx
B41: Grants and Contracts
A42: %,R,FACCOUNT,TBOR_SASRECNP_ACCT,NEXP FED GRANTS | B42: Federal | D42: 0 | F42: 0 | I42: 4911xx, 4941xx
A43: %,R,FACCOUNT,TBOR_SASRECNP_ACCT,NEXP STATE GRANTS | B43: State | D43: 0 | F43: 0 | I43: 4912xx, 4942xx
A44: %,R,FACCOUNT,TBOR_SASRECNP_ACCT,NEXP OTHER | B44: Other | D44: 0 | F44: 0 | I44: 4913xx, 4914xx, 4943xx, 4944xx
A45: %,R,FACCOUNT,TBOR_SASRECNP_ACCT,NGIFTS | B45: Gifts | D45: 8877.88 | F45: 0 | I45: 4851xx,,4853xx,4855xx,4857xx,4859xx
A46: %,R,FACCOUNT,TBOR_SASRECNP_ACCT,NINVESTMENT INCOME | B46: Investment Income | D46: 83648.36 | F46: 82519.314 | I46: 481xxx->484xxx,4932xx, 486xxx>490xxx, 4934xx,4951xx
A47: %,R,FACCOUNT,TBOR_SASRECNP_ACCT,NINTEREST EXPENSE | B47: Interest expense | D47: -5181239.402 | F47: -5388863.08 | I47: 8182xx
A48: %,R,FACCOUNT,TBOR_SASRECNP_ACCT,NOTHER NONOPERATING | B48: Other nonoperating revenues and expenses | D48: 0 | F48: -4834.35 | I48: 492xxx,4931xx,4933xx,494500, 499xxx, 792xxx, 498998
B49: NET NONOPERATING REVENUES | D49: =SUM(D40:D48) -> -5088713.162 | F49: =SUM(F40:F48) -> -5311178.116
B50: INCOME BEFORE OTHER REVENUES, EXPENSES, GAINS, OR LOSS | D50: =SUM(D37+D49) -> -1830371.833 | F50: =SUM(F37+F49) -> -2641374.676
B52: Capital Grants and gifts
A53: %,R,FACCOUNT,TBOR_SASRECNP_ACCT,NCAP GRANTS FED | B53: Federal | D53: 0 | F53: 0 | I53: 4852xx
A54: %,R,FACCOUNT,TBOR_SASRECNP_ACCT,NCAP GRANTS STATE | B54: State | D54: 0 | F54: 0 | I54: 4854xx
A55: %,R,FACCOUNT,TBOR_SASRECNP_ACCT,NCAP GRANTS OTHER | B55: Other | D55: 48520.88 | F55: 0 | I55: 4856xx,4858xx
A56: %,R,FACCOUNT,TBOR_SASRECNP_ACCT,NSPECIAL ITEM | B56: Special Item | D56: 0 | F56: 0 | I56: 497xxx
B57: TOTAL OTHER REVENUES | D57: =SUM(D53:D56) -> 48520.88 | F57: =SUM(F53:F56) -> 0
B58: INCREASE IN NET POSITION | D58: =SUM(D50+D57) -> -1781850.953 | F58: =SUM(F50+F57) -> -2641374.676
B61: Net Position
A62: %,R,FACCOUNT,TBOR_SASRECNP_ACCT,NNET POSITION | B62: Net position - beginning of year, as originally reported | D62: 18924214.55 | F62: 18027356.8 | I62: Period 0 through Period 12, acct 3xxxxx
B63: Prior year adjustments
B64: Net position - beginning of year, restated | D64: =SUM(D62+D63) -> 18924214.55 | F64: =SUM(F62+F63) -> 18027356.8
B65: Net position - end of year | D65: =SUM(D58+D64) -> 17142363.6 | F65: =SUM(F58+F64) -> 15385982.13
B69: Check Point - Depreciation Expense must agree to
B70: Cash Flow Statement Depreciation and Note 6
B71: Additions to Accumulated Depreciation
B73: SRECNP Depreciation
B74: CFS Depreciation
B75: Should be -0-
B77: SRECNP Depreciation
B78: Note 6 Additions to Accumulated Depr.
B79: Should be -0-
B81: Net Position - end of year should equal Total Net Position on SNP
B82: Net Position - end of prior year should equal Net Position - beginning of year (Current Year)
B84: ="Report ID: "&RID -> Report ID: SASRECNP
B85: ="Layout Name: "&LYN -> Layout Name: SA_SRECNP
B86: ="Operator: "&OPR -> Operator: JBFREEMAN
B87: ="Instance Directory: " &IDN -> Instance Directory: /opt/psoft/psconfig/appserv/prcs/fprod/NVISION/INSTANCE
B88: ="Run Date: "&TEXT(NvsEndTime,"mmmm dd, yyyy at HH:MM") -> Run Date: March 10, 2017 at 09:32
B94: Version 9.2 | D94: 5.14
B96: Release | D96: Date | F96: Developer | I96: Change Request and Details
B97: 4.3 | D97: 2015-02-10 | F97: Robert Prescott | I97: TSK24278 | J97: New Report
B98: 5 | D98: 2015-09-30 | F98: Rmullinix | I98: TSK26266, prepare for switch to unix processing
B99: 5.13 | D99: 2016-04-07 | F99: Yvonne Howington | I99: TSK27609, extensive changes
B100: 5.14 | D100: 2016-05-16 | F100: Mpaktinat | I100: tsk27804, update account mappings

Sheet Student Activities CA
A1: %,SFALLYEAR,FFUND_CODE,TBOR_SACAPASS_FUND,NCAPITAL_ASSETS | D1: %,QBOR_GASB_LEDGER_PER0_NVS,CA.POSTED_TOTAL_AMT,S2YEAR | F1: %,QBOR_GASB_CAPASS_ADD_NVS,CADDS | H1: %,QBOR_GASB_CAPASS_RED_NVS,CREDS
B2: Kennesaw State University | L2: SACAPASS
B3: Student Activities Capital Assets Disclosure Report | L3: JBFREEMAN
B4: ="For the Fiscal Year Ended: "&TEXT(ASD,"mmmm dd, yyyy") -> For the Fiscal Year Ended: June 30, 2016 | L4: 2016-06-30
L5: SA_CAPITAL_ASSETS
B6: ="Following are the changes in capital assets for the years ended June 30, " & (TEXT(ASD,"yyyy")) & " and " & (TEXT(ASD,"yyyy")-1) & ":" -> Following are the changes in capital assets for the years ended June 30, 2016 and 2015: | K6: Fund 13xxx | L6: /opt/psoft/psconfig/appserv/prcs/fprod/NVISION/INSTANCE
D8: (Restated)
B9: Footnote 6 - Capital Assets Disclosure | D9: Balance | F9: Additions | H9: Reductions | J9: Balance
D10: ="July 1, " &(TEXT(ASD,"yyyy")-1) -> July 1, 2015 | J10: ="June 30, " &TEXT(ASD,"yyyy") -> June 30, 2016
B12: Capital Assets, not being depreciated
A13: %,FACCOUNT,TBOR_SACAPASS_ACCT,NLAND | B13: Land | D13: 19879664 | F13: 19879664 | H13: 19879664 | J13: =+D13+F13-H13 -> 19879664 | K13: 161xxx
A14: %,FACCOUNT,TBOR_SACAPASS_ACCT,NCAPITALIZED_COLLECT | B14: Capitalized Collections | D14: 33562 | F14: 0 | H14: 0 | J14: =+D14+F14-H14 -> 33562 | K14: 1681xx
A15: %,FACCOUNT,TBOR_SACAPASS_ACCT,NCONSTRUCTION_WIP | B15: Construction Work-In-Progress | D15: 32466 | F15: 3950474.82 | H15: 3982940.82 | J15: =D15+F15-H15 -> 0 | K15: 1690xx
A16: %,FACCOUNT,TBOR_SACAPASS_ACCT,NSOFTWARE_DEV_WIP | B16: Software Development-In-Progress | D16: 0 | F16: 0 | H16: 0 | J16: =D16+F16-H16 -> 0 | K16: 1699xx
B17: Total Capital Assets Not Being Depreciated | D17: =SUM(D13:D16) -> 19945692 | F17: =SUM(F13:F16) -> 23830138.82 | H17: =SUM(H13:H16) -> 23862604.82 | J17: =SUM(J13:J16) -> 19913226
B19: Capital Assets, Being Depreciated:
A20: %,FACCOUNT,TBOR_SACAPASS_ACCT,NINFRASTRUCTURE | B20: Infrastructure | D20: 0 | F20: 0 | H20: 0 | J20: =+D20+F20-H20 -> 0 | K20: 167xxx(except 167900 and 167190)
A21: %,FACCOUNT,TBOR_SACAPASS_ACCT,NBUILDINGS | B21: Building and Building Improvements | D21: 9288482.3 | F21: 93546541.47 | H21: 3638526.6 | J21: 99196497.17 | K21: 162xxx(except 162900 and 162190)
A22: %,FACCOUNT,TBOR_SACAPASS_ACCT,NFACILITIES | B22: Facilities and Other Improvements | D22: 257684.73 | F22: 0 | H22: 0 | J22: 257684.73 | K22: 163xxx(except 163900 and 163190)
A23: %,FACCOUNT,TBOR_SACAPASS_ACCT,NEQUIPMENT | B23: Equipment | D23: 1065644.61 | F23: 237452.88 | H23: 122706.52 | J23: 1180390.97 | K23: 165xxx(except 165900 and 165190)
A24: %,FACCOUNT,TBOR_SACAPASS_ACCT,NCAPITAL_LEASES | B24: Capital Leases | D24: 82093177.16 | F24: 42555379.14 | H24: 124648556.3 | J24: 0 | K24: 166xxx(except 1669xx)
A25: %,FACCOUNT,TBOR_SACAPASS_ACCT,NLIBRARY_COLLECTIONS | B25: Library Collections | D25: 0 | F25: 0 | H25: 0 | J25: 0 | K25: 164xxx(except 1649xx)
A26: %,FACCOUNT,TBOR_SACAPASS_ACCT,NCAPITALIZED_COLL_DPD | B26: Capitalized Collections | D26: 0 | F26: 0 | H26: 0 | J26: 0 | K26: 168xxx(except 1689xx, 1682xx, 1681xx)
A27: %,FACCOUNT,TBOR_SACAPASS_ACCT,NWATER_TIMBER_MIN_EAS | B27: Water, Timber, Mineral Rights, and Easements | D27: 0 | F27: 0 | H27: 0 | J27: 0 | K27: 16822x
A28: %,FACCOUNT,TBOR_SACAPASS_ACCT,NPATENTS_TRADE_COPY | B28: Patents, Trademarks, and Copyrights | D28: 0 | F28: 0 | H28: 0 | J28: 0 | K28: 16823x
A29: %,FACCOUNT,TBOR_SACAPASS_ACCT,NSOFTWARE | B29: Software | D29: 0 | F29: 0 | H29: 0 | J29: 0 | K29: 16821x
B30: Total Capital Assets, Being Depreciated | D30: =SUM(D20:D29) -> 92704988.8 | F30: =SUM(F20:F29) -> 136339373.5 | H30: =SUM(H20:H29) -> 128409789.4 | J30: =SUM(J20:J29) -> 100634572.9
B32: Less: Accumulated depreciation
A33: %,R,FACCOUNT,TBOR_SACAPASS_ACCT,NINFRASTRUCTURE_DEP | B33: Infrastructure | D33: 0 | F33: 0 | H33: 0 | J33: =+D33+F33-H33 -> 0 | K33: 167900 and 167190
A34: %,R,FACCOUNT,TBOR_SACAPASS_ACCT,NBUILDING_DEP | B34: Buildings and Building Improvements | D34: 3515648.691 | F34: 12075107.89 | H34: 153704.11 | J34: 15437052.47 | K34: 162900 and 162190
A35: %,R,FACCOUNT,TBOR_SACAPASS_ACCT,NFACILITIES_DEP | B35: Facilities and Other Improvements | D35: 3865.27 | F35: 15461.08 | H35: 0 | J35: 19326.35 | K35: 163900 and 163190
A36: %,R,FACCOUNT,TBOR_SACAPASS_ACCT,NEQUIPMENT_DEP | B36: Equipment | D36: 356123.32 | F36: 217140.72 | H36: 71148.97 | J36: 502115.07 | K36: 165900 and 165190
A37: %,R,FACCOUNT,TBOR_SACAPASS_ACCT,NCAPITAL_LEASE_DEP | B37: Capital Leases | D37: 6133009.5 | F37: 8484348.15 | H37: 14617357.66 | J37: -0.009999999776 | K37: 1669xx
A38: %,R,FACCOUNT,TBOR_SACAPASS_ACCT,NLIBRARY_DEP | B38: Library Collections | D38: 0 | F38: 0 | H38: 0 | J38: 0 | K38: 1649xx
A39: %,R,FACCOUNT,TBOR_SACAPASS_ACCT,NCAPITALIZED_DEP | B39: Capitalized Collections | D39: 5034.3 | F39: 839.05 | H39: 0 | J39: 5873.35 | K39: 1689xx(except 16891x, 16892x, 16893x)
A40: %,R,FACCOUNT,TBOR_SACAPASS_ACCT,NWATER_DEP | B40: Water, Timber, Mineral Rights, and Easements | D40: 0 | F40: 0 | H40: 0 | J40: 0 | K40: 16892x
A41: %,R,FACCOUNT,TBOR_SACAPASS_ACCT,NPATENTS_DEP | B41: Patents, Trademarks, and Copyrights | D41: 0 | F41: 0 | H41: 0 | J41: 0 | K41: 16893x
A42: %,R,FACCOUNT,TBOR_SACAPASS_ACCT,NSOFTWARE_DEP | B42: Software | D42: 0 | F42: 0 | H42: 0 | J42: 0 | K42: 16891x
B43: Total Accumulated Depreciation | D43: =SUM(D33:D42) -> 10013681.08 | F43: =SUM(F33:F42) -> 20792896.89 | H43: =SUM(H33:H42) -> 14842210.74 | J43: =SUM(J33:J42) -> 15964367.23
B45: Total Capital Assets, Being Depreciated, Net | D45: =SUM(D30-D43) -> 82691307.72 | F45: =SUM(F30-F43) -> 115546476.6 | H45: =SUM(H30-H43) -> 113567578.7 | J45: =SUM(J30-J43) -> 84670205.64
B48: Capital Assets, net | D48: =SUM(D17+D45) -> 102636999.7 | F48: =SUM(F17+F45) -> 139376615.4 | H48: =SUM(H17+H45) -> 137430183.5 | J48: =SUM(J17+J45) -> 104583431.6
B53: Footnote 6 - Capital Assets Disclosure | D53: Balance | F53: Additions | H53: Reductions | J53: Balance
D54: ="July 1, " &(TEXT(ASD,"yyyy")-2) -> July 1, 2014 | J54: ="June 30, " &(TEXT(ASD,"yyyy")-1) -> June 30, 2015
B56: Capital Assets, not being depreciated
B57: Land | D57: 19879664 | F57: 0 | H57: 0 | J57: =+D57+F57-H57 -> 19879664 | K57: 161xxx
B58: Capitalized Collections | D58: 33562 | F58: 0 | H58: 0 | J58: =+D58+F58-H58 -> 33562 | K58: 1681xx
B59: Construction Work-In-Progress | D59: 483943.52 | F59: 879154.96 | H59: 1330632.48 | J59: =D59+F59-H59 -> 32466 | K59: 1690xx
B60: Software Development-In-Progress | D60: 0 | F60: 0 | H60: 0 | J60: =D60+F60-H60 -> 0 | K60: 1699xx
B61: Total Capital Assets Not Being Depreciated | D61: =SUM(D57:D60) -> 20397169.52 | F61: =SUM(F57:F60) -> 879154.96 | H61: =SUM(H57:H60) -> 1330632.48 | J61: =SUM(J57:J60) -> 19945692
B63: Capital Assets, Being Depreciated:
B64: Infrastructure | D64: 0 | F64: 0 | H64: 0 | J64: =+D64+F64-H64 -> 0 | K64: 167xxx(except 167900 and 167190)
B65: Building and Building Improvements | D65: 8595719.72 | F65: 490960.67 | H65: 0 | J65: 9086680.39 | K65: 162xxx(except 162900 and 162190)
B66: Facilities and Other Improvements | D66: 0 | F66: 257684.73 | H66: 0 | J66: 257684.73 | K66: 163xxx(except 163900 and 163190)
B67: Equipment | D67: 453432.9 | F67: 518850.96 | H67: 18286.98 | J67: 953996.88 | K67: 165xxx(except 165900 and 165190)
B68: Capital Leases | D68: 39039312.59 | F68: 43053864.57 | H68: 0 | J68: 82093177.16 | K68: 166xxx(except 1669xx)
B69: Library Collections | D69: 0 | F69: 0 | H69: 0 | J69: 0 | K69: 164xxx(except 1649xx)
B70: Capitalized Collections | D70: 0 | F70: 0 | H70: 0 | J70: 0 | K70: 168xxx(except 1689xx, 1682xx, 1681xx)
B71: Water, Timber, Mineral Rights, and Easements | D71: 0 | F71: 0 | H71: 0 | J71: 0 | K71: 16822x
B72: Patents, Trademarks, and Copyrights | D72: 0 | F72: 0 | H72: 0 | J72: 0 | K72: 16823x
B73: Software | D73: 0 | F73: 0 | H73: 0 | J73: 0 | K73: 16821x
B74: Total Capital Assets, Being Depreciated | D74: =SUM(D64:D73) -> 48088465.21 | F74: =SUM(F64:F73) -> 44321360.93 | H74: =SUM(H64:H73) -> 18286.98 | J74: =SUM(J64:J73) -> 92391539.16
B76: Less: Accumulated depreciation
B77: Infrastructure | D77: 0 | F77: 0 | H77: 0 | J77: =+D77+F77-H77 -> 0 | K77: 167900 and 167190
B78: Buildings and Building Improvements | D78: 3148876.321 | F78: -1271592.64 | H78: -1042928.45 | J78: 2920212.131 | K78: 162900 and 162190
B79: Facilities and Other Improvements | D79: 0 | F79: -3865.27 | H79: 0 | J79: -3865.27 | K79: 163900 and 163190
B80: Equipment | D80: 240368.9 | F80: -101596.5 | H80: -13665.15 | J80: 152437.55 | K80: 165900 and 165190
B81: Capital Leases | D81: 4182780.36 | F81: -1950229.14 | H81: 0 | J81: 2232551.22 | K81: 1669xx
B82: Library Collections | D82: 0 | F82: 0 | H82: 0 | J82: 0 | K82: 1649xx
B83: Capitalized Collections | D83: 4195.25 | F83: -839.05 | H83: 0 | J83: 3356.2 | K83: 1689xx(except 16891x, 16892x, 16893x)
B84: Water, Timber, Mineral Rights, and Easements | D84: 0 | F84: 0 | H84: 0 | J84: 0 | K84: 16892x
B85: Patents, Trademarks, and Copyrights | D85: 0 | F85: 0 | H85: 0 | J85: 0 | K85: 16893x
B86: Software | D86: 0 | F86: 0 | H86: 0 | J86: 0 | K86: 16891x
B87: Total Accumulated Depreciation | D87: =SUM(D77:D86) -> 7576220.831 | F87: =SUM(F77:F86) -> -3328122.6 | H87: =SUM(H77:H86) -> -1056593.6 | J87: =SUM(J77:J86) -> 5304691.831
B89: Total Capital Assets, Being Depreciated, Net | D89: =SUM(D74-D87) -> 40512244.38 | F89: =SUM(F74-F87) -> 47649483.53 | H89: =SUM(H74-H87) -> 1074880.58 | J89: =SUM(J74-J87) -> 87086847.33
B92: Capital Assets, net | D92: =SUM(D61+D89) -> 60909413.9 | F92: =SUM(F61+F89) -> 48528638.49 | H92: =SUM(H61+H89) -> 2405513.06 | J92: =SUM(J61+J89) -> 107032539.3
B96: ="Report ID: "&RID -> Report ID: SACAPASS
B97: ="Layout Name: "&LYN -> Layout Name: SA_CAPITAL_ASSETS
B98: ="Operator: "&OPR -> Operator: JBFREEMAN
B99: ="Instance Directory: " &IDN -> Instance Directory: /opt/psoft/psconfig/appserv/prcs/fprod/NVISION/INSTANCE
B100: ="Run Date: "&TEXT(NvsEndTime,"mmmm dd, yyyy") -> Run Date: March 10, 2017
B104: Tree Information
D105: Top Level | F105: Tree | H105: Node
B106: See nVision Tracking Database
B108: Version | D108: 5.13
B111: Change Information
B112: Release | D112: Date | E112: Developer | H112: Change Request and Details
B113: 5.13 | D113: 2016-04-12 | F113: Robert Prescott | H113: TSK27612
